{"text_format":"1","workbook":"xlsx","n_sheets":42,"sheets":["modReestrMO","Инструкция","Справочная информация","Лог обновления","Выбор субъекта РФ","Титульный","ТС инвестиции","ТС показатели","ТС показатели (2)","Ссылки на публикации","Комментарии","Проверка","TEHSHEET","CheckCopy","AllSheetsInThisWorkbook","et_union","modInfo","REESTR_ORG","modHyperlink","modChange","modTitleSheetHeaders","modServiceModule","modClassifierValidate","Паспорт","REESTR_FILTERED","REESTR_MO","modfrmReestr","modDblClick","modfrmDateChoose","modfrmSphereChoose","modSheetMain01","modSheetMain03","modSheetMain04","modSheetMain06","modSheetMain07","modSheetMain08","modUpdTemplMain","modRegionSelectSub","modfrmCheckUpdates","modCommonProv","modProvGeneralProc","modThisWorkbook"],"not_rendered":{"charts":0,"images":107,"macros":1,"external_links":0,"defined_names":261,"comments":0,"pivot_tables":0},"unopened":[],"bounds":{"document_bytes":16777216,"sheet_cells":100000,"rows_first":2000,"rows_last":500,"rows_between":2000,"halvings":0,"cell_chars":16384,"cell_head_chars":4096},"cells_cut":0,"cells_raw":0,"read":"whole","date_system":"1900"}

{"sheet":"modReestrMO","index":0,"n_rows":0,"n_cols":0,"rows_kept":0,"cut":false,"hidden":true,"merged":[]}

{"sheet":"Инструкция","index":1,"n_rows":76,"n_cols":6,"rows_kept":76,"cut":false,"hidden":false,"merged":[[82,1,82,4],[64,2,64,4],[65,2,65,4],[66,2,66,4],[67,2,67,4],[68,2,68,4],[76,2,76,4],[70,2,70,4],[69,2,69,4],[41,2,41,4],[42,2,42,4],[63,2,63,4],[45,2,45,4],[46,2,46,4],[43,2,43,4],[44,2,44,4],[47,2,47,4],[55,2,55,4],[56,2,56,4],[60,2,60,4],[61,2,61,4],[62,2,62,4],[57,2,57,4],[58,2,58,4],[59,2,59,4],[40,2,40,4],[29,2,29,4],[30,2,30,4],[31,2,31,4],[32,2,32,4],[39,2,39,4],[38,2,38,4],[37,2,37,4],[33,3,33,4],[28,2,28,4],[34,3,34,4],[18,2,18,4],[19,2,19,3],[20,3,20,4],[27,2,27,4],[7,2,7,4],[1,1,1,4],[3,1,3,4],[5,2,5,4],[6,2,6,4],[2,2,2,3],[8,2,8,4],[22,3,22,4],[15,3,15,4],[17,3,17,4],[26,2,26,4],[21,3,21,4],[23,3,23,4],[9,2,9,4],[10,2,10,4],[11,2,11,4],[12,2,12,4],[16,3,16,4],[25,3,25,4],[13,3,13,4],[14,3,14,4]]}
[]
[null,{"$f":"\"Код шаблона: \" & GetCode()","v":"Код шаблона: JKH.OPEN.INFO.TARIFF.WARM"}]
[null,{"$f":"\"Версия \" & GetVersion()","v":"Версия 5.0.1"}]
[null,"Инструкция"]
[]
[null,null,"1.  Технические требования",null,null,"t"]
[null,null," • на рабочем месте должен быть установлен MS Office 2003, 2007, 2010 с полной версией MS Excel"]
[null,null," • макросы во время работы должны быть включены (!)"]
[null,null," • для корректной работы шаблона требуется выбрать низкий уровень безопасности"]
[null,null,"(В меню MS Excel 2003: Сервис | Макрос | Безопасность | выбрать нижний пункт «Низкая безопасность» | OK)"]
[null,null,"(В меню MS Excel 2007/2010: Параметры Excel | Центр управления безопасностью | Параметры центра управления безопасностью | Параметры макросов | Включить все макросы | ОК)"]
[null,null,"2.  Законодательная основа шаблона",null,null,"u"]
[null,null,"Данный шаблон разработан в соответствии с:"]
[null,null," • ","ПОСТАНОВЛЕНИЕМ от 30 декабря 2009 г. N 1140 «ОБ УТВЕРЖДЕНИИ СТАНДАРТОВ РАСКРЫТИЯ ИНФОРМАЦИИ ОРГАНИЗАЦИЯМИ КОММУНАЛЬНОГО КОМПЛЕКСА И СУБЪЕКТАМИ ЕСТЕСТВЕННЫХ МОНОПОЛИЙ, ОСУЩЕСТВЛЯЮЩИМИ ДЕЯТЕЛЬНОСТЬ В СФЕРЕ ОКАЗАНИЯ УСЛУГ ПО ПЕРЕДАЧЕ ТЕПЛОВОЙ ЭНЕРГИИ»"]
[null,null,null,"Полный текст Постановления №1140 на сайте ФСТ России"]
[null,null,null,{"$f":"\"Подробнее о сфере \"& TSphere_full","v":"Подробнее о сфере теплоснабжения и сфере оказания услуг по передаче тепловой энергии"}]
[null,null," • ","ПОСТАНОВЛЕНИЕМ от 13 апреля 2010 г. N 237 «ОБ УТВЕРЖДЕНИИ ПРАВИЛ ОСУЩЕСТВЛЕНИЯ КОНТРОЛЯ ЗА СОБЛЮДЕНИЕМ ОРГАНИЗАЦИЯМИ КОММУНАЛЬНОГО КОМПЛЕКСА СТАНДАРТОВ РАСКРЫТИЯ ИНФОРМАЦИИ»"]
[null,null,null,"Полный текст Постановления №237"]
[null,null,"3.  Условные обозначения",null,null,"u"]
[null,null,"Типы ячеек:"]
[null,null,"●"," - обязательные для заполнения;"]
[null,null,"●"," - предназначенные для заполнения;"]
[null,null,"●"," - с формулами и константами или заполняемые автоматически (например, при выборе организации)."]
[null,null,"●"," - ячейки с выбором значений до двойному клику (щелчку) (например, при выборе даты или данных из "]
[null,null,null,"справочников)."]
[null,null,null,"Пояснение к заполнению на листе."]
[null,null,"4.  Работа с реестрами",null,null,"u"]
[null,null,"Если в предложенном Вам списке необходимая организация (МР/МО) отсутствует, обновите реестр с помощью кнопки «Обновить реестр организаций» («Обновить реестр МО»)."]
[null,null,"В результате синхронизации с базой данных список организаций (МР/МО) будет заменён актуальным (механизм синхронизации требует подключения к сети Интернет и основан на использовании протокола HTTPS (TCP порт 443)). "]
[null,null,"Если после обновления Вам не удалось найти необходимую организацию в списке, обратитесь к ответственному за поддержание реестра Вашего региона. Информация о региональных органах регулирования доступна по ссылке:"]
[null,null,"http://www.fstrf.ru/regions/region/showlist"]
[null,null,"5.  Обновление шаблона",null,null,"u"]
[null,null,"Если Ваш компьютер имеет подключение к Интернет, можно автоматически проверять наличие доступных обновлений. Выберите способ оповещения о наличии обновлений для шаблона:"]
[null,null,"y","проверять доступные обновления (рекомендуется)"]
[null,null,null,"никогда не проверять наличие обновлений (не рекомендуется)"]
[null,null,null,null,"Чтобы проверить наличие обновлений, нажмите кнопку «Обновить текущую версию шаблона»."]
[null,null,null,null,"Чтобы отобразить/скрыть лог обновления и статусные сообщения, нажмите кнопку \"Отобразить/скрыть лист Лог обновления\"."]
[null,null,"6.  Работа с листом «Проверка»",null,null,"u"]
[null,null,"• При сохранении шаблона осуществляется проверка корректности данных, в том числе на наличие значений в ячейках, обязательных для заполнения. "]
[null,null,"• Если какая-то ячейка не удовлетворяет условию проверки, на лист «Проверка» добавляется гиперссылка на данную ячейку и указывается причина ошибки."]
[null,null,"• В колонке «Статус» для каждого сообщения возможны 2 значения: ошибка и предупреждение. "]
[null,null,"• При наличии сообщений со статусом «Ошибка» шаблон будет отклонён системой и не будет загружен в хранилище данных, сообщения со статусом «Предупреждение» носят информационный характер, и такой шаблон будет принят системой."]
[]
[null,null,"• Если Вы работаете в табличном процессоре Microsoft Excel 2007 и выше, Вы можете использовать для работы формат XLSM (Книга Excel с поддержкой макросов)."]
[null,null,"• При сохранении не следует выбирать формат XLSX (Книга Excel), так как в указанном формате макросы, задействованные при работе с шаблоном, БЕЗВОЗВРАТНО УДАЛЯЮТСЯ."]
[null,null,"• После того, как будут устранены все замечания, при сохранении шаблона появится сообщение «Шаблон готов к сохранению без замечаний»."]
[]
[null,null,"7.  Организационно-технические консультации",null,null,"t"]
[null,null,null,"ФИО:",""]
[null,null,null,"Телефон:",""]
[null,null,null,"E-mail:"]
[null,null,null,"Web-сайт:","http://support.eias.ru/"]
[null,null,null,"Комментарий",""]
[null,null,null,"Дистрибутивы:","http://eias.ru/?page=show_distrs"]
[null,null,null,null,"для устранения ошибок (напр., \"Compile error in hidden module\")"]
[null,null,"8.  Методология заполнения",null,null,"u"]
[null,null,"   Перед началом работы с шаблоном, на листе «Выбор субъекта РФ», Вам необходимо выбрать из выпадающего списка нужный регион. После выбора региона в шаблоне отобразятся листы для заполнения."]
[null,null,"   В разделе «Справочная информация» размещены фрагменты Постановления №1140 «СТАНДАРТЫ РАСКРЫТИЯ ИНФОРМАЦИИ ОРГАНИЗАЦИЯМИ КОММУНАЛЬНОГО КОМПЛЕКСА И СУБЪЕКТАМИ ЕСТЕСТВЕННЫХ МОНОПОЛИЙ, ОСУЩЕСТВЛЯЮЩИМИ ДЕЯТЕЛЬНОСТЬ В СФЕРЕ ОКАЗАНИЯ УСЛУГ ПО ПЕРЕДАЧЕ ТЕПЛОВОЙ ЭНЕРГИИ», относящиеся к данному шаблону. В случае вопросов по составу раскрываемой информации, срокам раскрытия и формату раскрытия Вы можете уточнить их в соответствующих документах."]
[null,null,"   На листе «Титульный» нужно заполнить все ячейки голубого цвета."]
[null,null,"   Для создания печатной формы необходимо выполнить щелчок левой кнопки мыши по значку принтера (левый верхний угол под заголовком) на листе «Титульный»."]
[null,null,"   В зависимости от выбранного значения в поле «Публикация» на листе «Титульный» изменяется содержание и количество листов."]
[null,null,{"$f":" IF(TSphere = \"ТБО\", \"   Перечислите все муниципальные районы, в которых организация осуществляет услуги по утилизации (захоронению) твердых бытовых отходов.\", \"   В случае, если тариф не дифференцируется по системам \"&IF(TSphere = \"ТС\",\"теплоснабжения\",\"коммунальной инфраструктуры\")&\", перечислите все муниципальные районы, в которых организация осуществляет услуги \" &TSphere_full&\".\")","v":"   В случае, если тариф не дифференцируется по системам теплоснабжения, перечислите все муниципальные районы, в которых организация осуществляет услуги теплоснабжения и сфере оказания услуг по передаче тепловой энергии."}]
[null,null,{"$f":" IF(TSphere = \"ТБО\", \"   Перечислите все муниципальные образования, в которых организация осуществляет услуги по утилизации (захоронению) твердых бытовых отходов.\", \"   В случае, если тариф не дифференцируется по системам \"&IF(TSphere = \"ТС\",\"теплоснабжения\",\"коммунальной инфраструктуры\")&\", перечислите все муниципальные образования, в которых организация осуществляет услуги \" &TSphere_full&\".\")","v":"   В случае, если тариф не дифференцируется по системам теплоснабжения, перечислите все муниципальные образования, в которых организация осуществляет услуги теплоснабжения и сфере оказания услуг по передаче тепловой энергии."}]
[null,null,"   Задайте период регулирования на листе «Титульный» , выбрав начало и окончание очередного периода с помощью календаря /выполните двойной щелчок по соответствующей синей ячейке/."]
[null,null,"   Для выбора того или иного источника публикации выполните двойной щелчок по синей ячейке напротив соответствующего источника. Если Вы снимаете галочку с пункта, то будут скрыты и очищены соответствующие строки на листе «Ссылки на публикации»."]
[null,null,"  На листе «Ссылки на публикации» «Адрес сайта в сети интернет» вводите, не нарушая цвет ячейки /если копируете гиперссылку из браузера, то выполните двойной щелчок левой кнопки мыши по ячейке и только после этого можете вставить скопированный элемент/."]
[null,null,"   При вводе даты на расчетных листах необходимо выполнить двойной щелчок левой кнопки мыши по соответствующей ячейке."]
[null,null,"   Если какой-либо из показателей на расчетных листах для Вашей организации отсутствует, введите в поле, обязательное для заполнение, «0» (для числовых показателей) и «-» (для текстовых). "]
[null,null,"   Внимательно следите за информационными сообщениями на расчетных листах. "]
[null,null,"   Все необходимые комментарии по всем формам Вы можете отразить на листе «Комментарии». "]
[null,null,"9.  Консультации по методологии заполнения",null,null,"u"]
[null,null,null,"ФИО:",""]
[null,null,null,"Телефон:",""]
[null,null,null,"E-mail:","openinfo@eias.ru"]
[null,null,null,"Web-сайт:","http://www.support.eias.ru/"]
[null,null,null,"Комментарий",""]

{"sheet":"Справочная информация","index":2,"n_rows":85,"n_cols":3,"rows_kept":85,"cut":false,"hidden":false,"merged":[[2,1,2,2]]}
[]
[null,{"$f":"code","v":"Код шаблона: JKH.OPEN.INFO.TARIFF.WARM"}]
[null,"Инструкция"]
[]
[]
[null,null,"II. Стандарты раскрытия информации в сфере теплоснабжения и сфере оказания услуг по передаче тепловой энергии"]
[]
[null,null,"11. В сфере теплоснабжения и сфере оказания услуг по передаче тепловой энергии раскрытию подлежит информация: "]
[null,null,"а) о ценах (тарифах) на регулируемые товары и услуги и надбавках к этим ценам (тарифам); "]
[null,null,"б) об основных показателях финансово-хозяйственной деятельности регулируемых организаций, включая структуру основных производственных затрат (в части регулируемой деятельности); "]
[null,null,"в) об основных потребительских характеристиках регулируемых товаров и услуг регулируемых организаций и их соответствии государственным и иным утвержденным стандартам качества; "]
[null,null,"г) об инвестиционных программах и отчетах об их реализации; "]
[null,null,"д) о наличии (отсутствии) технической возможности доступа к регулируемым товарам и услугам регулируемых организаций, а также о регистрации и ходе реализации заявок на подключение к системе теплоснабжения; "]
[null,null,"е) об условиях, на которых осуществляется поставка регулируемых товаров и (или) оказание регулируемых услуг; "]
[null,null,"ж) о порядке выполнения технологических, технических и других мероприятий, связанных с подключением к системе теплоснабжения. "]
[null,null,"12. Информация о ценах (тарифах) на регулируемые товары и услуги и надбавках к этим ценам (тарифам) содержит сведения: "]
[null,null,"а) об утвержденных тарифах на тепловую энергию (мощность); "]
[null,null,"б) об утвержденных тарифах на передачу тепловой энергии (мощности); "]
[null,null,"в) об утвержденных надбавках к ценам (тарифам) на тепловую энергию для потребителей; "]
[null,null,"г) об утвержденных надбавках к тарифам регулируемых организаций на тепловую энергию и надбавках к тарифам регулируемых организаций на передачу тепловой энергии; "]
[null,null,"д) об утвержденных тарифах на подключение создаваемых (реконструируемых) объектов недвижимости к системе теплоснабжения; "]
[null,null,"е) об утвержденных тарифах регулируемых организаций на подключение к системе теплоснабжения. "]
[null,null,"    13. В отношении каждой из групп сведений, указанных в пункте 12 настоящего документа, указываются наименование регулирующего органа, принявшего решение об утверждении цен (тарифов) и надбавок к ним, реквизиты (дата и номер) такого решения, величина установленного тарифа или надбавки, срок действия тарифа или надбавки, а также источник официального опубликования решения. "]
[null,null,"    14. Информация об основных показателях финансово-хозяйственной деятельности регулируемых организаций, включая структуру основных производственных затрат (в части регулируемой деятельности), содержит сведения: "]
[null,null,"а) о виде регулируемой деятельности (производство, передача и сбыт тепловой энергии); "]
[null,null,"б) о выручке от регулируемой деятельности (тыс. рублей); "]
[null,null,"в) о себестоимости производимых товаров (оказываемых услуг) по регулируемому виду деятельности (тыс. рублей), включающей: "]
[null,null,"расходы на покупаемую тепловую энергию (мощность); "]
[null,null,"расходы на топливо с указанием по каждому виду топлива стоимости (за единицу объема), объема и способа его приобретения; "]
[null,null,"расходы на покупаемую электрическую энергию (мощность), потребляемую оборудованием, используемым в технологическом процессе, с указанием средневзвешенной стоимости 1 кВт х ч и об объеме приобретения электрической энергии; "]
[null,null,"расходы на приобретение холодной воды, используемой в технологическом процессе; "]
[null,null,"расходы на химреагенты, используемые в технологическом процессе; "]
[null,null,"расходы на оплату труда и отчисления на социальные нужды основного производственного персонала; "]
[null,null,"расходы на амортизацию основных производственных средств и аренду имущества, используемого в технологическом процессе; "]
[null,null,"общепроизводственные (цеховые) расходы, в том числе расходы на оплату труда и отчисления на социальные нужды; "]
[null,null,"общехозяйственные (управленческие) расходы, в том числе расходы на оплату труда и отчисления на социальные нужды; "]
[null,null,"расходы на ремонт (капитальный и текущий) основных производственных средств; "]
[null,null,"расходы на услуги производственного характера, выполняемые по договорам с организациями на проведение регламентных работ в рамках технологического процесса; "]
[null,null,"г) о валовой прибыли от продажи товаров и услуг по регулируемому виду деятельности (тыс. рублей); "]
[null,null,"д) о чистой прибыли от регулируемого вида деятельности с указанием размера ее расходования на финансирование мероприятий, предусмотренных инвестиционной программой регулируемой организации по развитию системы теплоснабжения (тыс. рублей); "]
[null,null,"е) об изменении стоимости основных фондов, в том числе за счет ввода (вывода) их из эксплуатации (тыс. рублей); "]
[null,null,"ж) о годовой бухгалтерской отчетности, включая бухгалтерский баланс и приложения к нему (раскрывается регулируемыми организациями, выручка от регулируемой деятельности которых превышает 80 процентов совокупной выручки за отчетный год); "]
[null,null,"з) об установленной тепловой мощности (Гкал/ч); "]
[null,null,"и) о присоединенной нагрузке (Гкал/ч); "]
[null,null,"к) об объеме вырабатываемой регулируемой организацией тепловой энергии (тыс. Гкал); "]
[null,null,"л) об объеме покупаемой регулируемой организацией тепловой энергии (тыс. Гкал); "]
[null,null,"м) об объеме тепловой энергии, отпускаемой потребителям, в том числе об объемах, отпущенных по приборам учета и по нормативам потребления (расчетным методом) (тыс. Гкал); "]
[null,null,"н) о технологических потерях тепловой энергии при передаче по тепловым сетям (процентов); "]
[null,null,"о) о протяженности магистральных сетей и тепловых вводов (в однотрубном исчислении) (км); "]
[null,null,"п) о протяженности разводящих сетей (в однотрубном исчислении) (км); "]
[null,null,"р) о количестве теплоэлектростанций (штук); "]
[null,null,"с) о количестве тепловых станций и котельных (штук); "]
[null,null,"т) о количестве тепловых пунктов (штук); "]
[null,null,"у) о среднесписочной численности основного производственного персонала (человек); "]
[null,null,"ф) об удельном расходе условного топлива на единицу тепловой энергии, отпускаемой в тепловую сеть (кг у. т./Гкал); "]
[null,null,"х) об удельном расходе электрической энергии на единицу тепловой энергии, отпускаемой в тепловую сеть (тыс. кВт х ч/Гкал); "]
[null,null,"ц) об удельном расходе холодной воды на единицу тепловой энергии, отпускаемой в тепловую сеть (куб. м/Гкал). "]
[null,null,"15. Информация об основных потребительских характеристиках регулируемых товаров и услуг регулируемых организаций и их соответствии государственным и иным утвержденным стандартам качества содержит сведения: "]
[null,null,"а) о количестве аварий на системах теплоснабжения (единиц на км); "]
[null,null,"б) о количестве часов (суммарно за календарный год), превышающих допустимую продолжительность перерыва подачи тепловой энергии, и о количестве потребителей, затронутых ограничениями подачи тепловой энергии; "]
[null,null,"в) о количестве часов (суммарно за календарный год) отклонения от нормативной температуры воздуха по вине регулируемой организации в жилых и нежилых отапливаемых помещениях. "]
[null,null,"16. Информация об инвестиционных программах и отчетах об их реализации содержит наименование соответствующей программы, а также сведения: "]
[null,null,"а) о цели инвестиционной программы; "]
[null,null,"б) о сроках начала и окончания реализации инвестиционной программы; "]
[null,null,"в) о потребностях в финансовых средствах, необходимых для реализации инвестиционной программы, в том числе с разбивкой по годам, мероприятиям и источникам финансирования инвестиционной программы (тыс. рублей); "]
[null,null,"г) о показателях эффективности реализации инвестиционной программы, а также об изменении технико-экономических показателей регулируемой организации (с разбивкой по мероприятиям); "]
[null,null,"д) об использовании инвестиционных средств за отчетный год с разбивкой по кварталам, мероприятиям и источникам финансирования инвестиционной программы (тыс. рублей). "]
[null,null,"17. В официальных печатных изданиях сведения, указанные в подпунктах \"в\" - \"д\" пункта 16 настоящего документа, публикуются в отношении мероприятий инвестиционной программы, доля расходов на реализацию каждого из которых превышает 5 процентов суммы финансирования инвестиционной программы за отчетный год. "]
[null,null,"18. Информация о наличии (отсутствии) технической возможности доступа к регулируемым товарам и услугам регулируемых организаций, а также о регистрации и ходе реализации заявок на подключение к системе теплоснабжения содержит сведения: "]
[null,null,"а) о количестве поданных и зарегистрированных заявок на подключение к системе теплоснабжения; "]
[null,null,"б) о количестве исполненных заявок на подключение к системе теплоснабжения; "]
[null,null,"в) о количестве заявок на подключение к системе теплоснабжения, по которым принято решение об отказе в подключении; "]
[null,null,"г) о резерве мощности системы теплоснабжения. При использовании регулируемыми организациями нескольких систем централизованного теплоснабжения информация о резерве мощности таких систем публикуется в отношении каждой системы централизованного теплоснабжения. "]
[null,null,"19. Информация об условиях, на которых осуществляется поставка регулируемых товаров и (или) оказание регулируемых услуг, содержит сведения об условиях публичных договоров поставок регулируемых товаров, оказания регулируемых услуг, в том числе договоров на подключение к системе теплоснабжения. "]
[null,null,"20. Информация о порядке выполнения технологических, технических и других мероприятий, связанных с подключением к системе теплоснабжения, содержит: "]
[null,null,"а) форму заявки на подключение к системе теплоснабжения; "]
[null,null,"б) перечень и формы документов, представляемых одновременно с заявкой на подключение к системе теплоснабжения; "]
[null,null,"в) описание (со ссылкой на нормативные правовые акты) порядка действий заявителя и регулируемой организации при подаче, приеме, обработке заявки на подключение к системе теплоснабжения, принятии решения и уведомлении о принятом решении; "]
[null,null,"г) телефоны и адреса службы, ответственной за прием и обработку заявок на подключение к системе теплоснабжения. "]
[null,null,"21. Информация, указанная в пунктах 12, 19 и 20 настоящего документа, раскрывается регулируемой организацией не позднее 30 дней со дня принятия соответствующего решения об установлении тарифа (надбавки) на очередной период регулирования. "]
[null,null,"Одновременно с указанной в пункте 12 настоящего документа информацией на сайте в сети Интернет публикуются сведения о финансово-хозяйственной деятельности регулируемой организации, указанные в подпунктах \"а\" - \"д\", \"з\" - \"ц\" пункта 14 и подпунктах \"а\" - \"г\" пункта 16 настоящего документа, которые были учтены органом исполнительной власти субъекта Российской Федерации (органом местного самоуправления) при установлении тарифов и надбавок к тарифам на очередной период регулирования. "]
[null,null,"Информация, указанная в пунктах 14-16 настоящего документа, раскрывается регулируемой организацией не позднее 30 дней со дня сдачи годового бухгалтерского баланса в налоговые органы и должна соответствовать годовой бухгалтерской отчетности за отчетный год. "]
[null,null,"Одновременно с указанной в пункте 14 настоящего документа информацией о расходах на ремонт (капитальный и текущий) основных производственных средств и расходах на услуги производственного характера, выполняемые по договорам с организациями на проведение регламентных работ в рамках технологического процесса, на сайте в сети Интернет публикуется информация об объемах товаров и услуг, их стоимости и способах приобретения у тех организаций, сумма оплаты услуг которых превышает 20 процентов суммы расходов по каждой из указанных статьей расходов. "]
[null,null,"При этом указывается информация о поставке товаров и услуг, стоимость которых превышает 20 процентов суммы поставки товаров и услуг каждой из этих организаций. "]
[null,null,"Информация, указанная в пункте 18 настоящего документа, раскрывается регулируемой организацией ежеквартально. "]

{"sheet":"Лог обновления","index":3,"n_rows":20,"n_cols":4,"rows_kept":20,"cut":false,"hidden":true,"merged":[]}
[]
["3/17/2012  12:12:41 AM","Дата/Время","Сообщение","Статус"]
[null,"12/9/2013  1:49:45 PM","Проверка доступных обновлений...","Информация"]
[null,"12/9/2013  1:49:47 PM","Версия шаблона 5.0.1 актуальна, обновление не требуется","Информация"]
[null,"12/11/2013  1:01:28 PM","Проверка доступных обновлений...","Информация"]
[null,"12/11/2013  1:01:30 PM","Версия шаблона 5.0.1 актуальна, обновление не требуется","Информация"]
[null,"12/11/2013  1:26:52 PM","Проверка доступных обновлений...","Информация"]
[null,"12/11/2013  1:26:55 PM","Версия шаблона 5.0.1 актуальна, обновление не требуется","Информация"]
[null,"12/13/2013  8:38:20 AM","Проверка доступных обновлений...","Информация"]
[null,"12/13/2013  8:38:23 AM","Версия шаблона 5.0.1 актуальна, обновление не требуется","Информация"]
[null,"12/16/2013  8:07:18 AM","Проверка доступных обновлений...","Информация"]
[null,"12/16/2013  8:07:21 AM","Версия шаблона 5.0.1 актуальна, обновление не требуется","Информация"]
[null,"11/19/2014  11:07:13 AM","Проверка доступных обновлений...","Информация"]
[null,"11/19/2014  11:07:16 AM","Версия шаблона 5.0.1 актуальна, обновление не требуется","Информация"]
[null,"11/19/2014  1:13:00 PM","Проверка доступных обновлений...","Информация"]
[null,"11/19/2014  1:13:06 PM","Версия шаблона 5.0.1 актуальна, обновление не требуется","Информация"]
[null,"11/24/2014  11:09:10 AM","Проверка доступных обновлений...","Информация"]
[null,"11/24/2014  11:09:14 AM","Версия шаблона 5.0.1 актуальна, обновление не требуется","Информация"]
[null,"11/24/2014  12:04:04 PM","Проверка доступных обновлений...","Информация"]
[null,"11/24/2014  12:04:07 PM","Версия шаблона 5.0.1 актуальна, обновление не требуется","Информация"]

{"sheet":"Выбор субъекта РФ","index":4,"n_rows":2,"n_cols":8,"rows_kept":2,"cut":false,"hidden":true,"merged":[[1,1,2,6]]}
[null,27,15187457,null,null,null,0]
[null,"Красноярский край",null,null,null,null,null,0]

{"sheet":"Титульный","index":5,"n_rows":70,"n_cols":7,"rows_kept":70,"cut":false,"hidden":false,"merged":[[55,5,55,6],[37,5,37,6],[41,5,41,6],[42,5,42,6],[49,2,51,2],[49,4,50,4],[47,5,47,6],[43,5,43,6],[54,5,54,6],[15,5,15,6],[24,5,24,6],[29,5,29,6],[32,5,32,6],[53,5,53,6],[35,5,35,6],[39,5,39,6],[16,5,16,6],[33,5,33,6],[22,5,22,6],[31,5,31,6],[26,5,26,6],[27,5,27,6],[18,5,18,6],[69,5,69,6],[57,5,57,6],[68,5,68,6],[66,5,66,6],[65,5,65,6],[59,5,59,6],[67,5,67,6],[63,5,63,6],[61,5,61,6],[58,5,58,6],[62,5,62,6],[1,5,1,7],[2,5,2,7],[10,5,10,6],[14,5,14,6],[3,3,3,7],[6,5,6,6],[8,5,8,6],[12,5,12,6],[11,5,11,6]]}
[{"$f":"region_name","v":"Красноярский край"},null,{"$f":"org&\"_INN:\"&inn&\"_KPP:\"&kpp","v":"ООО \"Тепловик 2\"_INN:2413006167_KPP:241301001"}]
[{"$f":"IF(org=\"\",\"Не определено\",org)","v":"ООО \"Тепловик 2\""},{"$f":"IF(inn=\"\",\"Не определено\",inn)","v":"2413006167"},null,null,null,{"$f":"code","v":"Код шаблона: JKH.OPEN.INFO.TARIFF.WARM"}]
[null,null,null,null,null,{"$f":"version","v":"Версия 5.0.1"}]
[{"$f":"IF(fil=\"\",\"Не определено\",fil)","v":"Не определено"},{"$f":"IF(kpp=\"\",\"Не определено\",kpp)","v":"241301001"},null,{"$f":"\"Показатели, подлежащие раскрытию в сфере \"&TSphere_full&\" (План)\"","v":"Показатели, подлежащие раскрытию в сфере теплоснабжения и сфере оказания услуг по передаче тепловой энергии (План)"}]
[]
[null,null,null,null,"Создать печатную форму"]
[null,null,null,null,"Субъект РФ","Красноярский край"]
[]
[null,null,null,null,"Публикация","На сайте регулирующего органа"]
[]
[null,null,null,null,null,"Источники публикации"]
[null,null,null,null,{"$f":"\"Сайт\"&IF(strPublication=\"На официальном сайте организации\",\" организации \",\" \")&\"в сети Интернет\"","v":"Сайт в сети Интернет"},"a"]
[null,null,null,null,"Печатное издание"]
[]
[null,null,null,null,null,"Период регулирования"]
[null,null,null,null,"Начало очередного периода регулирования","01.01.2015"]
[null,null,null,null,"Окончание очередного периода регулирования","31.12.2015"]
[]
["L0","Признак филиала",null,null,"Является ли данное юридическое лицо подразделением (филиалом) другой организации","нет"]
[]
[null,null,null,null,"Дата последнего обновления реестра организаций: 09.12.2013 13:50:26"]
[66]
[null,null,null,null,"Наименование организации","ООО \"Тепловик 2\""]
[]
[null,null,null,null,"Наименование ПОДРАЗДЕЛЕНИЯ"]
[]
[null,null,null,null,"ИНН","2413006167"]
[null,null,null,null,"КПП","241301001"]
[]
[null,null,null,null,"Вид деятельности","производство (некомбинированная выработка)+передача+сбыт"]
[]
[null,null,null,null,"Производство","да"]
[null,null,null,null,"Передача","да"]
[null,null,null,null,"Сбыт","да"]
[]
[null,null,null,null,"Режим налогообложения","специальный (упрощенная система налогообложения, система налогообложения для сельскохозяйственных товаропроизводителей)"]
[]
[null,null,null,null,"Организация выполняет инвестиционную программу","нет"]
[]
[null,null,null,null,"Вид тарифа на передачу тепловой энергии","руб./Гкал"]
[]
[null,null,null,null,null,{"$f":"\"Система \"&IF(TSphere=\"ТС\",\"теплоснабжения\",\"коммунальной инфраструктуры\")","v":"Система теплоснабжения"}]
[null,null,null,null,"Условный порядковый номер","1"]
[null,null,null,null,"Описание","ООО \"Тепловик-2\""]
[]
[null,null,null,null,"Дата последнего обновления реестра МР/МО: 09.12.2013 13:50:42"]
[]
[null,null,null,null,{"$f":"\"Муниципальный район, на территории которого \" & IF(TSphere = \"ТБО\", \"оказывает услуги данная организация\", \"размещена система \"&IF(TSphere = \"ТС\",\"теплоснабжения\",\"коммунальной инфраструктуры\"))","v":"Муниципальный район, на территории которого размещена система теплоснабжения"},{"$f":"\"Муниципальное образование, на территории которого \" & IF(TSphere = \"ТБО\", \"оказывает услуги данная организация\", \"размещена система \"&IF(TSphere = \"ТС\",\"теплоснабжения\",\"коммунальной инфраструктуры\"))","v":"Муниципальное образование, на территории которого размещена система теплоснабжения"}]
[null,null,null,null,"Наименование МР","Наименование МО","ОКТМО"]
[null,null,null,null,"Ермаковский муниципальный район","Ермаковский муниципальный район","04616000"]
[null,null,null,null,null,"Добавить МО"]
[null,null,null,null,"Добавить МР"]
[]
[null,null,null,null,null,"Адрес организации"]
[null,null,null,null,"Юридический адрес:","662820, Красноярский край, Ермаковский район, с. Ермаковское, ул. Ленина, д. 82, к. а"]
[null,null,null,null,"Почтовый адрес:","662820, Красноярский край, Ермаковский район, с. Ермаковское, ул. К.Маркса, д. 38"]
[]
[null,null,null,null,null,"Руководитель"]
[null,null,null,null,"Фамилия, имя, отчество:","Почекутов Сергей Михайлович"]
[null,null,null,null,"(код) номер телефона:","(39138) 2-40-47"]
[]
[null,null,null,null,null,"Главный бухгалтер"]
[null,null,null,null,"Фамилия, имя, отчество:","Родькина Ирина Ивановна"]
[null,null,null,null,"(код) номер телефона:","(39138) 2-40-47"]
[]
[null,null,null,null,null,"Должностное лицо, ответственное за составление формы"]
[null,null,null,null,"Фамилия, имя, отчество:","Федорова Зинаида Владимировна"]
[null,null,null,null,"Должность:","экономист"]
[null,null,null,null,"(код) номер телефона:","(39138) 2-40-47"]
[null,null,null,null,"e-mail:","fedorova-z55@mail.ru"]

{"sheet":"ТС инвестиции","index":6,"n_rows":68,"n_cols":9,"rows_kept":68,"cut":false,"hidden":true,"merged":[[50,4,51,4],[50,5,51,5],[60,4,61,4],[60,5,61,5],[52,4,53,4],[58,5,59,5],[54,5,55,5],[58,4,59,4],[56,4,57,4],[56,5,57,5],[54,4,55,4],[52,5,53,5],[44,5,45,5],[46,4,47,4],[46,5,47,5],[48,4,49,4],[48,5,49,5],[34,4,35,4],[62,5,63,5],[62,4,63,4],[1,5,1,6],[23,5,23,6],[24,5,24,6],[3,4,4,4],[3,5,4,5],[28,5,28,6],[15,3,15,10],[19,5,19,6],[44,4,45,4],[38,4,39,4],[38,5,39,5],[40,4,41,4],[40,5,41,5],[34,5,35,5],[42,4,43,4],[42,5,43,5],[16,3,16,10],[19,8,19,9],[29,5,29,6],[25,5,25,6],[31,5,31,6],[20,5,20,6],[26,5,26,6],[21,5,21,6],[22,5,22,6],[36,4,37,4],[36,5,37,5],[32,4,33,4],[32,5,33,5]]}
[]
[]
[]
[null,null,null,null,null,null,"План на отчетный период"]
[null,null,null,null,null,null,"Факт на начало реализации программы**"]
[]
[]
[]
[]
[]
[]
[]
[]
[]
[null,null,null,{"$f":"code","v":"Код шаблона: JKH.OPEN.INFO.TARIFF.WARM"}]
[null,null,null,"Информация об инвестиционных программах и отчетах об их реализации *"]
[null,null,null,{"$f":"IF(org=\"\",\"\",IF(fil=\"\",org,org & \" (\" & fil & \")\")) & IF(OR(godStart=\"\",godEnd=\"\"),\"\",\", \"&YEAR(godStart)& \"-\" & YEAR(godEnd)&\" гг.\")","v":"ООО \"Тепловик 2\", 2015-2015 гг."}]
[]
[]
[null,"Мероприятие 1",null,null,"№ п/п","Наименование показателя",null,"Значение","Добавить мероприятие"]
[null,4,null,null,1,{"$f":"E21+1","v":2},null,"3"]
[null,null,null,null,1,"Наименование инвестиционной программы (мероприятия)"]
[null,"х",null,null,2,"Цель инвестиционной программы","Цель инвестиционной программы"]
[null,"",null,null,3,"Срок начала реализации инвестиционной программы",null,""]
[null,"",null,null,4,"Срок окончания реализации инвестиционной программы",null,""]
[null,{"$f":"SUM(B27:B28)","v":0},null,null,"5","Потребность в финансовых средствах, необходимых для реализации инвестиционной программы за весь период реализации (тыс.руб.), в том числе по источникам финансирования:"]
[null,null,null,null,"5.1"]
[null,null,null,null,null,"Добавить источники"]
[null,{"$f":"SUM(B30:B31)","v":0},null,null,"6","Потребность в финансовых средствах, необходимых для реализации инвестиционной программы за отчетный период (тыс.руб.), в том числе по источникам финансирования:"]
[null,null,null,null,"6.1"]
[null,null,null,null,null,"Добавить источники"]
[null,"х",null,null,"7","Эффективность реализации инвестиционной программы (включая изменения технико-экономических показателей организации):",null,"х"]
[null,null,null,null,"7.1","Срок окупаемости, лет","План на отчетный период"]
[null,null,null,null,null,null,"Факт на начало реализации программы**"]
[null,null,null,null,"7.2","Перебои в снабжении потребителей (часов на потребителя)","План на отчетный период"]
[null,null,null,null,null,null,"Факт на начало реализации программы**"]
[null,null,null,null,"7.3","Продолжительность (бесперебойность) поставки товаров и услуг (час/день)","План на отчетный период"]
[null,null,null,null,null,null,"Факт на начало реализации программы**"]
[null,null,null,null,"7.4","Уровень потерь и неучтенного потребления (%)","План на отчетный период"]
[null,null,null,null,null,null,"Факт на начало реализации программы**"]
[null,null,null,null,"7.5","Коэффициент потерь (Гкал/км)","План на отчетный период"]
[null,null,null,null,null,null,"Факт на начало реализации программы**"]
[null,null,null,null,"7.6",{"$f":"\"Износ систем \" & IF(TSphere=\"ТС\",\"теплоснабжения\",\"коммунальной инфраструктуры\") & \" (%), в том числе:\"","v":"Износ систем теплоснабжения (%), в том числе:"},"План на отчетный период"]
[null,null,null,null,null,null,"Факт на начало реализации программы**"]
[null,null,null,null,"7.6.1","износ оборудования производства (котлы)","План на отчетный период"]
[null,null,null,null,null,null,"Факт на начало реализации программы**"]
[null,null,null,null,"7.6.2","износ оборудования передачи тепловой энергии (сети)","План на отчетный период"]
[null,null,null,null,null,null,"Факт на начало реализации программы**"]
[null,null,null,null,"7.7","Удельный вес сетей, нуждающихся в замене (%)","План на отчетный период"]
[null,null,null,null,null,null,"Факт на начало реализации программы**"]
[null,null,null,null,"7.8","Обеспеченность потребления товаров и услуг приборами учета (%)","План на отчетный период"]
[null,null,null,null,null,null,"Факт на начало реализации программы**"]
[null,null,null,null,"7.9","Расход топлива на 1 Гкал, т.у.т./Гкал","План на отчетный период"]
[null,null,null,null,null,null,"Факт на начало реализации программы**"]
[null,null,null,null,"7.10","Расход электроэнергии на выработку 1 Гкал, кВт∙ч/Гкал","План на отчетный период"]
[null,null,null,null,null,null,"Факт на начало реализации программы**"]
[null,null,null,null,"7.11","Расход электроэнергии на передачу 1 Гкал, кВт.ч/Гкал","План на отчетный период"]
[null,null,null,null,null,null,"Факт на начало реализации программы**"]
[null,null,null,null,"7.12","Количество аварий (с учетом котельных), ед","План на отчетный период"]
[null,null,null,null,null,null,"Факт на начало реализации программы**"]
[null,null,null,null,"7.13","Количество аварий на 1 км тепловых сетей, ед.","План на отчетный период"]
[null,null,null,null,null,null,"Факт на начало реализации программы**"]
[null,null,null,null,"7.14","Производительность труда, Гкал/чел.","План на отчетный период"]
[null,null,null,null,null,null,"Факт на начало реализации программы**"]
[null,null,null,null,null,"Добавить показатель"]
[null,"Удалить мероприятие"]
[null,null,null,null,"*","Раскрывается не позднее 30 дней со дня принятия соответствующего решения об установлении тарифа(надбавки) на очередной период регулирования."]
[null,null,null,null,"**","На последнюю дату отчетного периода, предшествующего периоду начала реализации инвестиционной программы."]

{"sheet":"ТС показатели","index":7,"n_rows":69,"n_cols":8,"rows_kept":69,"cut":false,"hidden":false,"merged":[[17,4,21,4],[68,5,68,7],[6,4,6,7],[7,4,7,7]]}
[]
[]
[]
[]
[]
[null,null,null,{"$f":"code","v":"Код шаблона: JKH.OPEN.INFO.TARIFF.WARM"}]
[null,null,null,null,"Информация об основных показателях финансово-хозяйственной деятельности регулируемых организаций, включая структуру основных производственных затрат\n(в части регулируемой деятельности) *"]
[null,null,null,null,{"$f":"IF(org=\"\",\"\",IF(fil=\"\",org,org & \" (\" & fil & \")\")) & IF(OR(godStart=\"\",godEnd=\"\"),\"\",\", \"&YEAR(godStart)& \"-\" & YEAR(godEnd)&\" гг.\")","v":"ООО \"Тепловик 2\", 2015-2015 гг."}]
[]
[]
[null,null,null,null,"№ п/п","Наименование показателя","Единица измерения","Значение"]
[null,null,null,null,"1","2","3","4"]
[null,null,null,null,"1","Вид регулируемой деятельности","x",{"$f":"IF(activity = \"\",\"\",activity)","v":"производство (некомбинированная выработка)+передача+сбыт"}]
[null,null,null,null,2,"Выручка от регулируемой деятельности ","тыс.руб.",29087.4]
[null,null,null,null,3,"Себестоимость производимых товаров (оказываемых услуг) по регулируемому виду деятельности, в том числе: ","тыс.руб.",{"$f":"SUM(H16:H17,H24,H27:H33,H36,H39,H42:H43)","v":29087.400000000005}]
[null,null,null,null,"3.1","Расходы на покупаемую тепловую энергию (мощность)","тыс.руб.",0]
[null,null,null,null,"3.2","Расходы на топливо","тыс.руб.",{"$f":"SUMIF(F18:F23,F19,H18:H23)","v":11324.2}]
[null,null,null,null,"3.2.1","уголь бурый","тыс.руб.",11324.2]
[null,null,null,null,null,"Стоимость","тыс.руб.",11324.2]
[null,null,null,null,null,"Объем","тонны",7889.74]
[null,null,null,null,null,"Стоимость 1й единицы объема с учетом доставки (транспортировки)","тыс.руб.",{"$f":"nerr(H18/H20)","v":1.4353071203867303}]
[null,null,null,null,null,"Способ приобретения","x","прочее"]
[null,null,null,null,null,"Добавить вид топлива"]
[null,null,null,null,"3.3","Расходы на покупаемую электрическую энергию (мощность), потребляемую оборудованием, используемым в технологическом процессе:","тыс.руб.",4384.3900000000003]
[null,null,null,null,"3.3.1","Средневзвешенная стоимость 1 кВт*ч","руб.",{"$f":"nerr(H24/H26)","v":3.9576593393896502}]
[null,null,null,null,"3.3.2","Объем приобретенной электрической энергии","тыс. кВт*ч",1107.8240000000001]
[null,null,null,null,"3.4","Расходы на приобретение холодной воды, используемой в технологическом процессе","тыс.руб.",225.07]
[null,null,null,null,"3.5","Расходы на химреагенты, используемые в технологическом процессе","тыс.руб.",0]
[null,null,null,null,"3.6","Расходы на оплату труда основного производственного персонала","тыс.руб.",7384.31]
[null,null,null,null,"3.7","Отчисления на социальные нужды основного производственного персонала","тыс.руб.",2230.06]
[null,null,null,null,"3.8","Расходы на амортизацию основных производственных средств, используемых в технологическом процессе","тыс.руб.",103.61]
[null,null,null,null,"3.9","Расходы на аренду имущества, используемого в технологическом процессе","тыс.руб.",330.47]
[null,null,null,null,"3.10","Общепроизводственные (цеховые) расходы, в том числе:","тыс.руб.",{"$f":"13.71+287.99+190.67+0.01","v":492.38}]
[null,null,null,null,"3.10.1","Расходы на оплату труда","тыс.руб.",0]
[null,null,null,null,"3.10.2","Отчисления на социальные нужды","тыс.руб.",0]
[null,null,null,null,"3.11","Общехозяйственные (управленческие) расходы","тыс.руб.",1789.98]
[null,null,null,null,"3.11.1","Расходы на оплату труда","тыс.руб.",1202.25]
[null,null,null,null,"3.11.2","Отчисления на социальные нужды","тыс.руб.",363.08]
[null,null,null,null,"3.12","Расходы на ремонт (капитальный и текущий) основных производственных средств","тыс.руб.",822.93]
[null,null,null,null,"3.12.1","Справочно: расходы на капитальный ремонт основных производственных средств","тыс.руб."]
[null,null,null,null,"3.12.2","Справочно: расходы на текущий ремонт основных производственных средств","тыс.руб."]
[null,null,null,null,"3.13","Расходы на услуги производственного характера, выполняемые по договорам с организациями на проведение регламентных работ в рамках технологического процесса","тыс.руб.",0]
[null,null,null,null,null,"Добавить запись"]
[null,null,null,null,"4","Валовая прибыль от продажи товаров и услуг по регулируемому виду деятельности (теплоснабжение и передача тепловой энергии)","тыс.руб.",{"$f":"H14-H15","v":0}]
[null,null,null,null,"5","Чистая прибыль от регулируемого вида деятельности, в том числе:","тыс.руб.",0]
[null,null,null,null,"5.1","чистая прибыль на финансирование мероприятий, предусмотренных инвестиционной программой по развитию системы теплоснабжения","тыс.руб.",0]
[null,null,null,null,"6","Установленная тепловая мощность ","Гкал/ч",22.4]
[null,null,null,null,"7","Присоединенная нагрузка ","Гкал/ч",6.24]
[null,null,null,null,"8","Объем вырабатываемой регулируемой организацией тепловой энергии ","тыс. Гкал",19.062899999999999]
[null,null,null,null,"8.1","Справочно: объем тепловой энергии на технологические нужды производства","тыс. Гкал",0]
[null,null,null,null,"9","Объем покупаемой регулируемой организацией тепловой энергии","тыс. Гкал",0]
[null,null,null,null,"10","Объем тепловой энергии, отпускаемой потребителям, в том числе:","тыс. Гкал",{"$f":"SUM(H53:H54)","v":14.2239}]
[null,null,null,null,"10.1","По приборам учета","тыс. Гкал",4.0987]
[null,null,null,null,"10.2","По нормативам потребления","тыс. Гкал",10.1252]
[null,null,null,null,"11","Технологические потери тепловой энергии при передаче по тепловым сетям","%",25.38]
[null,null,null,null,"12","Справочно: потери тепла через изоляцию труб","тыс.Гкал",4.6670600000000002]
[null,null,null,null,"13","Справочно: потери тепла через утечки","тыс.Гкал",0.17194000000000001]
[null,null,null,null,"14","Справочно: потери тепла, ВСЕГО","тыс.Гкал",4.83901]
[null,null,null,null,"15","Протяженность магистральных сетей и тепловых вводов (в однотрубном исчислении)","км",24.395]
[null,null,null,null,"16","Протяженность разводящих сетей (в однотрубном исчислении)","км",0]
[null,null,null,null,"17","Количество теплоэлектростанций","ед.",0]
[null,null,null,null,"18","Количество тепловых станций и котельных","ед.",8]
[null,null,null,null,"19","Количество тепловых пунктов","ед.",0]
[null,null,null,null,"20","Среднесписочная численность основного производственного персонала","чел.",53]
[null,null,null,null,"21","Удельный расход условного топлива на единицу тепловой энергии, отпускаемой в тепловую сеть","кг у.т./Гкал",236.08]
[null,null,null,null,"22","Удельный расход электрической энергии на единицу тепловой энергии, отпускаемой в тепловую сеть","кВт*ч/Гкал",58.11]
[null,null,null,null,"23","Удельный расход холодной воды на единицу тепловой энергии, отпускаемой в тепловую сеть","куб. м/Гкал",0.17]
[null,null,null,null,"24","Комментарии"]
[null,null,null,null,"*","Раскрывается не позднее 30 дней со дня принятия соответствующего решения об установлении тарифа(надбавки) на очередной период регулирования."]

{"sheet":"ТС показатели (2)","index":8,"n_rows":28,"n_cols":13,"rows_kept":28,"cut":false,"hidden":false,"merged":[[20,5,20,10],[21,5,21,10],[22,4,25,4],[22,5,25,5],[23,6,24,6],[23,7,24,7],[15,4,18,4],[15,5,18,5],[16,6,17,6],[16,7,17,7],[5,3,5,5],[7,3,7,13],[13,5,13,10],[14,5,14,10],[6,4,6,12]]}
[]
[]
[]
[]
[]
[null,null,null,{"$f":"code","v":"Код шаблона: JKH.OPEN.INFO.TARIFF.WARM"}]
[null,null,null,null,"Информация об объемах товаров и услуг, их стоимости и способах приобретения *"]
[null,null,null,{"$f":"IF(org=\"\",\"\",IF(fil=\"\",org,org & \" (\" & fil & \")\")) & IF(OR(godStart=\"\",godEnd=\"\"),\"\",\", \"&YEAR(godStart)& \"-\" & YEAR(godEnd)&\" гг.\")","v":"ООО \"Тепловик 2\", 2015-2015 гг."}]
[]
[]
[]
[null,null,null,null,"№ п/п","Наименование поставщика","Способ приобретения","Реквизиты договора","Наименование товара/услуги","Объем приобретенных товаров, услуг","Единица измерения объема","Стоимость, тыс.руб.","Доля расходов, % (от суммы расходов по указанной статье)"]
[null,null,null,null,1,2,3,4,5,6,7,8,9]
[null,null,null,null,1,"Расходы на ремонт (текущий и капитальный) основных производственных средств итого. Из них:",null,null,null,null,null,{"$f":"costs_OPS_4","v":822.93}]
[null,null,null,null,"1.1","Товары и услуги, приобретенные у организаций, сумма оплаты услуг которых превышает 20% суммы расходов по статье"]
[null,null,null,null,"1.1.1",null,"Итого по поставщику",null,null,null,null,{"$f":"SUM(L17:L19)","v":0},{"$f":"nerr(L16/costs_OPS_4)*100","v":0}]
[]
[null,null,null,null,null,null,null,null,"Добавить запись"]
[null,null,null,null,null,null,"Добавить способ"]
[null,null,null,null,null,"Добавить поставщика"]
[null,null,null,null,2,"Расходы на услуги производственного характера, выполняемые по договорам с организациями на проведение регламентных работ в рамках технологического процесса. Из них:",null,null,null,null,null,{"$f":"costs_PH_4","v":0}]
[null,null,null,null,"2.1","Товары и услуги, приобретенные у организаций, сумма оплаты услуг которых превышает 20% суммы расходов по статье"]
[null,null,null,null,"2.1.1",null,"Итого по поставщику",null,null,null,null,{"$f":"SUM(L24:L26)","v":0},{"$f":"nerr(L23/costs_PH_4)*100","v":0}]
[]
[null,null,null,null,null,null,null,null,"Добавить запись"]
[null,null,null,null,null,null,"Добавить способ"]
[null,null,null,null,null,"Добавить поставщика"]
[null,null,null,null,"*","Раскрывается не позднее 30 дней со дня принятия соответствующего решения об установлении тарифа(надбавки) на очередной период регулирования."]

{"sheet":"Ссылки на публикации","index":9,"n_rows":48,"n_cols":12,"rows_kept":48,"cut":false,"hidden":false,"merged":[[43,6,43,11],[44,6,44,11],[45,6,45,11],[5,3,5,5],[6,3,6,12],[7,3,7,12],[10,4,10,10],[42,6,42,11]]}
[]
[]
[]
[]
[]
[null,null,null,{"$f":"code","v":"Код шаблона: JKH.OPEN.INFO.TARIFF.WARM"}]
[null,null,null,{"$f":"\"Ссылки на публикации \"&IF(strPublication=\"На официальном сайте организации\",\"на официальном сайте организации\",\"в других источниках\")","v":"Ссылки на публикации в других источниках"}]
[null,null,null,{"$f":"IF(org=\"\",\"\",IF(fil=\"\",org,org & \" (\" & fil & \")\")) & IF(OR(godStart=\"\",godEnd=\"\"),\"\",\", \"&YEAR(godStart)& \"-\" & YEAR(godEnd)&\" гг.\")","v":"ООО \"Тепловик 2\", 2015-2015 гг."}]
[]
[]
[null,null,null,null,{"$f":"\"Указание на официальное печатное издание и (или) адрес сайта\"&IF(strPublication=\"На официальном сайте организации\",\" организации \",\" \")&\"в сети Интернет, которые используются для размещения раскрываемой информации *\"","v":"Указание на официальное печатное издание и (или) адрес сайта в сети Интернет, которые используются для размещения раскрываемой информации *"}]
[null,null,null,null,null,null,null,"True"]
[null,null,null,null,"№ п/п","Содержание","Наименование источника",null,"Дата размещения информации","Номер печатного издания","Дата печатного издания",{"$f":"IF(strPublication=\"На официальном сайте организации\",\"Адрес страницы официального сайта организации в сети интернет, на которой размещена раскрываемая информация\",\"Адрес сайта в сети Интернет\")","v":"Адрес сайта в сети Интернет"}]
[null,null,null,null,1,{"$f":"E14+1","v":2},3,3,{"$f":"H14+1","v":4},{"$f":"I14+1","v":5},{"$f":"J14+1","v":6},{"$f":"K14+1","v":7}]
[]
[]
[]
[null,null,null,null,"1.2","Информация об основных показателях финансово-хозяйственной деятельности регулируемых организаций, включая структуру основных производственных затрат (в части регулируемой деятельности)"]
[null,null,null,null,"1.2.1",{"$f":"\"Сайт\"&IF(strPublication=\"На официальном сайте организации\",\" организации \",\" \")&\"в сети Интернет\"","v":"Сайт в сети Интернет"},"Показатели ООО Тепловик-2 по тарифу на 2015 год",null,"24.11.2014","x","x","www.adminerm.ru"]
[null,null,null,null,"1.2.2","Печатное издание",null,null,null,null,null,"x"]
[null,null,null,null,"1.3","Информация о расходах на капитальный и текущий ремонт, услуги производственного характера"]
[null,null,null,null,"1.3.1",{"$f":"\"Сайт\"&IF(strPublication=\"На официальном сайте организации\",\" организации \",\" \")&\"в сети Интернет\"","v":"Сайт в сети Интернет"},"Показатели ООО Тепловик-2 по тарифу на 2015 год",null,"24.11.2014","x","x","www.adminerm.ru"]
[null,null,null,null,"1.3.2","Печатное издание",null,null,null,null,null,"x"]
[null,null,null,null,"1.4",{"$f":"\"Условия публичных договоров  поставок регулируемых товаров, оказания регулируемых услуг, в том числе договоров на подключение к системе \"&TSphere_full","v":"Условия публичных договоров  поставок регулируемых товаров, оказания регулируемых услуг, в том числе договоров на подключение к системе теплоснабжения и сфере оказания услуг по передаче тепловой энергии"}]
[null,null,null,null,"1.4.1",{"$f":"\"Сайт\"&IF(strPublication=\"На официальном сайте организации\",\" организации \",\" \")&\"в сети Интернет\"","v":"Сайт в сети Интернет"},"Условия поставки услуг и подключения ООО Тепловик-2",null,"24.11.2014","x","x","www.adminerm.ru"]
[null,null,null,null,"1.4.2","Печатное издание",null,null,null,null,null,"x"]
[null,null,null,null,"1.5",{"$f":"\"Форма заявки на подключение к системе \"&TSphere_full","v":"Форма заявки на подключение к системе теплоснабжения и сфере оказания услуг по передаче тепловой энергии"}]
[null,null,null,null,"1.5.1",{"$f":"\"Сайт\"&IF(strPublication=\"На официальном сайте организации\",\" организации \",\" \")&\"в сети Интернет\"","v":"Сайт в сети Интернет"},"Условия поставки услуг и подключения ООО Тепловик-2",null,"24.11.2014","x","x","www.adminerm.ru"]
[null,null,null,null,"1.5.2","Печатное издание",null,null,null,null,null,"x"]
[null,null,null,null,"1.6",{"$f":"\"Перечень и формы документов, представляемых одновременно с заявкой на подключение к системе \"&TSphere_full","v":"Перечень и формы документов, представляемых одновременно с заявкой на подключение к системе теплоснабжения и сфере оказания услуг по передаче тепловой энергии"}]
[null,null,null,null,"1.6.1",{"$f":"\"Сайт\"&IF(strPublication=\"На официальном сайте организации\",\" организации \",\" \")&\"в сети Интернет\"","v":"Сайт в сети Интернет"},"Условия поставки услуг и подключения ООО Тепловик-2",null,"24.11.2014","x","x","www.adminerm.ru"]
[null,null,null,null,"1.6.2","Печатное издание",null,null,null,null,null,"x"]
[null,null,null,null,"1.7","Описание (со ссылкой на нормативные акты) порядка действий  заявителя  и регулируемой организации при  подаче, приеме, обработке заявки на подключение к системе"]
[null,null,null,null,null,{"$f":"TSphere_full&\", принятии решения и уведомлении о принятом решении\"","v":"теплоснабжения и сфере оказания услуг по передаче тепловой энергии, принятии решения и уведомлении о принятом решении"}]
[null,null,null,null,"1.7.1",{"$f":"\"Сайт\"&IF(strPublication=\"На официальном сайте организации\",\" организации \",\" \")&\"в сети Интернет\"","v":"Сайт в сети Интернет"},"Условия поставки услуг и подключения ООО Тепловик-2",null,"24.11.2014","x","x","www.adminerm.ru"]
[null,null,null,null,"1.7.2","Печатное издание",null,null,null,null,null,"x"]
[null,null,null,null,"1.8",{"$f":"\"Наименование и контакты службы, ответственной за прием и обработку заявок на подключение к системе \"&TSphere_full","v":"Наименование и контакты службы, ответственной за прием и обработку заявок на подключение к системе теплоснабжения и сфере оказания услуг по передаче тепловой энергии"}]
[null,null,null,null,"1.8.1",{"$f":"\"Сайт\"&IF(strPublication=\"На официальном сайте организации\",\" организации \",\" \")&\"в сети Интернет\"","v":"Сайт в сети Интернет"},"Условия поставки услуг и подключения ООО Тепловик-2",null,"24.11.2014","x","x","www.adminerm.ru"]
[null,null,null,null,"1.8.2","Печатное издание",null,null,null,null,null,"x"]
[null,null,null,null,"1.8"]
[null,null,null,null,null,"Добавить запись"]
[null,null,null,null,"2",{"$f":"\"Справочно: Контакты службы, ответственной за прием и обработку заявок на подключение к системе  \"&TSphere_full","v":"Справочно: Контакты службы, ответственной за прием и обработку заявок на подключение к системе  теплоснабжения и сфере оказания услуг по передаче тепловой энергии"}]
[null,null,null,null,"2.1","Адрес","662820, Красноярский край, Ермаковский район, с. Ермаковское, ул. К.Маркса, д. 38"]
[null,null,null,null,"2.2","(код) Номер телефона","(39138) 2-40-47"]
[null,null,null,null,"2.3","E-mail","smp1953@mail.ru"]
[null,null,null,null,"2.4","Сайт в сети Интернет"]
[null,null,null,null,"*","Источники публикации сообщаются в течение 5 рабочих дней со дня размещения информации на сайте в сети Интернет."]
[null,null,null,null,null,"Информация раскрывается не позднее 30 дней со дня принятия соответствующего решения об установлении тарифа(надбавки) на очередной период регулирования."]

{"sheet":"Комментарии","index":10,"n_rows":13,"n_cols":6,"rows_kept":13,"cut":false,"hidden":false,"merged":[[6,3,6,5],[7,3,7,5]]}
[]
[]
[]
[]
[]
[null,null,null,{"$f":"code","v":"Код шаблона: JKH.OPEN.INFO.TARIFF.WARM"}]
[null,null,null,"КОММЕНТАРИИ"]
[null,null,null,{"$f":"IF(org=\"\",\"\",IF(fil=\"\",org,org & \" (\" & fil & \")\")) & IF(OR(godStart=\"\",godEnd=\"\"),\"\",\", \"&YEAR(godStart)& \"-\" & YEAR(godEnd)&\" гг.\")","v":"ООО \"Тепловик 2\", 2015-2015 гг."}]
[]
[null,null,null,null,"№ п/п","Комментарий"]
[null,null,null,null,1,{"$f":"E11+1","v":2}]
[null,null,null,null,1]
[null,null,null,null,null,"Добавить комментарий"]

{"sheet":"Проверка","index":11,"n_rows":30,"n_cols":8,"rows_kept":30,"cut":false,"hidden":false,"merged":[[7,4,7,7]]}
[]
[]
[]
[]
[]
[]
[]
[null,null,null,null,"Результаты проверки"]
[]
[null,null,null,null,"Ссылка 1","Ссылка 2","Описание причины","Обязательность выполнения"]
[null,null,null,null,"Титульный!F13",null,"Не указан источник информации: 'Печатное издание' на листе 'Титульный'!","Предупреждение"]
[null,null,null,null,"ТС показатели!H40",null,"Не указано значение на листе 'ТС показатели'!","Предупреждение"]
[null,null,null,null,"ТС показатели!H41",null,"Не указано значение на листе 'ТС показатели'!","Предупреждение"]
[null,null,null,null,"ТС показатели!H68",null,"Не указано значение на листе 'ТС показатели'!","Предупреждение"]
[null,null,null,null,"ТС показатели (2)!F16",null,"Не указано значение на листе 'ТС показатели (2)'!","Предупреждение"]
[null,null,null,null,"ТС показатели (2)!G17",null,"Не указано значение на листе 'ТС показатели (2)'!","Предупреждение"]
[null,null,null,null,"ТС показатели (2)!H17",null,"Не указано значение на листе 'ТС показатели (2)'!","Предупреждение"]
[null,null,null,null,"ТС показатели (2)!I17",null,"Не указано значение на листе 'ТС показатели (2)'!","Предупреждение"]
[null,null,null,null,"ТС показатели (2)!J17",null,"Не указано значение на листе 'ТС показатели (2)'!","Предупреждение"]
[null,null,null,null,"ТС показатели (2)!K17",null,"Не указано значение на листе 'ТС показатели (2)'!","Предупреждение"]
[null,null,null,null,"ТС показатели (2)!L17",null,"Не указано значение на листе 'ТС показатели (2)'!","Предупреждение"]
[null,null,null,null,"ТС показатели (2)!F23",null,"Не указано значение на листе 'ТС показатели (2)'!","Предупреждение"]
[null,null,null,null,"ТС показатели (2)!G24",null,"Не указано значение на листе 'ТС показатели (2)'!","Предупреждение"]
[null,null,null,null,"ТС показатели (2)!H24",null,"Не указано значение на листе 'ТС показатели (2)'!","Предупреждение"]
[null,null,null,null,"ТС показатели (2)!I24",null,"Не указано значение на листе 'ТС показатели (2)'!","Предупреждение"]
[null,null,null,null,"ТС показатели (2)!J24",null,"Не указано значение на листе 'ТС показатели (2)'!","Предупреждение"]
[null,null,null,null,"ТС показатели (2)!K24",null,"Не указано значение на листе 'ТС показатели (2)'!","Предупреждение"]
[null,null,null,null,"ТС показатели (2)!L24",null,"Не указано значение на листе 'ТС показатели (2)'!","Предупреждение"]
[null,null,null,null,"Ссылки на публикации!G46",null,"Не указано значение на листе 'Ссылки на публикации'!","Предупреждение"]
[null,null,null,null,"Ссылки на публикации!L15:L41",null,"Гиперссылки ('Адрес сайта в сети Интернет') на листе 'Ссылки на публикации' не проверены на корректность, т.к. Вы отказались от данной проверки!","Предупреждение"]

{"sheet":"TEHSHEET","index":12,"n_rows":85,"n_cols":96,"rows_kept":85,"cut":false,"hidden":true,"merged":[[0,17,0,18]]}
["Логика","Кварталы","Года","Единица измерения","Месяц-текст","Месяц-число","Номер СКИ\n/SKI_number/","День-число","Регионы","Вид деятельности","Источники финансирования","Единица измерения","Вид тарифа на передачу тепловой энергии /kind_of_tariff_unit/","НДС /kind_of_NDS/","цель инвестиционной программы /objective_of_IPR/","цель инвестиционной программы /kind_of_purchase_method/","наименование источника\n/kind_of_name_source/","Виды топлива\n/kind_of_fuels/",null,"регионы-исключения\n/region_exception/",null,"версия шаблона\n (DocProp_Version)","5.0.1",null,null,null,null,null,null,null,null,null,null,null,null,null,null,null,null,null,null,null,null,null,null,null,null,null,null,null,null,null,null,null,null,null,null,null,null,null,null,null,null,null,null,null,null,null,null,null,null,null,null,null,null,null,null,null,null,null,null,null,null,null,null,null,null,null,null,null,null,null,null,null,null,"5.86"]
["да","I квартал",2006,"тыс.руб.","январь","01","1","01","Алтайский край","Оказание услуг в сфере водоотведения и очистки сточных вод","кредиты банков","тыс.куб м/сутки","руб./Гкал/ч/мес","общий","автоматизация (с уменьшением штата)","торги/аукционы","наименование источника","газ природный по регулируемой цене","тыс. м3","Краснодарский край",null,"код шаблона\n(DocProp_TemplateCode)","JKH.OPEN.INFO.TARIFF.WARM"]
["нет","II квартал",2007,"млн.руб.","февраль","02","2","02","Амурская область","Оказание услуг по перекачке","кредиты иностранных банков","Гкал/час","руб./Гкал","общий с учетом освобождения от уплаты НДС","уменьшение удельных затрат (повышение КПД)","прямые договора без торгов","не раскрывалась","газ природный по нерегулируемой цене","тыс. м3","Кировская область",null,"сфера\n(TSphere)","ТС"]
[null,"III квартал",2008,null,"март","03","3","03","Архангельская область","Оказание услуг в сфере водоснабжения, водоотведения и очистки сточных вод","заемные ср-ва др. организаций","куб.м/час",null,"специальный (упрощенная система налогообложения, система налогообложения для сельскохозяйственных товаропроизводителей)","уменьшение издержек на производство","прочее",null,"газ сжиженный","кг","Республика Башкортостан",null,"сфера(латиница)\n(TSphere_trans)","WARM"]
[null,"IV квартал",2009,null,"апрель","04","4","04","Астраханская область",null,"федеральный бюджет",null,null,null,"снижение аварийности",null,null,"газовый конденсат","тонны","г.Санкт-Петербург",null,"сфера расширено\n(TSphere_full)","теплоснабжения и сфере оказания услуг по передаче тепловой энергии"]
[null,null,2010,null,"май","05","5","05","Белгородская область","Вид деятельности, на которую установлен тариф /kind_of_activity_WARM/","бюджет субъекта РФ",null,null,null,"прочее",null,null,"гшз","тонны","Чувашская республика",null,"признак общего шаблона\n(flag_main_template)","False"]
[null,null,2011,null,"июнь","06","6","06","Брянская область","Комбинированная выработка","бюджет муниципального образования",null,null,null,null,null,null,"мазут","тонны","Пермский край"]
[null,null,2012,null,"июль","07","7","07","Владимирская область","Некомбинированная выработка","ср-ва внебюджетных фондов",null,null,null,null,null,null,"нефть","тонны","Республика Татарстан"]
[null,null,2013,null,"август","08","8","08","Волгоградская область","Нет производства т/э","прибыль, направляемая на инвестиции",null,null,null,null,null,null,"дизельное топливо","тонны","Иркутская область"]
[null,null,2014,null,"сентябрь","09","9","09","Вологодская область","Смешанное производство","амортизация",null,null,null,null,null,null,"уголь бурый","тонны","Алтайский край"]
[null,null,2015,null,"октябрь",10,"10",10,"Воронежская область","Вид деятельности, на которую установлен тариф /kind_of_activity_HVS/","инвестиционная надбавка к тарифу",null,null,null,null,null,null,"уголь каменный","тонны"]
[null,null,null,null,"ноябрь",11,"11",11,"г.Байконур","Водоснабжение (подъем, очистка, транспортировка)","плата за подключение",null,null,null,null,null,null,"торф","тонны"]
[null,null,null,null,"декабрь",12,"12",12,"г. Москва","Подъем","прочие средства",null,null,null,null,null,null,"дрова","м3"]
[null,null,null,null,null,null,"13",13,"г.Санкт-Петербург","Транспортировка",null,null,null,null,null,null,null,"опил","м3"]
[null,null,null,null,null,null,"14",14,"Еврейская автономная область","Вид деятельности, на которую установлен тариф /kind_of_activity_VO/",null,null,null,null,null,null,null,"отходы березовые","м3"]
[null,null,null,null,null,null,"15",15,"Забайкальский край","Транспортировка и очистка сточных вод","XML_ORG_LIST_TAG_NAMES",null,null,null,null,null,null,"отходы осиновые","м3"]
[null,null,null,null,null,null,"16",16,"Ивановская область","Транспортировка сточных вод","NSRF",null,null,null,null,null,null,"печное топливо","тонны"]
[null,null,null,null,null,null,"17",17,"Иркутская область","Очистка сточных вод","MR_NAME",null,null,null,null,null,null,"пилеты","тонны"]
[null,null,null,null,null,null,"18",18,"Кабардино-Балкарская республика",null,"OKTMO_MR_NAME",null,null,null,null,null,null,"смола","тонны"]
[null,null,null,null,null,null,"19",19,"Калининградская область",null,"MO_NAME",null,null,null,null,null,null,"щепа","м3"]
[null,null,null,null,null,null,"20",20,"Калужская область",null,"OKTMO_NAME",null,null,null,null,null,null,"горючий сланец","тонны"]
[null,null,null,null,null,null,null,21,"Камчатский край",null,"ORG_NAME",null,null,null,null,null,null,"керосин","тонны"]
[null,null,null,null,null,null,null,22,"Карачаево-Черкесская республика",null,"INN_NAME",null,null,null,null,null,null,"кислородно-водородная смесь","тыс. м3"]
[null,null,null,null,null,null,null,23,"Кемеровская область",null,"KPP_NAME",null,null,null,null,null,null,"электроэнергия (НН)","тыс.кВт ч"]
[null,null,null,null,null,null,null,24,"Кировская область",null,"VDET_NAME",null,null,null,null,null,null,"электроэнергия (СН1)","тыс.кВт ч"]
[null,null,null,null,null,null,null,25,"Костромская область",null,null,null,null,null,null,null,null,"электроэнергия (СН2)","тыс.кВт ч"]
[null,null,null,null,null,null,null,26,"Краснодарский край",null,"XML_MR_MO_OKTMO_LIST_TAG_NAMES",null,null,null,null,null,null,"электроэнергия (ВН)","тыс.кВт ч"]
[null,null,null,null,null,null,null,27,"Красноярский край",null,"NSRF",null,null,null,null,null,null,"мощность","тыс.кВт"]
[null,null,null,null,null,null,null,28,"Курганская область",null,"MR_NAME",null,null,null,null,null,null,"прочее"]
[null,null,null,null,null,null,null,29,"Курская область",null,"OKTMO_MR_NAME"]
[null,null,null,null,null,null,null,30,"Ленинградская область",null,"MO_NAME"]
[null,null,null,null,null,null,null,31,"Липецкая область",null,"OKTMO_NAME"]
[null,null,null,null,null,null,null,null,"Магаданская область"]
[null,null,null,null,null,null,null,null,"Московская область"]
[null,null,null,null,null,null,null,null,"Мурманская область"]
[null,null,null,null,null,null,null,null,"Ненецкий автономный округ"]
[null,null,null,null,null,null,null,null,"Нижегородская область"]
[null,null,null,null,null,null,null,null,"Новгородская область"]
[null,null,null,null,null,null,null,null,"Новосибирская область"]
[null,null,null,null,null,null,null,null,"Омская область"]
[null,null,null,null,null,null,null,null,"Оренбургская область"]
[null,null,null,null,null,null,null,null,"Орловская область"]
[null,null,null,null,null,null,null,null,"Пензенская область"]
[null,null,null,null,null,null,null,null,"Пермский край"]
[null,null,null,null,null,null,null,null,"Приморский край"]
[null,null,null,null,null,null,null,null,"Псковская область"]
[null,null,null,null,null,null,null,null,"Республика Адыгея"]
[null,null,null,null,null,null,null,null,"Республика Алтай"]
[null,null,null,null,null,null,null,null,"Республика Башкортостан"]
[null,null,null,null,null,null,null,null,"Республика Бурятия"]
[null,null,null,null,null,null,null,null,"Республика Дагестан"]
[null,null,null,null,null,null,null,null,"Республика Ингушетия"]
[null,null,null,null,null,null,null,null,"Республика Калмыкия"]
[null,null,null,null,null,null,null,null,"Республика Карелия"]
[null,null,null,null,null,null,null,null,"Республика Коми"]
[null,null,null,null,null,null,null,null,"Республика Марий Эл"]
[null,null,null,null,null,null,null,null,"Республика Мордовия"]
[null,null,null,null,null,null,null,null,"Республика Саха (Якутия)"]
[null,null,null,null,null,null,null,null,"Республика Северная Осетия-Алания"]
[null,null,null,null,null,null,null,null,"Республика Татарстан"]
[null,null,null,null,null,null,null,null,"Республика Тыва"]
[null,null,null,null,null,null,null,null,"Республика Хакасия"]
[null,null,null,null,null,null,null,null,"Ростовская область"]
[null,null,null,null,null,null,null,null,"Рязанская область"]
[null,null,null,null,null,null,null,null,"Самарская область"]
[null,null,null,null,null,null,null,null,"Саратовская область"]
[null,null,null,null,null,null,null,null,"Сахалинская область"]
[null,null,null,null,null,null,null,null,"Свердловская область"]
[null,null,null,null,null,null,null,null,"Смоленская область"]
[null,null,null,null,null,null,null,null,"Ставропольский край"]
[null,null,null,null,null,null,null,null,"Тамбовская область"]
[null,null,null,null,null,null,null,null,"Тверская область"]
[null,null,null,null,null,null,null,null,"Томская область"]
[null,null,null,null,null,null,null,null,"Тульская область"]
[null,null,null,null,null,null,null,null,"Тюменская область"]
[null,null,null,null,null,null,null,null,"Удмуртская республика"]
[null,null,null,null,null,null,null,null,"Ульяновская область"]
[null,null,null,null,null,null,null,null,"Хабаровский край"]
[null,null,null,null,null,null,null,null,"Ханты-Мансийский автономный округ"]
[null,null,null,null,null,null,null,null,"Челябинская область"]
[null,null,null,null,null,null,null,null,"Чеченская республика"]
[null,null,null,null,null,null,null,null,"Чувашская республика"]
[null,null,null,null,null,null,null,null,"Чукотский автономный округ"]
[null,null,null,null,null,null,null,null,"Ямало-Ненецкий автономный округ"]
[null,null,null,null,null,null,null,null,"Ярославская область"]

{"sheet":"CheckCopy","index":13,"n_rows":10,"n_cols":8,"rows_kept":10,"cut":false,"hidden":true,"merged":[[7,4,7,7]]}
[]
[]
[]
[]
[]
[]
[]
[null,null,null,null,"Результаты проверки"]
[]
[null,null,null,null,"Ссылка 1","Ссылка 2","Описание причины","Обязательность выполнения"]

{"sheet":"AllSheetsInThisWorkbook","index":14,"n_rows":32,"n_cols":2,"rows_kept":32,"cut":false,"hidden":true,"merged":[]}
["Расчетные листы","Скрытые листы"]
["Инструкция","TEHSHEET"]
["Справочная информация","CheckCopy"]
["Лог обновления","AllSheetsInThisWorkbook"]
["Выбор субъекта РФ","et_union"]
["Титульный","modInfo"]
["ТС инвестиции","REESTR_ORG"]
["ТС показатели","modHyperlink"]
["ТС показатели (2)","modChange"]
["Ссылки на публикации","modTitleSheetHeaders"]
["Комментарии","modServiceModule"]
["Проверка","modClassifierValidate"]
[null,"Паспорт"]
[null,"REESTR_FILTERED"]
[null,"REESTR_MO"]
[null,"modfrmReestr"]
[null,"modDblClick"]
[null,"modfrmDateChoose"]
[null,"modfrmSphereChoose"]
[null,"modReestrMO"]
[null,"modSheetMain01"]
[null,"modSheetMain03"]
[null,"modSheetMain04"]
[null,"modSheetMain06"]
[null,"modSheetMain07"]
[null,"modSheetMain08"]
[null,"modUpdTemplMain"]
[null,"modRegionSelectSub"]
[null,"modfrmCheckUpdates"]
[null,"modCommonProv"]
[null,"modProvGeneralProc"]
[null,"modThisWorkbook"]

{"sheet":"et_union","index":15,"n_rows":66,"n_cols":13,"rows_kept":66,"cut":false,"hidden":true,"merged":[[7,4,11,4],[42,4,43,4],[21,4,24,4],[21,5,24,5],[22,6,23,6],[22,7,23,7],[29,4,32,4],[29,5,32,5],[30,6,31,6],[30,7,31,7]]}
[]
["add_INDEX_range"]
[]
[null,null,null,null,null,null,"тыс.руб."]
[]
["add_INDEX_WARM_range"]
[]
[null,null,null,null,"3.2.1",null,"тыс.руб."]
[null,null,null,null,null,"Стоимость","тыс.руб."]
[null,null,null,null,null,"Объем"]
[null,null,null,null,null,"Стоимость 1й единицы объема с учетом доставки (транспортировки)","тыс.руб.",{"$f":"nerr(H8/H10)","v":0}]
[null,null,null,null,null,"Способ приобретения","x"]
[]
["add_INDEX_HVS_object_range"]
[]
[null,null,null,null,null,null,"%"]
[]
["add_INDEX_2_SUPPLIER_range_1"]
["add_INDEX_2_ACQUISITION_range_1"]
["add_INDEX_2_RECORD_range"]
[]
[null,null,null,null,"1.1.1",null,"Итого по поставщику",null,null,null,null,{"$f":"SUM(L23:L25)","v":0},{"$f":"nerr(L22/costs_OPS_4)*100","v":0}]
[]
[null,null,null,null,null,null,null,null,"Добавить запись"]
[null,null,null,null,null,null,"Добавить способ"]
[]
["add_INDEX_2_SUPPLIER_2_range_1"]
["add_INDEX_2_ACQUISITION_2_range_1"]
[]
[null,null,null,null,"2.1.1",null,"Итого по поставщику",null,null,null,null,{"$f":"SUM(L31:L33)","v":0},{"$f":"nerr(L30/costs_PH_4)*100","v":0}]
[]
[null,null,null,null,null,null,null,null,"Добавить запись"]
[null,null,null,null,null,null,"Добавить способ"]
[]
["add_HYPERLINK_range"]
[]
[]
[]
[]
["add_MR_range"]
["add_MO_range"]
[]
[]
[null,null,null,null,null,"Добавить МО"]
[]
[]
["edit_ipr_pub"]
[]
[null,null,null,null,"1.1","Информация об инвестиционных программах и отчетах об их реализации **"]
[null,null,null,null,"1.1.1",{"$f":"\"Сайт\"&IF(strPublication=\"На официальном сайте организации\",\" организации \",\" \")&\"в сети Интернет\"","v":"Сайт в сети Интернет"},null,null,null,"x","x"]
[null,null,null,null,"1.1.2","Печатное издание",null,null,null,null,null,"x"]
[]
[]
["edit_ipr_pub_SPb"]
[]
[null,null,null,null,"1.1","Информация об инвестиционных программах и отчетах об их реализации **"]
[null,null,null,null,"1.1.1",{"$f":"\"Сайт\"&IF(strPublication=\"На официальном сайте организации\",\" организации \",\" \")&\"в сети Интернет\"","v":"Сайт в сети Интернет"},null,null,null,"x","x"]
[null,null,null,null,"1.1.2","Печатное издание",null,null,null,null,null,"x"]
[null,null,null,null,"1.1.3","Электронная версия печатного издания"]
[]
["edit_ipr_pub_comm"]
["edit_ipr_pub_comm_SPb"]
[]
[null,null,null,null,"**","Информация подлежит публикованию в официальных печатных изданиях (со ссылкой на адрес сайта в сети Интернет)."]
[]
["add_COMMENTS_range"]

{"sheet":"modInfo","index":16,"n_rows":17,"n_cols":2,"rows_kept":17,"cut":false,"hidden":true,"merged":[]}
[null,"Титульный"]
[null,"В зависимости от выбранного значения в поле \"Публикация\" изменяется содержание и количество листов"]
[null,{"$f":" IF(TSphere = \"ТБО\", \"Перечислите все муниципальные районы, в которых организация осуществляет услуги по утилизации (захоронению) твердых бытовых отходов\", \"В случае, если тариф не дифференцируется по системам \"&IF(TSphere = \"ТС\",\"теплоснабжения\",\"коммунальной инфраструктуры\")&\", перечислите все муниципальные районы, в которых организация осуществляет услуги \" &TSphere_full)","v":"В случае, если тариф не дифференцируется по системам теплоснабжения, перечислите все муниципальные районы, в которых организация осуществляет услуги теплоснабжения и сфере оказания услуг по передаче тепловой энергии"}]
[null,{"$f":" IF(TSphere = \"ТБО\", \"Перечислите все муниципальные образования, в которых организация осуществляет услуги по утилизации (захоронению) твердых бытовых отходов\", \"В случае, если тариф не дифференцируется по системам \"&IF(TSphere = \"ТС\",\"теплоснабжения\",\"коммунальной инфраструктуры\")&\", перечислите все муниципальные образования, в которых организация осуществляет услуги \" &TSphere_full)","v":"В случае, если тариф не дифференцируется по системам теплоснабжения, перечислите все муниципальные образования, в которых организация осуществляет услуги теплоснабжения и сфере оказания услуг по передаче тепловой энергии"}]
[null,"Признак дифференциации тарифа"]
[null,{"$f":"\"В случае, если тариф не дифференцируется по системам \"&IF(TSphere = \"ТС\",\"теплоснабжения\",\"коммунальной инфраструктуры\")&\", укажите \"\"1\"\".\nВыберите значение из списка, указав очередной условный порядковый номер системы \"&IF(TSphere = \"ТС\",\"теплоснабжения\",\"коммунальной инфраструктуры\")","v":"В случае, если тариф не дифференцируется по системам теплоснабжения, укажите \"1\".\nВыберите значение из списка, указав очередной условный порядковый номер системы теплоснабжения"}]
[null,"Задайте период регулирования, выбрав начало и окончание очередного периода с помощью календаря /выполните двойной щелчок по соответствующей синей ячейке/.\nИнформация раскрывается регулируемой организацией не позднее 30 дней со дня сдачи годового бухгалтерского баланса в налоговые органы и должна соответствовать годовой бухгалтерской отчетности за отчетный год"]
[null,"Укажите является ли данное юридическое лицо подразделением(филиалом) другой организации"]
[null,"Выполните двойной щелчок по синей ячейке в соответствующей строке, чтобы ввести дату"]
[null,"Нажмите на кнопку \"Выбор организации\", чтобы выбрать организацию или обновить реестр"]
[null,"Нажмите на кнопку \"Обновить реестр МО\", чтобы обновить реестр МР/МО"]
[null,"Для выбора того или иного источника публикации выполните двойной щелчок по синей ячейке напротив соответствующего источника.\nВНИМАНИЕ! Если Вы снимаете галочку с пункта, то будут скрыты и очищены соответствующие строки на листе \"Ссылки на публикации\"!"]
[null,"В зависимости от выбранного значения в поле \"Вид товара\" изменяется содержание и количество листов"]
[null,"Показатели (2)"]
[null,"Указывается информация о поставке товаров и услуг, стоимость которых превышает 20% суммы поставки товаров и услуг по каждой из организаций"]
[null,"Ссылки на публикации"]
[null,"Вводите адрес сайта, не нарушая цвет ячейки /если копируете гиперссылку из браузера, то выполните двойной щелчок по ячейке и только после этого можете вставить скопированный элемент/"]

{"sheet":"REESTR_ORG","index":17,"n_rows":505,"n_cols":8,"rows_kept":505,"cut":false,"hidden":true,"merged":[]}
["№","МР","МО","МО ОКТМО","ОРГАНИЗАЦИЯ","ИНН","КПП","ВИД ДЕЯТЕЛЬНОСТИ"]
[1,"Абанский муниципальный район","Абанское","04601151","ООО \"Водоканал Абанского района\"","2401003997","240101001","производство (некомбинированная выработка)+передача+сбыт"]
[2,"Абанский муниципальный район","Абанское","04601151","ООО \"ЖКХ Абанского района\"","2401004101","240101001","производство (некомбинированная выработка)+передача+сбыт"]
[3,"Ачинский муниципальный район","Белоярское","04603402","ООО \"Ачинский районный жилищно-коммунальный сервис\"","2443033175","244301001","производство (некомбинированная выработка)+передача+сбыт"]
[4,"Ачинский муниципальный район","Белоярское","04603402","ООО \"Пром-Строй Ресурс\"","2443040535","244301001","производство (некомбинированная выработка)+передача+сбыт"]
[5,"Ачинский муниципальный район","Белоярское","04603402","ООО \"Энергосберегающие технологии\"","2443032654","244301001","производство (некомбинированная выработка)+передача+сбыт"]
[6,"Ачинский муниципальный район","Горное","04603407","ООО \"АльянсСпецСтрой\"","2443037518","244301001","производство (некомбинированная выработка)+передача+сбыт"]
[7,"Ачинский муниципальный район","Горное","04603407","ООО \"Пром-Строй Ресурс\"","2443040535","244301001","производство (некомбинированная выработка)+передача+сбыт"]
[8,"Ачинский муниципальный район","Горное","04603407","ООО \"Энергосберегающие технологии\"","2443032654","244301001","производство (некомбинированная выработка)+передача+сбыт"]
[9,"Ачинский муниципальный район","Ключинское","04603410","ООО \"Пром-Строй Ресурс\"","2443040535","244301001","производство (некомбинированная выработка)+передача+сбыт"]
[10,"Ачинский муниципальный район","Ключинское","04603410","ООО \"Энергосберегающие технологии\"","2443032654","244301001","производство (некомбинированная выработка)+передача+сбыт"]
[11,"Ачинский муниципальный район","Ключинское","04603410","ООО УК \"Альянсспецстрой\"","2443009422","244301001","производство (некомбинированная выработка)+передача+сбыт"]
[12,"Ачинский муниципальный район","Лапшихинское","04603413","ООО \"Районное коммунальное хозяйство\"","2443031594","244301001","производство (некомбинированная выработка)+передача+сбыт"]
[13,"Ачинский муниципальный район","Малиновское","04603414","ООО \"Ачинский районный жилищно-коммунальный сервис\"","2443033175","244301001","производство (некомбинированная выработка)+передача+сбыт"]
[14,"Ачинский муниципальный район","Малиновское","04603414","ООО \"Гарант Энерго\"","2462204517","246601001","производство (некомбинированная выработка)"]
[15,"Ачинский муниципальный район","Преображенское","04603404","ОАО \"Транссибнефть\" филиал Красноярское РНУ","5502020634","246603001","производство (некомбинированная выработка)+передача+сбыт"]
[16,"Ачинский муниципальный район","Преображенское","04603404","ООО \"Районное коммунальное хозяйство\"","2443031594","244301001","производство (некомбинированная выработка)+передача+сбыт"]
[17,"Ачинский муниципальный район","Причулымское","04603419","ООО \"Пром-Строй Ресурс\"","2443040535","244301001","производство (некомбинированная выработка)+передача+сбыт"]
[18,"Ачинский муниципальный район","Причулымское","04603419","ООО \"Энергосберегающие технологии\"","2443032654","244301001","производство (некомбинированная выработка)+передача+сбыт"]
[19,"Ачинский муниципальный район","Причулымское","04603419","ООО УК \"Альянсспецстрой\"","2443009422","244301001","производство (некомбинированная выработка)+передача+сбыт"]
[20,"Ачинский муниципальный район","Тарутинское","04603422","ООО \"Пром-Строй Ресурс\"","2443040535","244301001","производство (некомбинированная выработка)+передача+сбыт"]
[21,"Ачинский муниципальный район","Тарутинское","04603422","ООО \"Энергосберегающие технологии\"","2443032654","244301001","производство (некомбинированная выработка)+передача+сбыт"]
[22,"Ачинский муниципальный район","Ястребовское","04603428","ООО \"Пром-Строй Ресурс\"","2443040535","244301001","производство (некомбинированная выработка)+передача+сбыт"]
[23,"Ачинский муниципальный район","Ястребовское","04603428","ООО \"Энергосберегающие технологии\"","2443032654","244301001","производство (некомбинированная выработка)+передача+сбыт"]
[24,"Балахтинский муниципальный район","Кожановское","04604405","ЗАО \"Санаторий \"Красноярское Загорье\"","2403001924","240301001","производство (некомбинированная выработка)+передача+сбыт"]
[25,"Балахтинский муниципальный район","Огурское","04604407","ООО ЖКХ \"Приморье\"","2403007059","240301001","производство (некомбинированная выработка)+передача+сбыт"]
[26,"Балахтинский муниципальный район","Приморское","04604413","ООО ЖКХ \"Приморье\"","2403007059","240301001","производство (некомбинированная выработка)+передача+сбыт"]
[27,"Балахтинский муниципальный район","поселок Балахта","04604151","ООО \"Балахтинские теплосети\"","2403006986","240301001","производство (некомбинированная выработка)+передача+сбыт"]
[28,"Балахтинский муниципальный район","поселок Балахта","04604151","ООО \"Красноярская региональная энергетическая компания\"","2466118202","246001001","производство (некомбинированная выработка)+передача+сбыт"]
[29,"Березовский муниципальный район","Бархатовское","04605402","ОАО \"Птицефабрика Бархатовская\"","2404007196","240401001","производство (некомбинированная выработка)+передача+сбыт"]
[30,"Березовский муниципальный район","Бархатовское","04605402","ООО \"Лифтремонт\"","2458000334","245801001","Передача+Сбыт"]
[31,"Березовский муниципальный район","Бархатовское","04605402","ООО \"УК\"Заказчик ЖКУ\"","2404012340","240401001","Передача+Сбыт"]
[32,"Березовский муниципальный район","Вознесенское","04605405","ООО \"Жилсервис\"","2404005488","240401001","производство (некомбинированная выработка)+передача+сбыт"]
[33,"Березовский муниципальный район","Есаульское","04605416","МП ЖКУ Есаульского сельсовета","2404008672","240401001","производство (некомбинированная выработка)+передача+сбыт"]
[34,"Березовский муниципальный район","Есаульское","04605416","ОАО Гравиметрическая экспедиция №3","2466146520","246601001","производство (некомбинированная выработка)+передача+сбыт"]
[35,"Березовский муниципальный район","Зыковское","04605420","КрД по тепловодоснабжению - СП ЦД по тепловодоснабжению -филиал ОАО \"РЖД\"","7708503727","246645014","производство (некомбинированная выработка)+передача+сбыт"]
[36,"Березовский муниципальный район","Зыковское","04605420","ООО \"УК\"Заказчик ЖКУ\"","2404012340","240401001","Передача+Сбыт"]
[37,"Березовский муниципальный район","Зыковское","04605420","ООО Энергетик","2404006058","240401001","производство (некомбинированная выработка)+передача+сбыт"]
[38,"Березовский муниципальный район","Маганское","04605425","ООО \"УК\"Заказчик ЖКУ\"","2404012340","240401001","Передача+Сбыт"]
[39,"Березовский муниципальный район","поселок Березовка","04605151","ОАО \"Енисейская ТГК (ТГК-13)\"","1901067718","997450001","производство комбинированная выработка"]
[40,"Березовский муниципальный район","поселок Березовка","04605151","ОАО \"Енисейская ТГК (ТГК-13)\"","1901067718","997450001","Передача+Сбыт"]
[41,"Березовский муниципальный район","поселок Березовка","04605151","ООО \"Водолей-2\"","2404011509","240401001","производство (некомбинированная выработка)"]
[42,"Березовский муниципальный район","поселок Березовка","04605151","ООО \"УК\"Заказчик ЖКУ\"","2404012340","240401001","Передача+Сбыт"]
[43,"Бирилюсский муниципальный район","Новобирилюсское","04606416","ООО \"Коммунсервис\"","2405415102","240501001","производство (некомбинированная выработка)+передача+сбыт"]
[44,"Бирилюсский муниципальный район","Поселок Рассвет","04606154","ООО \"Жилбытсервис\"","2405415543","240541001","производство (некомбинированная выработка)+передача+сбыт"]
[45,"Бирилюсский муниципальный район","Суриковское","04606426","ООО \"Теплосбыт\"","2405415832","240541001","производство (некомбинированная выработка)+передача+сбыт"]
[46,"Боготольский муниципальный район","Боготольское","04608404","МУП \"РТЭК\"","2444001602","244401001","производство (некомбинированная выработка)+передача+сбыт"]
[47,"Боготольский муниципальный район","Большекосульское","04608407","ОАО \"Транссибнефть\" Новосибирское РНУ","5502020634","240201001","производство (некомбинированная выработка)+передача+сбыт"]
[48,"Богучанский муниципальный район","Богучанское","04609410","ОАО \"РусГидро\"","2460066195","997450001","производство (некомбинированная выработка)+передача+сбыт"]
[49,"Богучанский муниципальный район","Богучанское","04609410","ООО \"Богучанские тепловые сети\"","2407061522","240701001","производство (некомбинированная выработка)+передача+сбыт"]
[50,"Богучанский муниципальный район","Богучанское","04609410","ООО \"Жилье\"","2407062290","240701001","производство (некомбинированная выработка)+передача+сбыт"]
[51,"Богучанский муниципальный район","Октябрьское","04609445","ФБУ \"Объединение исправительных учреждений №26\" ГУФСИН по Красноярскому краю","2407011169","240701001","производство (некомбинированная выработка)+передача+сбыт"]
[52,"Богучанский муниципальный район","Чуноярское","04609434","КрД по тепловодоснабжению - СП ЦД по тепловодоснабжению -филиал ОАО \"РЖД\"","7708503727","246645014","производство (некомбинированная выработка)+передача+сбыт"]
[53,"Большемуртинский муниципальный район","Айтатское","04610402","ООО \"Красноярская региональная энергетическая компания\"","2466118202","246001001","производство (некомбинированная выработка)+передача+сбыт"]
[54,"Большемуртинский муниципальный район","Бартатское","04610404","ООО \"Красноярская региональная энергетическая компания\"","2466118202","246001001","производство (некомбинированная выработка)+передача+сбыт"]
[55,"Большемуртинский муниципальный район","Большемуртинское","04610000","ООО \"Красноярская региональная энергетическая компания\"","2466118202","246001001","производство (некомбинированная выработка)+передача+сбыт"]
[56,"Большемуртинский муниципальный район","Верх-Казанское","04610407","ООО \"Красноярская региональная энергетическая компания\"","2466118202","246001001","производство (некомбинированная выработка)+передача+сбыт"]
[57,"Большемуртинский муниципальный район","Еловское","04610410","ООО \"Красноярская региональная энергетическая компания\"","2466118202","246001001","производство (некомбинированная выработка)+передача+сбыт"]
[58,"Большемуртинский муниципальный район","Ентаульское","04610413","ООО \"Красноярская региональная энергетическая компания\"","2466118202","246001001","производство (некомбинированная выработка)+передача+сбыт"]
[59,"Большемуртинский муниципальный район","Межовское","04610416","ИП Хасанов","240800322914","отсутствует","производство (некомбинированная выработка)+передача+сбыт"]
[60,"Большемуртинский муниципальный район","Межовское","04610416","ООО \"Красноярская региональная энергетическая компания\"","2466118202","246001001","производство (некомбинированная выработка)+передача+сбыт"]
[61,"Большемуртинский муниципальный район","Поселок Большая Мурта","04610151","ООО \"Красноярская региональная энергетическая компания\"","2466118202","246001001","производство (некомбинированная выработка)+передача+сбыт"]
[62,"Большемуртинский муниципальный район","Раздольненское","04610428","ООО \"Красноярская региональная энергетическая компания\"","2466118202","246001001","производство (некомбинированная выработка)+передача+сбыт"]
[63,"Большемуртинский муниципальный район","Российское","04610419","ООО \"Красноярская региональная энергетическая компания\"","2466118202","246001001","производство (некомбинированная выработка)+передача+сбыт"]
[64,"Большемуртинский муниципальный район","Таловское","04610422","ООО \"Красноярская региональная энергетическая компания\"","2466118202","246001001","производство (некомбинированная выработка)+передача+сбыт"]
[65,"Большемуртинский муниципальный район","Юксеевское","04610425","ООО \"Красноярская региональная энергетическая компания\"","2466118202","246001001","производство (некомбинированная выработка)+передача+сбыт"]
[66,"Большемуртинский муниципальный район","п Предивинск","04610155","ООО \"Красноярская региональная энергетическая компания\"","2466118202","246001001","производство (некомбинированная выработка)+передача+сбыт"]
[67,"Большеулуйский муниципальный район","Большеулуйское","04611407","ОАО \"Ачинский НПЗ ВНК\"","2443000518","244301001","Передача+Сбыт"]
[68,"Большеулуйский муниципальный район","Большеулуйское","04611407","ОАО \"Ачинский НПЗ ВНК\"","2443000518","244301001","производство комбинированная выработка"]
[69,"Большеулуйский муниципальный район","Большеулуйское","04611407","ООО \"КоммунСтройСервис\"","2409000116","240901001","производство (некомбинированная выработка)+передача+сбыт"]
[70,"Большеулуйский муниципальный район","Большеулуйское","04611407","ООО \"Рубин\"","2409700703","240971001","производство (некомбинированная выработка)+передача+сбыт"]
[71,"Большеулуйский муниципальный район","Большеулуйское","04611407","ООО \"Улуйское\"","2409700541","240901001","производство (некомбинированная выработка)+передача+сбыт"]
[72,"Город Ачинск","Город Ачинск","04703000","ЗАО \"Промэнерго\"","2443022857","244301001","производство (некомбинированная выработка)+передача+сбыт"]
[73,"Город Ачинск","Город Ачинск","04703000","КрД по тепловодоснабжению - СП ЦД по тепловодоснабжению -филиал ОАО \"РЖД\"","7708503727","246645014","производство (некомбинированная выработка)+передача+сбыт"]
[74,"Город Ачинск","Город Ачинск","04703000","МУП \"Ачинские коммунальные системы\"","2443031957","244301001","производство (некомбинированная выработка)+передача+сбыт"]
[75,"Город Ачинск","Город Ачинск","04703000","ОАО \"Русал Ачинск\"","2443005570","997550001","производство комбинированная выработка"]
[76,"Город Ачинск","Город Ачинск","04703000","ОАО \"Русал Ачинск\"","2443005570","997550001","Передача+Сбыт"]
[77,"Город Боготол","Город Боготол","04706000","КрД по тепловодоснабжению - СП ЦД по тепловодоснабжению -филиал ОАО \"РЖД\"","7708503727","246645014","производство (некомбинированная выработка)+передача+сбыт"]
[78,"Город Боготол","Город Боготол","04706000","ОАО «БТЭК»","2444303071","244401001","производство (некомбинированная выработка)+передача+сбыт"]
[79,"Город Боготол","Город Боготол","04706000","ООО \"Красноярская региональная энергетическая компания\"","2466118202","246001001","производство (некомбинированная выработка)+передача+сбыт"]
[80,"Город Боготол","Город Боготол","04706000","ООО «Теплоэнергетический комплекс» города Боготола","2444000486","244401001","производство (некомбинированная выработка)+передача+сбыт"]
[81,"Город Бородино","Город Бородино","04707000","ООО \"Бородинское Энергоуправление\"","2445002253","244501001","производство (некомбинированная выработка)+передача+сбыт"]
[82,"Город Бородино","Город Бородино","04707000","ООО \"Строительная компания\"","2452023938","245201001","производство (некомбинированная выработка)+передача+сбыт"]
[83,"Город Бородино","Город Бородино","04707000","Филиал ОАО «СУЭК-Красноярск» «Разрез Бородинский»","2466152267","244502001","Передача+Сбыт"]
[84,"Город Дивногорск","Город Дивногорск","04709000","МУП \"ЭС\" г.Дивногорск","2446001206","244601001","производство (некомбинированная выработка)+передача+сбыт"]
[85,"Город Дивногорск","Город Дивногорск","04709000","ОАО \"Дивногорские тепловые сети\"","2460237884","246001001","производство (некомбинированная выработка)+передача+сбыт"]
[86,"Город Дивногорск","Город Дивногорск","04709000","ОАО \"Енисейская ТГК (ТГК-13)\"","1901067718","997450001","Передача+Сбыт"]
[87,"Город Дивногорск","Город Дивногорск","04709000","ОАО \"Енисейская ТГК (ТГК-13)\"","1901067718","997450001","производство комбинированная выработка"]
[88,"Город Дивногорск","Город Дивногорск","04709000","ООО «Тепловая сбытовая компания плюс»","2446031539","244601001","Передача+Сбыт"]
[89,"Город Енисейск","Город Енисейск","04712000","МУП  \"Очистные сооружения\"","2447011172","244701001","производство (некомбинированная выработка)+передача+сбыт"]
[90,"Город Енисейск","Город Енисейск","04712000","ООО \"Красноярская региональная энергетическая компания\"","2466118202","246001001","производство (некомбинированная выработка)+передача+сбыт"]
[91,"Город Енисейск","Город Енисейск","04712000","ФБУ ОИУ-2 ОУХД ГУФСИН России по Красноярскому краю","2447004802","244701001","производство (некомбинированная выработка)+передача+сбыт"]
[92,"Город Канск","Город Канск","04720000","КГБУСО \"Канский психоневрологический интернат\"","2450003647","245001001","производство (некомбинированная выработка)+передача+сбыт"]
[93,"Город Канск","Город Канск","04720000","КрД по тепловодоснабжению - СП ЦД по тепловодоснабжению -филиал ОАО \"РЖД\"","7708503727","246645014","производство (некомбинированная выработка)+передача+сбыт"]
[94,"Город Канск","Город Канск","04720000","МУП \"Канский Электросетьсбыт\"","2450017488","245001001","Передача"]
[95,"Город Канск","Город Канск","04720000","ОАО \"Гортепло\"","2450018770","245001001","производство (некомбинированная выработка)+передача+сбыт"]
[96,"Город Канск","Город Канск","04720000","ОАО \"Енисейская ТГК (ТГК-13)\"","1901067718","997450001","производство комбинированная выработка"]
[97,"Город Канск","Город Канск","04720000","ОАО \"Енисейская ТГК (ТГК-13)\"","1901067718","997450001","Передача+Сбыт"]
[98,"Город Канск","Город Канск","04720000","ОАО \"Канская ТЭЦ\"","2460237891","246001001","производство комбинированная выработка"]
[99,"Город Канск","Город Канск","04720000","ОАО \"Канская ТЭЦ\"","2460237891","246001001","Передача+Сбыт"]
[100,"Город Канск","Город Канск","04720000","ОАО Красноярскнефтепродукт филиал Восточный","2460002949","246001001","производство (некомбинированная выработка)+передача+сбыт"]
[101,"Город Канск","Город Канск","04720000","ООО \"Канские тепловые сети\"","2450024460","246001001","Передача"]
[102,"Город Канск","Город Канск","04720000","ООО \"Тепло-Сбыт\"","2464242910","246401001","производство (некомбинированная выработка)+передача+сбыт"]
[103,"Город Канск","Город Канск","04720000","ООО Тепло-Сбыт-Сервис","2450012842","245001001","производство (некомбинированная выработка)+передача+сбыт"]
[104,"Город Красноярск","Город Красноярск","04701000","ЗАО  Сибирский ЭНТЦ","5407103263","246302001","производство (некомбинированная выработка)+сбыт"]
[105,"Город Красноярск","Город Красноярск","04701000","ЗАО «РН-Энергонефть»","7706184465","246543001","производство (некомбинированная выработка)+передача+сбыт"]
[106,"Город Красноярск","Город Красноярск","04701000","ИП Полынцев","246001293023","246001001","Передача"]
[107,"Город Красноярск","Город Красноярск","04701000","КрД по тепловодоснабжению - СП ЦД по тепловодоснабжению -филиал ОАО \"РЖД\"","7708503727","246645014","производство (некомбинированная выработка)+передача+сбыт"]
[108,"Город Красноярск","Город Красноярск","04701000","Красноярский научный центр СО РАН","2463002263","246301001","производство (некомбинированная выработка)+передача+сбыт"]
[109,"Город Красноярск","Город Красноярск","04701000","ОАО \"ДОЗ 2 и К\"","2462023422","246201001","Передача+Сбыт"]
[110,"Город Красноярск","Город Красноярск","04701000","ОАО \"Енисейская ТГК (ТГК-13)\"","1901067718","997450001","производство комбинированная выработка"]
[111,"Город Красноярск","Город Красноярск","04701000","ОАО \"Енисейская ТГК (ТГК-13)\"","1901067718","997450001","Передача+Сбыт"]
[112,"Город Красноярск","Город Красноярск","04701000","ОАО \"Красмаш\"","2462206345","246750001","производство (некомбинированная выработка)+передача+сбыт"]
[113,"Город Красноярск","Город Красноярск","04701000","ОАО \"Красноярская ТЭЦ-1\"","2460237926","246001001","производство комбинированная выработка"]
[114,"Город Красноярск","Город Красноярск","04701000","ОАО \"Красноярская теплотранспортная компания\"","2460237933","246001001","Передача+Сбыт"]
[115,"Город Красноярск","Город Красноярск","04701000","ОАО \"Красноярская электрокотельная\"","2460237845","246001001","производство (некомбинированная выработка)"]
[116,"Город Красноярск","Город Красноярск","04701000","ОАО \"Красноярский ЭВРЗ\"","2460083169","246001001","производство (некомбинированная выработка)+передача+сбыт"]
[117,"Город Красноярск","Город Красноярск","04701000","ОАО \"Красцветмет\"","2451000818","997550001","Передача"]
[118,"Город Красноярск","Город Красноярск","04701000","ОАО \"РЖД\"","7708503727","246602001","производство (некомбинированная выработка)+передача+сбыт"]
[119,"Город Красноярск","Город Красноярск","04701000","ОАО \"Транссибнефть\" филиал Красноярское РНУ","5502020634","246603001","производство (некомбинированная выработка)+передача+сбыт"]
[120,"Город Красноярск","Город Красноярск","04701000","ОАО Красноярскграфит","2464075377","246401001","производство (некомбинированная выработка)+передача+сбыт"]
[121,"Город Красноярск","Город Красноярск","04701000","ОАО ПО \"Красноярский завод комбайнов\"","2460053936","246750001","производство (некомбинированная выработка)+передача+сбыт"]
[122,"Город Красноярск","Город Красноярск","04701000","ОАО Санаторий Енисей","2463026779","246301001","производство (некомбинированная выработка)+передача+сбыт"]
[123,"Город Красноярск","Город Красноярск","04701000","ООО \"Делком\"","2465243176","246501001","Передача"]
[124,"Город Красноярск","Город Красноярск","04701000","ООО \"Коммерц Строй\"","2463050757","781101001","Передача+Сбыт"]
[125,"Город Красноярск","Город Красноярск","04701000","ООО \"КраМЗЭнерго\"","2465076373","246501001","производство (некомбинированная выработка)+передача+сбыт"]
[126,"Город Красноярск","Город Красноярск","04701000","ООО \"Крамз\"","2465043748","246501001","Передача"]
[127,"Город Красноярск","Город Красноярск","04701000","ООО \"КрасТЭК\"","2460062553","246601001","производство (некомбинированная выработка)+передача+сбыт"]
[128,"Город Красноярск","Город Красноярск","04701000","ООО \"Красноярская региональная энергетическая компания\"","2466118202","246001001","производство (некомбинированная выработка)+передача+сбыт"]
[129,"Город Красноярск","Город Красноярск","04701000","ООО \"Красноярский жилищно-коммунальный комплекс\"","2466114215","246750001","производство (некомбинированная выработка)+передача+сбыт"]
[130,"Город Красноярск","Город Красноярск","04701000","ООО \"Красноярский цемент\"","2464054271","246750001","Передача+Сбыт"]
[131,"Город Красноярск","Город Красноярск","04701000","ООО \"Новые технологии\"","2465218691","246501001","производство (некомбинированная выработка)+передача+сбыт"]
[132,"Город Красноярск","Город Красноярск","04701000","ООО \"ФармЭнерго\"","2464215761","246401001","производство (некомбинированная выработка)+передача+сбыт"]
[133,"Город Красноярск","Город Красноярск","04701000","ООО \"Шиноремонтный завод\"","2460044402","246001001","производство (некомбинированная выработка)+сбыт"]
[134,"Город Красноярск","Город Красноярск","04701000","ООО \"Электросан\"","2462003384","246201001","производство (некомбинированная выработка)+передача+сбыт"]
[135,"Город Красноярск","Город Красноярск","04701000","ООО \"Эликом\"","2465219085","246501001","Передача"]
[136,"Город Красноярск","Город Красноярск","04701000","ООО \"Энергоцентр\"","2464104691","246401001","производство (некомбинированная выработка)+передача+сбыт"]
[137,"Город Красноярск","Город Красноярск","04701000","ООО «Азимут»","2465239518","246501001","Передача"]
[138,"Город Красноярск","Город Красноярск","04701000","ООО «Крастерм»","2465260421","246501001","Передача"]
[139,"Город Красноярск","Город Красноярск","04701000","ООО «Орбита»","2466244101","246601001","производство (некомбинированная выработка)+передача+сбыт"]
[140,"Город Красноярск","Город Красноярск","04701000","ООО «Тепловая энергетическая компания»","2462206835","246201001","Передача+Сбыт"]
[141,"Город Красноярск","Город Красноярск","04701000","ООО Интек","2465219078","246501001","Передача"]
[142,"Город Красноярск","Город Красноярск","04701000","ООО Курорт Озеро Учум","2463061773","246301001","производство (некомбинированная выработка)+передача+сбыт"]
[143,"Город Красноярск","Город Красноярск","04701000","ООО СК \"Вектор\"","2465280548","246501001","Передача"]
[144,"Город Красноярск","Город Красноярск","04701000","Пассажирское  вагонное депо Красноярск Енисейского филиала открытого акционерного общества \"Федеральная  пассажирская компания\"","7708709686","246043001","производство (некомбинированная выработка)+передача+сбыт"]
[145,"Город Красноярск","Город Красноярск","04701000","ФГАОУ ВПО \"Сибирский федеральный университет\"","2463011853","246331001","производство (некомбинированная выработка)+передача+сбыт"]
[146,"Город Красноярск","Город Красноярск","04701000","ФГУ \"Красноярская квартирно-эксплуатационная часть района\" МО РФ","2465035000","246501001","производство (некомбинированная выработка)+передача+сбыт"]
[147,"Город Красноярск","Город Красноярск","04701000","ФГУП ПО Красноярский химический комбинат \"Енисей\"","2451000046","246201001","Передача"]
[148,"Город Красноярск","Город Красноярск","04701000","Филиал ОАО \"РЭУ\" \"Иркутский\"","7714783092","381143001","производство (некомбинированная выработка)+передача+сбыт"]
[149,"Город Лесосибирск","Город Лесосибирск","04722000","ЗАО \"Новоенисейский ЛХК\"","2454012346","245401001","производство (некомбинированная выработка)+передача+сбыт"]
[150,"Город Лесосибирск","Город Лесосибирск","04722000","ЗАО Лесосибирский ЛПК","2454002002","245401001","производство (некомбинированная выработка)+передача+сбыт"]
[151,"Город Лесосибирск","Город Лесосибирск","04722000","МУП \"ЖКХ г. Лесосибирска\"","2454017182","245401001","производство (некомбинированная выработка)+передача+сбыт"]
[152,"Город Лесосибирск","Город Лесосибирск","04722000","МУП \"ППЖКХ № 5 п. Стрелка\"","2454000661","245401001","производство (некомбинированная выработка)+передача+сбыт"]
[153,"Город Лесосибирск","Город Лесосибирск","04722000","ОАО \"Лесосибирский ЛДК-1\"","2454003302","245401001","производство (некомбинированная выработка)+передача+сбыт"]
[154,"Город Лесосибирск","Город Лесосибирск","04722000","ОАО Енисейская сплавная контора","2454003341","245401001","производство (некомбинированная выработка)+передача+сбыт"]
[155,"Город Лесосибирск","Город Лесосибирск","04722000","ООО \"ЖКХ ЛДК №1\"","2454022810","245401001","производство (некомбинированная выработка)+передача+сбыт"]
[156,"Город Минусинск","Город Минусинск","04723000","МУП г. Минусинска \"Минусинское городское хозяйство\"","2455029568","245501001","производство (некомбинированная выработка)+передача+сбыт"]
[157,"Город Минусинск","Город Минусинск","04723000","МУП города Минусинска \"Горводоканал\"","2455029945","245501001","производство (некомбинированная выработка)+передача+сбыт"]
[158,"Город Минусинск","Город Минусинск","04723000","ОАО \"Енисейская ТГК (ТГК-13)\"","1901067718","997450001","производство комбинированная выработка"]
[159,"Город Минусинск","Город Минусинск","04723000","ОАО \"Енисейская ТГК (ТГК-13)\"","1901067718","997450001","Передача+Сбыт"]
[160,"Город Минусинск","Город Минусинск","04723000","ООО \"Ермак\"","2455017724","245501001","Передача"]
[161,"Город Минусинск","Город Минусинск","04723000","ООО «Свет»","2455026165","245501001","производство (некомбинированная выработка)+передача+сбыт"]
[162,"Город Назарово","Город Назарово","04726000","ЗАО «Разрез Назаровский»","2456002745","245601001","производство (некомбинированная выработка)+передача+сбыт"]
[163,"Город Назарово","Город Назарово","04726000","ОАО \"Енисейская ТГК (ТГК-13)\"","1901067718","997450001","производство комбинированная выработка"]
[164,"Город Назарово","Город Назарово","04726000","ОАО \"Енисейская ТГК (ТГК-13)\"","1901067718","997450001","Передача+Сбыт"]
[165,"Город Назарово","Город Назарово","04726000","ОАО \"Назаровская ГРЭС\"","2460237901","246001001","производство комбинированная выработка"]
[166,"Город Назарово","Город Назарово","04726000","ОАО \"Назаровская ГРЭС\"","2460237901","246001001","Передача+Сбыт"]
[167,"Город Назарово","Город Назарово","04726000","ООО \"Горняк\"","2456003682","245601001","Передача+Сбыт"]
[168,"Город Назарово","Город Назарово","04726000","ООО \"Промтеплоэнерго\"","2456011468","245601001","производство (некомбинированная выработка)+передача+сбыт"]
[169,"Город Назарово","Город Назарово","04726000","ООО \"Тепло\"","2456010986","245601001","производство (некомбинированная выработка)+передача+сбыт"]
[170,"Город Норильск","Город Норильск","04729000","ЗАО \"Оганер-Комплекс\"","2457042370","245701001","Передача+Сбыт"]
[171,"Город Норильск","Город Норильск","04729000","МУП \"Канализационно-очистные сооружения\"","2457029066","245701001","Передача"]
[172,"Город Норильск","Город Норильск","04729000","ОАО \"Норильско-Таймырская энергетическая компания\"","2457058356","245701001","производство комбинированная выработка"]
[173,"Город Норильск","Город Норильск","04729000","ОАО \"Норильско-Таймырская энергетическая компания\"","2457058356","245701001","Передача+Сбыт"]
[174,"Город Норильск","Город Норильск","04729000","ООО  УК \"Энерготех\"","2457039314","245701001","Передача+Сбыт"]
[175,"Город Норильск","Город Норильск","04729000","ООО \"Аэропорт \"Норильск\"","2457067174","245701001","производство (некомбинированная выработка)+передача+сбыт"]
[176,"Город Норильск","Город Норильск","04729000","ООО \"Жилищный трест\"","2457055612","245701001","Передача+Сбыт"]
[177,"Город Норильск","Город Норильск","04729000","ООО \"НЖЭК\"","2457070804","245701001","Передача+Сбыт"]
[178,"Город Норильск","Город Норильск","04729000","ООО \"Нордсервис\"","2457046449","245701001","Передача+Сбыт"]
[179,"Город Норильск","Город Норильск","04729000","ООО \"Объединение коммунальников №1\"","2457046142","245701001","Передача+Сбыт"]
[180,"Город Норильск","Город Норильск","04729000","ООО \"СеверныйБыт\"","2457072713","245701001","Передача+Сбыт"]
[181,"Город Норильск","Город Норильск","04729000","ООО \"Талнахбыт\"","2457047435","245701001","Передача+Сбыт"]
[182,"Дзержинский район","Дзержинское","04613410","ООО \"Дзержинсккоммунсервис\"","2410000495","241001001","производство (некомбинированная выработка)+передача+сбыт"]
[183,"Дзержинский район","Дзержинское","04613410","ООО \"Новоком\"","2410004130","241001001","производство (некомбинированная выработка)+передача+сбыт"]
[184,"Дзержинский район","Дзержинское","04613410","ООО \"Электросеть\" с. Дзержинское","2410000946","241001001","производство (некомбинированная выработка)+передача+сбыт"]
[185,"Дзержинский район","Михайловское","04613419","КГБУ СО «Дзержинский психоневрологический интернат»","2410001361","241001001","производство (некомбинированная выработка)+передача+сбыт"]
[186,"Емельяновский муниципальный район","Еловское","04614413","МУП Емельяновского района \"Коммунальщик\"","2411013137","241101001","производство (некомбинированная выработка)+передача+сбыт"]
[187,"Емельяновский муниципальный район","Зеледеевское","04614418","КрД по тепловодоснабжению - СП ЦД по тепловодоснабжению -филиал ОАО \"РЖД\"","7708503727","246645014","производство (некомбинированная выработка)+передача+сбыт"]
[188,"Емельяновский муниципальный район","Мининское","04614428","КрД по тепловодоснабжению - СП ЦД по тепловодоснабжению -филиал ОАО \"РЖД\"","7708503727","246645014","производство (некомбинированная выработка)+передача+сбыт"]
[189,"Емельяновский муниципальный район","Мининское","04614428","МУП Емельяновского района \"Коммунальщик\"","2411013137","241101001","производство (некомбинированная выработка)+передача+сбыт"]
[190,"Емельяновский муниципальный район","Поселок Емельяново","04614151","ОАО \"Аэропорт Красноярск\"","2411017710","241101001","производство (некомбинированная выработка)+передача+сбыт"]
[191,"Емельяновский муниципальный район","Поселок Емельяново","04614151","ОАО Птицефабрика Заря","2411015247","241101001","производство (некомбинированная выработка)+передача+сбыт"]
[192,"Емельяновский муниципальный район","Поселок Емельяново","04614151","ООО \"Аэропорт Емельяново\"","2460213509","241101001","производство (некомбинированная выработка)+передача+сбыт"]
[193,"Емельяновский муниципальный район","Поселок Емельяново","04614151","ООО \"Теплогенерирующая компания Емельяново\"","2411021561","241101001","производство (некомбинированная выработка)+передача+сбыт"]
[194,"Емельяновский муниципальный район","Поселок Емельяново","04614151","ООО ПСК \"ПроектСтройСервис\"","2411017653","241101001","производство (некомбинированная выработка)+передача+сбыт"]
[195,"Емельяновский муниципальный район","Поселок Емельяново","04614151","ООО Производственно-коммерческая фирма \"Красэнергосервис\"","2466072734","246601001","производство (некомбинированная выработка)+передача+сбыт"]
[196,"Емельяновский муниципальный район","Солонцовское","04614437","МУП Администрации Солонцовского сельсовета \"Жилищно-коммунальный комплекс \"Солонцы\"","2411022967","241101001","производство (некомбинированная выработка)+передача+сбыт"]
[197,"Емельяновский муниципальный район","Тальское","04614440","МУП ТСА \"Коммунальное обслуживание\"","2411013056","241101001","производство (некомбинированная выработка)+передача+сбыт"]
[198,"Емельяновский муниципальный район","Устюгское","04614443","ООО \"ЖилКомСервис\"","2411019643","241101001","производство (некомбинированная выработка)+передача+сбыт"]
[199,"Емельяновский муниципальный район","Частоостровское","04614446","МУПЕР \"Частоостровское\"","2411013698","241101001","производство (некомбинированная выработка)+передача+сбыт"]
[200,"Емельяновский муниципальный район","Шуваевское","04614449","МУП \"ЖКС\" Шуваево","2411016628","241101001","производство (некомбинированная выработка)+передача+сбыт"]
[201,"Емельяновский муниципальный район","Шуваевское","04614449","ООО \"Региональная тепловая компания\"","2411014638","241101001","производство (некомбинированная выработка)+передача+сбыт"]
[202,"Емельяновский муниципальный район","Элитовское","04614404","МУП Емельяновского района \"Коммунальщик\"","2411013137","241101001","производство (некомбинированная выработка)+передача+сбыт"]
[203,"Енисейский муниципальный район","Абалаковское","04615402","ЗАО \"Енисейэнергоком\"","2447012176","244701001","производство (некомбинированная выработка)+передача+сбыт"]
[204,"Енисейский муниципальный район","Абалаковское","04615402","ОАО \"Красноярскнефтепродукт\" филиал \"Северный\"","2460002949","244701001","производство (некомбинированная выработка)+передача+сбыт"]
[205,"Енисейский муниципальный район","Верхнепашинское","04615407","ЗАО \"Енисейэнергоком\"","2447012176","244701001","производство (некомбинированная выработка)+передача+сбыт"]
[206,"Енисейский муниципальный район","Высокогорское","04615408","ЗАО \"Енисейэнергоком\"","2447012176","244701001","производство (некомбинированная выработка)+передача+сбыт"]
[207,"Енисейский муниципальный район","Городищенское","04615410","ЗАО \"Енисейэнергоком\"","2447012176","244701001","производство (некомбинированная выработка)+передача+сбыт"]
[208,"Енисейский муниципальный район","Епишинское","04615409","ЗАО \"Енисейэнергоком\"","2447012176","244701001","производство (некомбинированная выработка)+передача+сбыт"]
[209,"Енисейский муниципальный район","Кривлякское","04615412","ЗАО \"Енисейэнергоком\"","2447012176","244701001","производство (некомбинированная выработка)+передача+сбыт"]
[210,"Енисейский муниципальный район","Майское","04615418","ЗАО \"Енисейэнергоком\"","2447012176","244701001","производство (некомбинированная выработка)+передача+сбыт"]
[211,"Енисейский муниципальный район","Новоназимовское","04615425","ЗАО \"Енисейэнергоком\"","2447012176","244701001","производство (некомбинированная выработка)+передача+сбыт"]
[212,"Енисейский муниципальный район","Озерновское","04615439","ЗАО \"Енисейэнергоком\"","2447012176","244701001","производство (некомбинированная выработка)+передача+сбыт"]
[213,"Енисейский муниципальный район","Плотбищенское","04615440","ЗАО \"Енисейэнергоком\"","2447012176","244701001","производство (некомбинированная выработка)+передача+сбыт"]
[214,"Енисейский муниципальный район","Погодаевское","04615441","ЗАО \"Енисейэнергоком\"","2447012176","244701001","производство (некомбинированная выработка)+передача+сбыт"]
[215,"Енисейский муниципальный район","Поселок Подтесово","04615155","ЗАО \"Енисейэнергоком\"","2447012176","244701001","производство (некомбинированная выработка)+передача+сбыт"]
[216,"Енисейский муниципальный район","Потаповское","04615446","ЗАО \"Енисейэнергоком\"","2447012176","244701001","производство (некомбинированная выработка)+передача+сбыт"]
[217,"Енисейский муниципальный район","Усть-Кемское","04615452","ЗАО \"Енисейэнергоком\"","2447012176","244701001","производство (некомбинированная выработка)+передача+сбыт"]
[218,"Енисейский муниципальный район","Усть-Питское","04615455","ЗАО \"Енисейэнергоком\"","2447012176","244701001","производство (некомбинированная выработка)+передача+сбыт"]
[219,"Енисейский муниципальный район","Шапкинское","04615457","ЗАО \"Енисейэнергоком\"","2447012176","244701001","производство (некомбинированная выработка)+передача+сбыт"]
[220,"Енисейский муниципальный район","Ярцевское","04615458","ЗАО \"Енисейэнергоком\"","2447012176","244701001","производство (некомбинированная выработка)+передача+сбыт"]
[221,"Енисейский муниципальный район","Ярцевское","04615458","Ярцевский филиал ОАО \"Лесосибирский ЛДК 1\"","2454003302","244702002","производство (некомбинированная выработка)+передача+сбыт"]
[222,"Ермаковский муниципальный район","Верхнеусинское","04616404","ООО \"Квант\"","2413006431","241301001","производство (некомбинированная выработка)+передача+сбыт"]
[223,"Ермаковский муниципальный район","Григорьевское","04616407","ООО \"Квант\"","2413006431","241301001","производство (некомбинированная выработка)+передача+сбыт"]
[224,"Ермаковский муниципальный район","Ермаковский муниципальный район","04616000","ООО \"Квант\"","2413006431","241301001","производство (некомбинированная выработка)+передача+сбыт"]
[225,"Ермаковский муниципальный район","Ермаковское","04616410","ООО \"Квант\"","2413006431","241301001","производство (некомбинированная выработка)+передача+сбыт"]
[226,"Ермаковский муниципальный район","Ермаковское","04616410","ООО \"Тепловик 2\"","2413006167","241301001","производство (некомбинированная выработка)+передача+сбыт"]
[227,"Ермаковский муниципальный район","Ермаковское","04616410","ООО \"Топаз\"","2413006600","241301001","производство (некомбинированная выработка)+передача+сбыт"]
[228,"Ермаковский муниципальный район","Ивановское","04616414","ООО \"Квант\"","2413006431","241301001","производство (некомбинированная выработка)+передача+сбыт"]
[229,"Ермаковский муниципальный район","Мигнинское","04616416","ООО \"Квант\"","2413006431","241301001","производство (некомбинированная выработка)+передача+сбыт"]
[230,"Ермаковский муниципальный район","Нижнесуэтукское","04616419","ООО \"Квант\"","2413006431","241301001","производство (некомбинированная выработка)+передача+сбыт"]
[231,"Ермаковский муниципальный район","Новополтавское","04616422","ООО \"Квант\"","2413006431","241301001","производство (некомбинированная выработка)+передача+сбыт"]
[232,"Ермаковский муниципальный район","Ойское","04616428","ООО \"Квант\"","2413006431","241301001","производство (некомбинированная выработка)+передача+сбыт"]
[233,"Ермаковский муниципальный район","Разъезженское","04616425","ООО \"Квант\"","2413006431","241301001","производство (некомбинированная выработка)+передача+сбыт"]
[234,"Ермаковский муниципальный район","Салбинское","04616429","ООО \"Квант\"","2413006431","241301001","производство (некомбинированная выработка)+передача+сбыт"]
[235,"Ермаковский муниципальный район","Семенниковское","04616431","ООО \"Квант\"","2413006431","241301001","производство (некомбинированная выработка)+передача+сбыт"]
[236,"Ермаковский муниципальный район","Танзыбейское","04616434","МУП \"Стимул\"","2413007273","241301001","производство (некомбинированная выработка)+передача+сбыт"]
[237,"Ермаковский муниципальный район","Танзыбейское","04616434","ООО \"Квант\"","2413006431","241301001","производство (некомбинированная выработка)+передача+сбыт"]
[238,"ЗАТО г. Зеленогорск","ЗАТО г. Зеленогорск","04737000","МУП тепловых сетей г.Зеленогорска","2453000242","245301001","Передача+Сбыт"]
[239,"ЗАТО г. Зеленогорск","ЗАТО г. Зеленогорск","04737000","ОАО \"Управление строительства - 604\"","2453000901","245301001","производство (некомбинированная выработка)+передача+сбыт"]
[240,"ЗАТО г. Зеленогорск","ЗАТО г. Зеленогорск","04737000","ООО \"УЭС УС-604\"","2453016531","245301001","производство (некомбинированная выработка)+передача+сбыт"]
[241,"ЗАТО г. Зеленогорск","ЗАТО г. Зеленогорск","04737000","Филиал ОАО \"ОГК-6\"  Красноярская ГРЭС-2","6164232756","245302001","Передача+Сбыт"]
[242,"ЗАТО г. Зеленогорск","ЗАТО г. Зеленогорск","04737000","Филиал ОАО \"ОГК-6\"  Красноярская ГРЭС-2","6164232756","245302001","производство комбинированная выработка"]
[243,"ЗАТО г. Зеленогорск","ЗАТО г. Зеленогорск","04737000","Филиал ОАО «ОГК-2» - Красноярская ГРЭС-2","2607018122","245343001","производство комбинированная выработка"]
[244,"ЗАТО г. Зеленогорск","ЗАТО г. Зеленогорск","04737000","Филиал ОАО «ОГК-2» - Красноярская ГРЭС-2","2607018122","245343001","Передача+Сбыт"]
[245,"ЗАТО г.Железногорск","ЗАТО г.Железногорск","04735000","Красноярский филиал ОАО \"НИКИМТ-Атомстрой\"","7715719854","245243001","производство (некомбинированная выработка)+передача+сбыт"]
[246,"ЗАТО г.Железногорск","ЗАТО г.Железногорск","04735000","МП ЗАТО Железногорск \"Гортеплоэнерго\"","2452024096","245201001","производство (некомбинированная выработка)+передача+сбыт"]
[247,"ЗАТО г.Железногорск","ЗАТО г.Железногорск","04735000","ОАО \"ЕнисейАтомЭнергоСбыт\"","2452026696","245201001","производство (некомбинированная выработка)+передача+сбыт"]
[248,"ЗАТО г.Железногорск","ЗАТО г.Железногорск","04735000","ООО \"Промтехэнерго\"","2452028291","245201001","Передача+Сбыт"]
[249,"ЗАТО г.Железногорск","ЗАТО г.Железногорск","04735000","ООО \"Станция теплоснабжения\"","2452201637","245201001","производство (некомбинированная выработка)+передача+сбыт"]
[250,"ЗАТО г.Железногорск","ЗАТО г.Железногорск","04735000","ООО \"Технополис\"","2452026520","245201001","Передача+Сбыт"]
[251,"ЗАТО г.Железногорск","ЗАТО г.Железногорск","04735000","ФГУП \" Горно-химический комбинат\"","2452000401","245201001","производство (некомбинированная выработка)+передача+сбыт"]
[252,"ЗАТО п.Солнечный","ЗАТО п.Солнечный","04780000","МУП \"ЖКХ\" ЗАТО Солнечный","2439005538","243901001","производство (некомбинированная выработка)+передача+сбыт"]
[253,"ЗАТО п.Солнечный","ЗАТО п.Солнечный","04780000","ООО \"Красноярская региональная энергетическая компания\"","2466118202","246001001","производство (некомбинированная выработка)+передача+сбыт"]
[254,"Идринский муниципальный раойон","Идринское","04617422","ЗАО Заря","2414002623","241401001","производство (некомбинированная выработка)+передача+сбыт"]
[255,"Идринский муниципальный раойон","Идринское","04617422","ООО \"Коммунальщик\"","2414004116","241401001","производство (некомбинированная выработка)+передача+сбыт"]
[256,"Иланский муниципальный район","Ельниковское","04618404","МУПП \"Тайга\"","2415005049","241501001","производство (некомбинированная выработка)+передача+сбыт"]
[257,"Иланский муниципальный район","Ельниковское","04618404","ООО \"Красноярская региональная энергетическая компания\"","2466118202","246001001","производство (некомбинированная выработка)+передача+сбыт"]
[258,"Иланский муниципальный район","Карапсельское","04618407","ООО \"Красноярская региональная энергетическая компания\"","2466118202","246001001","производство (некомбинированная выработка)+передача+сбыт"]
[259,"Иланский муниципальный район","Новониколаевское","04618416","ООО \"Красноярская региональная энергетическая компания\"","2466118202","246001001","производство (некомбинированная выработка)+передача+сбыт"]
[260,"Иланский муниципальный район","Южно-Александровское","04618425","ООО \"Красноярская региональная энергетическая компания\"","2466118202","246001001","производство (некомбинированная выработка)+передача+сбыт"]
[261,"Иланский муниципальный район","г. Иланский","04618101","КрД по тепловодоснабжению - СП ЦД по тепловодоснабжению -филиал ОАО \"РЖД\"","7708503727","246645014","производство (некомбинированная выработка)+передача+сбыт"]
[262,"Иланский муниципальный район","г. Иланский","04618101","ООО \"ЖКХ\"","2415005384","241501001","Передача+Сбыт"]
[263,"Иланский муниципальный район","г. Иланский","04618101","ООО \"Красноярская региональная энергетическая компания\"","2466118202","246001001","производство (некомбинированная выработка)+передача+сбыт"]
[264,"Иланский муниципальный район","г. Иланский","04618101","ООО \"ТЭЖК\"","2415005391","241501001","производство (некомбинированная выработка)+передача+сбыт"]
[265,"Ирбейский муниципальный район","Верхнеуринское","04619407","ООО Совхоз Елисеевский","2416005771","241601001","производство (некомбинированная выработка)+передача+сбыт"]
[266,"Ирбейский муниципальный район","Ирбейское","04619413","Ирбейское РМУП ЖКХ","2416004471","241601001","производство (некомбинированная выработка)+передача+сбыт"]
[267,"Казачинский муниципальный район","Казачинское","04620413","ООО \"Казачинский теплоэнергокомплекс\"","2417002981","241701001","производство (некомбинированная выработка)+передача+сбыт"]
[268,"Канский муниципальный район","Анцирское","04621404","ООО Теплосервис","2450025753","245001001","производство (некомбинированная выработка)+передача+сбыт"]
[269,"Канский муниципальный район","Большеуринское","04621410","ЗАО \"Большеуринское\"","2450012828","245001001","производство (некомбинированная выработка)+передача+сбыт"]
[270,"Канский муниципальный район","Браженское","04621413","ООО \"Браженский ЖЭК\"","2450024090","245001001","производство (некомбинированная выработка)+передача+сбыт"]
[271,"Канский муниципальный район","Верх-Амонашенское","04621416","ООО \"ЖКС Чечеульский\"","2450024069","245001001","производство (некомбинированная выработка)+передача+сбыт"]
[272,"Канский муниципальный район","Мокрушинское","04621425","ЗАО Разрез Канский","2450024566","245001001","производство (некомбинированная выработка)+передача+сбыт"]
[273,"Канский муниципальный район","Сотниковское","04621434","ЗАО \"Арефьевское\"","2450012909","245001001","производство (некомбинированная выработка)+передача+сбыт"]
[274,"Канский муниципальный район","Сотниковское","04621434","ООО \"Коммунальщик\" Канский район","2450024774","245001001","производство (некомбинированная выработка)+передача+сбыт"]
[275,"Канский муниципальный район","Таеженское","04621436","ООО \"Таёжное\"","2450028715","245001001","производство (некомбинированная выработка)+передача+сбыт"]
[276,"Канский муниципальный район","Терское","04621437","ОАО Племзавод \"Красный Маяк\"","2450013518","245001001","производство (некомбинированная выработка)+передача+сбыт"]
[277,"Канский муниципальный район","Филимоновское","04621438","ОАО \"Филимоновский МКК\"","2418002889","245001001","производство (некомбинированная выработка)"]
[278,"Канский муниципальный район","Филимоновское","04621438","ООО \"ЖЭК Восточный\"","2450025665","245001001","производство (некомбинированная выработка)+передача+сбыт"]
[279,"Канский муниципальный район","Филимоновское","04621438","ООО \"Филимоновский жилищный комплекс\"","2450024012","245001001","Передача+Сбыт"]
[280,"Каратузский муниципальный район","Верхнекужебарское","04622404","ООО \"Каратузский Тепло Водо Канал\"","2419005466","241901001","производство (некомбинированная выработка)+передача+сбыт"]
[281,"Каратузский муниципальный район","Каратузский муниципальный район","04622000","ООО \"Каратузский Тепло Водо Канал\"","2419005466","241901001","производство (некомбинированная выработка)+передача+сбыт"]
[282,"Каратузский муниципальный район","Каратузское","04622407","ООО \"Каратузский Тепло Водо Канал\"","2419005466","241901001","производство (некомбинированная выработка)+передача+сбыт"]
[283,"Каратузский муниципальный район","Моторское","04622413","ООО \"Каратузский Тепло Водо Канал\"","2419005466","241901001","производство (некомбинированная выработка)+передача+сбыт"]
[284,"Каратузский муниципальный район","Нижнекужебарское","04622416","ООО \"Каратузский Тепло Водо Канал\"","2419005466","241901001","производство (некомбинированная выработка)+передача+сбыт"]
[285,"Каратузский муниципальный район","Таскинское","04622428","ООО \"Каратузский Тепло Водо Канал\"","2419005466","241901001","производство (некомбинированная выработка)+передача+сбыт"]
[286,"Каратузский муниципальный район","Уджейское","04622432","ООО \"Каратузский Тепло Водо Канал\"","2419005466","241901001","производство (некомбинированная выработка)+передача+сбыт"]
[287,"Каратузский муниципальный район","Черемушинское","04622434","ООО \"Каратузский Тепло Водо Канал\"","2419005466","241901001","производство (некомбинированная выработка)+передача+сбыт"]
[288,"Кежемский муниципальный район","Город Кодинск","04624101","Кодинское МУП ЖКХ Кежемского района","2420070117","242001001","Передача"]
[289,"Кежемский муниципальный район","Город Кодинск","04624101","ОАО \"Богучанская ГЭС\"","2420002597","246750001","производство (некомбинированная выработка)+передача+сбыт"]
[290,"Кежемский муниципальный район","Город Кодинск","04624101","ООО \"Красноярская региональная энергетическая компания\"","2466118202","246001001","производство (некомбинированная выработка)+передача+сбыт"]
[291,"Кежемский муниципальный район","Город Кодинск","04624101","ФБУ ОИУ-1 ОУХД ГУФСИН России по Красн краю","2420006496","242001001","производство (некомбинированная выработка)+передача+сбыт"]
[292,"Кежемский муниципальный район","Заледеевское","04624403","Кодинское МУП ЖКХ Кежемского района","2420070117","242001001","Передача"]
[293,"Кежемский муниципальный район","Заледеевское","04624403","ООО \"Красноярская региональная энергетическая компания\"","2466118202","246001001","производство (некомбинированная выработка)+передача+сбыт"]
[294,"Кежемский муниципальный район","Имбинское","04624406","Кодинское МУП ЖКХ Кежемского района","2420070117","242001001","Передача"]
[295,"Кежемский муниципальный район","Имбинское","04624406","ООО \"Красноярская региональная энергетическая компания\"","2466118202","246001001","производство (некомбинированная выработка)+передача+сбыт"]
[296,"Кежемский муниципальный район","Недокурское","04624407","Кодинское МУП ЖКХ Кежемского района","2420070117","242001001","Передача"]
[297,"Кежемский муниципальный район","Недокурское","04624407","ООО \"Красноярская региональная энергетическая компания\"","2466118202","246001001","производство (некомбинированная выработка)+передача+сбыт"]
[298,"Кежемский муниципальный район","Пановское","04624410","ФБУ ОИУ-8 ОУХД ГУФСИН России по Красноярскому краю","3817009542","241701001","производство (некомбинированная выработка)+передача+сбыт"]
[299,"Кежемский муниципальный район","Тагарское","04624412","ООО \"Красноярская региональная энергетическая компания\"","2466118202","246001001","производство (некомбинированная выработка)+передача+сбыт"]
[300,"Кежемский муниципальный район","Таежинское","04624416","ООО \"Красноярская региональная энергетическая компания\"","2466118202","246001001","производство (некомбинированная выработка)+передача+сбыт"]
[301,"Козульский муниципальный район","Лазурненское","04626409","ОАО \"Транссибнефть\" филиал Красноярское РНУ","5502020634","246603001","производство (некомбинированная выработка)+передача+сбыт"]
[302,"Козульский муниципальный район","Поселок Козулька","04626151","КрД по тепловодоснабжению - СП ЦД по тепловодоснабжению -филиал ОАО \"РЖД\"","7708503727","246645014","производство (некомбинированная выработка)+передача+сбыт"]
[303,"Козульский муниципальный район","Поселок Козулька","04626151","ООО \"Красноярская региональная энергетическая компания\"","2466118202","246001001","производство (некомбинированная выработка)+передача+сбыт"]
[304,"Козульский муниципальный район","Поселок Козулька","04626151","ООО \"Приоритет плюс\"","2421003681","242101001","производство (некомбинированная выработка)+передача+сбыт"]
[305,"Козульский муниципальный район","Поселок Козулька","04626151","ООО \"Прогресс\"","2421003674","242101001","производство (некомбинированная выработка)+передача+сбыт"]
[306,"Козульский муниципальный район","поселок Новочернореченский","04626154","КрД по тепловодоснабжению - СП ЦД по тепловодоснабжению -филиал ОАО \"РЖД\"","7708503727","246645014","производство (некомбинированная выработка)+передача+сбыт"]
[307,"Козульский муниципальный район","поселок Новочернореченский","04626154","ООО \"Красноярская региональная энергетическая компания\"","2466118202","246001001","производство (некомбинированная выработка)+передача+сбыт"]
[308,"Краснотуранский муниципальный район","Беллыкское","04628404","Краснотуранское РМПП ЖКХ","2422000884","242201001","производство (некомбинированная выработка)+передача+сбыт"]
[309,"Краснотуранский муниципальный район","Восточное","04628407","Краснотуранское РМПП ЖКХ","2422000884","242201001","производство (некомбинированная выработка)+передача+сбыт"]
[310,"Краснотуранский муниципальный район","Кортузское","04628411","Краснотуранское РМПП ЖКХ","2422000884","242201001","производство (некомбинированная выработка)+передача+сбыт"]
[311,"Краснотуранский муниципальный район","Краснотуранское","04628413","Краснотуранское РМПП ЖКХ","2422000884","242201001","производство (некомбинированная выработка)+передача+сбыт"]
[312,"Краснотуранский муниципальный район","Лебяженское","04628416","Краснотуранское РМПП ЖКХ","2422000884","242201001","производство (некомбинированная выработка)+передача+сбыт"]
[313,"Краснотуранский муниципальный район","Николаевка","04628400","Краснотуранское РМПП ЖКХ","2422000884","242201001","производство (некомбинированная выработка)+передача+сбыт"]
[314,"Краснотуранский муниципальный район","Новосыдинское","04628419","Краснотуранское РМПП ЖКХ","2422000884","242201001","производство (некомбинированная выработка)+передача+сбыт"]
[315,"Краснотуранский муниципальный район","Салбинское","04628421","Краснотуранское РМПП ЖКХ","2422000884","242201001","производство (некомбинированная выработка)+передача+сбыт"]
[316,"Краснотуранский муниципальный район","Саянское","04628425","Краснотуранское РМПП ЖКХ","2422000884","242201001","производство (некомбинированная выработка)+передача+сбыт"]
[317,"Краснотуранский муниципальный район","Тубинское","04628428","ЗАО \"Тубинск\"","2422392039","242201001","производство (некомбинированная выработка)+передача+сбыт"]
[318,"Курагинский муниципальный район","Березовское","04630404","ООО \"Марининский ЭнергоРесурс\"","2423010846","242301001","производство (некомбинированная выработка)+передача+сбыт"]
[319,"Курагинский муниципальный район","Брагинское","04630407","ООО \"Марининский ЭнергоРесурс\"","2423010846","242301001","производство (некомбинированная выработка)+передача+сбыт"]
[320,"Курагинский муниципальный район","Детловское","04630410","ООО \"Марининский ЭнергоРесурс\"","2423010846","242301001","производство (некомбинированная выработка)+передача+сбыт"]
[321,"Курагинский муниципальный район","Кочергинское","04630420","ООО \"Курагинский ЖилКомСервис\"","2423010821","242301001","производство (некомбинированная выработка)+передача+сбыт"]
[322,"Курагинский муниципальный район","Кочергинское","04630420","ФГУ \"Комбинат \"Ангара\" Росрезерва","2423005532","242301001","производство (некомбинированная выработка)+передача+сбыт"]
[323,"Курагинский муниципальный район","Курское","04630422","ООО \"Прогресс\"","2423013149","242301001","производство (некомбинированная выработка)+передача+сбыт"]
[324,"Курагинский муниципальный район","Марининское","04630413","ООО \"Марининский ЭнергоРесурс\"","2423010846","242301001","производство (некомбинированная выработка)+передача+сбыт"]
[325,"Курагинский муниципальный район","Поселок Кошурниково","04630153","ООО \"Кошурниковские Энергосети\"","2423013879","242301001","производство (некомбинированная выработка)+передача+сбыт"]
[326,"Курагинский муниципальный район","Поселок Кошурниково","04630153","ООО \"Краснокаменские энергосети\"","2423011350","242301001","производство (некомбинированная выработка)+передача+сбыт"]
[327,"Курагинский муниципальный район","Поселок Курагино","04630151","ООО \"Курагинский ТеплоВодоКанал\"","2423010726","242301001","производство (некомбинированная выработка)+передача+сбыт"]
[328,"Курагинский муниципальный район","Поселок Курагино","04630151","ООО Электросантехсервис","2423009417","242301001","производство (некомбинированная выработка)+сбыт"]
[329,"Курагинский муниципальный район","Черемшанкское","04630446","МП \"Забота\"","2423011198","242301001","производство (некомбинированная выработка)+передача+сбыт"]
[330,"Курагинский муниципальный район","Щетинкинское","04630452","ООО \"Прогресс\"","2423013149","242301001","производство (некомбинированная выработка)+передача+сбыт"]
[331,"Курагинский муниципальный район","город Артемовск","04630102","ООО \"Марининский ЭнергоРесурс\"","2423010846","242301001","производство (некомбинированная выработка)+передача+сбыт"]
[332,"Курагинский муниципальный район","поселок Большая Ирба","04630152","ООО \"Ирбинские энергосети\"","2423009921","242301001","производство (некомбинированная выработка)+передача+сбыт"]
[333,"Курагинский муниципальный район","поселок Краснокаменск","04630154","ООО \"Краснокаменские энергосети\"","2423011350","242301001","производство (некомбинированная выработка)+передача+сбыт"]
[334,"Курагинский муниципальный район","поселок Чибижек","04630156","ООО \"Марининский ЭнергоРесурс\"","2423010846","242301001","производство (некомбинированная выработка)+передача+сбыт"]
[335,"Манский муниципальный район","Выезжелогское","04631404","КрД по тепловодоснабжению - СП ЦД по тепловодоснабжению -филиал ОАО \"РЖД\"","7708503727","246645014","производство (некомбинированная выработка)+передача+сбыт"]
[336,"Манский муниципальный район","Камарчагское","04631407","КрД по тепловодоснабжению - СП ЦД по тепловодоснабжению -филиал ОАО \"РЖД\"","7708503727","246645014","производство (некомбинированная выработка)+передача+сбыт"]
[337,"Манский муниципальный район","Камарчагское","04631407","МУП ЖКХ Нижне-Есауловское","2424006715","242401001","производство (некомбинированная выработка)+передача+сбыт"]
[338,"Манский муниципальный район","Камарчагское","04631407","ООО \"Жилфонд\"","2424006842","242401001","производство (некомбинированная выработка)+передача+сбыт"]
[339,"Манский муниципальный район","Камарчагское","04631407","ООО «Атланта Красноярск»","2466226279","246601001","производство (некомбинированная выработка)+передача+сбыт"]
[340,"Манский муниципальный район","Каменское","04631408","МУП ЖКХ Нижне-Есауловское","2424006715","242401001","производство (некомбинированная выработка)+передача+сбыт"]
[341,"Манский муниципальный район","Колбинское","04631413","МУП \"Колбинское ЖКХ\"","2424007162","242401001","производство (некомбинированная выработка)+передача+сбыт"]
[342,"Манский муниципальный район","Нарвинское","04631416","ООО «Манский механический завод»","2424006793","242401001","производство (некомбинированная выработка)+передача+сбыт"]
[343,"Манский муниципальный район","Первоманское","04631421","ООО \"Жилпрогресс\"","2465209048","242401001","производство (некомбинированная выработка)+передача+сбыт"]
[344,"Манский муниципальный район","Унгутское","04631434","ООО \"Унгутский ЖКУ\"","2424003760","242401001","производство (некомбинированная выработка)+передача+сбыт"]
[345,"Манский муниципальный район","Шалинское","04631437","ООО \"Коммунальное хозяйство\"","2424005824","242401001","производство (некомбинированная выработка)+передача+сбыт"]
[346,"Минусинский муниципальный район","Большеничкинское","04633404","ООО \"ЖКХ\" Минусинский район","2455026020","245501001","производство (некомбинированная выработка)+передача+сбыт"]
[347,"Минусинский муниципальный район","Городокское","04633410","ООО \"ЖКХ\" Минусинский район","2455026020","245501001","производство (некомбинированная выработка)+передача+сбыт"]
[348,"Минусинский муниципальный район","Жерлыкское","04633412","ООО \"ЖКХ\" Минусинский район","2455026020","245501001","производство (некомбинированная выработка)+передача+сбыт"]
[349,"Минусинский муниципальный район","Знаменское","04633413","ООО \"ЖКХ\" Минусинский район","2455026020","245501001","производство (некомбинированная выработка)+передача+сбыт"]
[350,"Минусинский муниципальный район","Кавказское","04633416","ООО \"ЖКХ\" Минусинский район","2455026020","245501001","производство (некомбинированная выработка)+передача+сбыт"]
[351,"Минусинский муниципальный район","Лугавское","04633420","ООО \"ЖКХ\" Минусинский район","2455026020","245501001","производство (некомбинированная выработка)+передача+сбыт"]
[352,"Минусинский муниципальный район","Маломинусинское","04633422","ООО \"ЖКХ\" Минусинский район","2455026020","245501001","производство (некомбинированная выработка)+передача+сбыт"]
[353,"Минусинский муниципальный район","Минусинский муниципальный район","04633000","ООО \"ЖКХ\" Минусинский район","2455026020","245501001","производство (некомбинированная выработка)+передача+сбыт"]
[354,"Минусинский муниципальный район","Новотроицкое","04633426","ООО \"ЖКХ\" Минусинский район","2455026020","245501001","производство (некомбинированная выработка)+передача+сбыт"]
[355,"Минусинский муниципальный район","Прихолмское","04633423","ООО \"ЖКХ\" Минусинский район","2455026020","245501001","производство (некомбинированная выработка)+передача+сбыт"]
[356,"Минусинский муниципальный район","Селиванихинское","04633424","ООО \"ЖКХ\" Минусинский район","2455026020","245501001","производство (некомбинированная выработка)+передача+сбыт"]
[357,"Минусинский муниципальный район","Тесинское","04633402","ОАО \"Енисейская ТГК (ТГК-13)\"","1901067718","997450001","производство комбинированная выработка"]
[358,"Минусинский муниципальный район","Тесинское","04633402","ОАО \"Енисейская ТГК (ТГК-13)\"","1901067718","997450001","Передача+Сбыт"]
[359,"Минусинский муниципальный район","Тесинское","04633402","ОАО \"Южно-Енисейские тепловые сети\"","2460237860","246001001","производство (некомбинированная выработка)+передача+сбыт"]
[360,"Минусинский муниципальный район","Тесинское","04633402","ООО \"ЖКХ\" Минусинский район","2455026020","245501001","производство (некомбинированная выработка)+передача+сбыт"]
[361,"Минусинский муниципальный район","Тигрицкое","04633425","ООО \"ЖКХ\" Минусинский район","2455026020","245501001","производство (некомбинированная выработка)+передача+сбыт"]
[362,"Мотыгинский муниципальный район","Машуковское","04635410","МУП ЖКХ Машуковский","2426004128","242601001","производство (некомбинированная выработка)+передача+сбыт"]
[363,"Мотыгинский муниципальный район","Новоангарское","04635412","ООО УК Сервис","2426004826","242601001","производство (некомбинированная выработка)+передача+сбыт"]
[364,"Мотыгинский муниципальный район","Орджоникидзевское","04635413","ООО Ритм","2426003780","242601001","производство (некомбинированная выработка)+передача+сбыт"]
[365,"Мотыгинский муниципальный район","поселок Мотыгино","04635151","ООО \"Первомайское ЖКХ\"","2426003903","242601001","производство (некомбинированная выработка)+передача+сбыт"]
[366,"Мотыгинский муниципальный район","поселок Мотыгино","04635151","ООО \"УК Комплекс\"","2426004287","242601001","производство (некомбинированная выработка)+передача+сбыт"]
[367,"Мотыгинский муниципальный район","поселок Мотыгино","04635151","ООО \"Универсал\"","2426003685","242601001","производство (некомбинированная выработка)+передача+сбыт"]
[368,"Мотыгинский муниципальный район","поселок Мотыгино","04635151","ООО Мотыгинский водоканал","2426004329","242601001","производство (некомбинированная выработка)+передача+сбыт"]
[369,"Мотыгинский муниципальный район","поселок Раздолинск","04635154","ООО \"Энергия\"","2426004713","242601001","производство (некомбинированная выработка)+передача+сбыт"]
[370,"Мотыгинский муниципальный район","поселок Южно-Енисейск","04635157","ООО \"Теплосети\"","2426004294","242601001","производство (некомбинированная выработка)+передача+сбыт"]
[371,"Назаровский муниципальный район","Гляденское","04637407","КрД по тепловодоснабжению - СП ЦД по тепловодоснабжению -филиал ОАО \"РЖД\"","7708503727","246645014","производство (некомбинированная выработка)+передача+сбыт"]
[372,"Назаровский муниципальный район","Гляденское","04637407","ООО \"Районное коммунальное хозяйство\" Назаровского района","2456013264","245601001","производство (некомбинированная выработка)+передача+сбыт"]
[373,"Назаровский муниципальный район","Дороховское","04637410","МУП \"ЖКХ Назаровского района\"","2456009853","245601001","производство (некомбинированная выработка)+передача+сбыт"]
[374,"Назаровский муниципальный район","Краснополянское","04637431","ООО \"Районное коммунальное хозяйство\" Назаровского района","2456013264","245601001","производство (некомбинированная выработка)+передача+сбыт"]
[375,"Назаровский муниципальный район","Красносопкинское","04637413","МУП \"Красносопкинское ЖКХ\"","2456009998","245601001","производство (некомбинированная выработка)+передача+сбыт"]
[376,"Назаровский муниципальный район","Павловское","04637419","МУП \"ЖКХ Назаровского района\"","2456009853","245601001","производство (некомбинированная выработка)+передача+сбыт"]
[377,"Назаровский муниципальный район","Подсосенское","04637422","МУП \"ЖКХ Назаровского района\"","2456009853","245601001","производство (некомбинированная выработка)+передача+сбыт"]
[378,"Назаровский муниципальный район","Преображенское","04637425","МУП \"ЖКХ Назаровского района\"","2456009853","245601001","производство (некомбинированная выработка)+передача+сбыт"]
[379,"Назаровский муниципальный район","Преображенское","04637425","СХП ЗАО \"Владимировское\"","2427000567","245601001","производство (некомбинированная выработка)"]
[380,"Назаровский муниципальный район","Сахаптинское","04637428","МУП \"Сахаптинское ЖКХ\"","2456011683","245601001","производство (некомбинированная выработка)+передача+сбыт"]
[381,"Назаровский муниципальный район","Степное","04637437","ЗАО \"Назаровское\"","2427000415","245601001","производство (некомбинированная выработка)+передача+сбыт"]
[382,"Нижнеингашский муниципальный район","Канифольнинское","04639410","ООО \"Канифольнинский коммунальный комплекс\"","2428004780","242801001","производство (некомбинированная выработка)+передача+сбыт"]
[383,"Нижнеингашский муниципальный район","Поселок Нижняя Пойма","04639154","МУП \"Сибсервис\"","2428005222","242801001","производство (некомбинированная выработка)+передача+сбыт"]
[384,"Нижнеингашский муниципальный район","Поселок Нижняя Пойма","04639154","Решотинский шпалопропиточный завод - филиал ОАО \"ТрансВудСервис\"","7708503727","246631008","производство (некомбинированная выработка)+передача+сбыт"]
[385,"Нижнеингашский муниципальный район","Поселок Тинской","04639160","ООО \"Велес\"","2428004469","242801001","производство (некомбинированная выработка)+передача+сбыт"]
[386,"Нижнеингашский муниципальный район","Тинское","04639440","ООО Красэкспортлес","2465072354","246501001","производство (некомбинированная выработка)+передача+сбыт"]
[387,"Нижнеингашский муниципальный район","поселок Нижний Ингаш","04639151","МУЗ Нижнеингашская ЦРБ","2428001700","242801001","производство (некомбинированная выработка)+передача+сбыт"]
[388,"Нижнеингашский муниципальный район","поселок Нижний Ингаш","04639151","ООО \"Нижнеингашский коммунальный комплекс\"","2428004331","242801001","производство (некомбинированная выработка)+передача+сбыт"]
[389,"Новоселовский муниципальный район","Анашенское","04641402","ООО \"Анашенский тепловодоканал\"","2429002785","242901001","производство (некомбинированная выработка)+передача+сбыт"]
[390,"Новоселовский муниципальный район","Новоселовское","04641409","ООО \"Тепловые сети\"","2429002810","242901001","производство (некомбинированная выработка)+передача+сбыт"]
[391,"Новоселовский муниципальный район","Светлолобовское","04641410","МУП \"Коммунальщик\"","2429002760","242901001","производство (некомбинированная выработка)+передача+сбыт"]
[392,"Новоселовский муниципальный район","Толстомысинское","04641413","МУП \"Толстомысенское ПП ЖКХ\"","2429002263","242901001","производство (некомбинированная выработка)+передача+сбыт"]
[393,"Партизанский муниципальный район","Имбежское","04643410","ООО \"Имбеж\"","2430003173","243001001","производство (некомбинированная выработка)+передача+сбыт"]
[394,"Партизанский муниципальный район","Минское","04643419","ООО \"Саяны\"","2430003215","243001001","производство (некомбинированная выработка)+передача+сбыт"]
[395,"Партизанский муниципальный район","Партизанское","04643422","ООО \"Ритм\"","2430003247","243001001","производство (некомбинированная выработка)+передача+сбыт"]
[396,"Пировский муниципальный район","Кетское","04645417","ООО \"Стратегия Норд\"","2454017506","245401001","производство (некомбинированная выработка)+передача+сбыт"]
[397,"Пировский муниципальный район","Пировский муниципальный район","04645000","ООО \"Стратегия Норд\"","2454017506","245401001","производство (некомбинированная выработка)+передача+сбыт"]
[398,"Пировский муниципальный район","Пировское","04645425","ООО \"Стратегия Норд\"","2454017506","245401001","производство (некомбинированная выработка)+передача+сбыт"]
[399,"Поселок Кедровый","Поселок Кедровый","04775000","ООО \"Кедр\"","2411021113","241101001","производство (некомбинированная выработка)+передача+сбыт"]
[400,"Поселок Кедровый","Поселок Кедровый","04775000","ООО \"Красноярская региональная энергетическая компания\"","2466118202","246001001","производство (некомбинированная выработка)+передача+сбыт"]
[401,"Рыбинский муниципальный район","Город Заозерный","04647101","ООО \"Красноярская региональная энергетическая компания\"","2466118202","246001001","производство (некомбинированная выработка)+передача+сбыт"]
[402,"Рыбинский муниципальный район","Город Заозерный","04647101","ООО Рыбинский КК","2448005277","244801001","производство (некомбинированная выработка)+передача+сбыт"]
[403,"Рыбинский муниципальный район","Новосолянское","04647434","КрД по тепловодоснабжению - СП ЦД по тепловодоснабжению -филиал ОАО \"РЖД\"","7708503727","246645014","производство (некомбинированная выработка)+передача+сбыт"]
[404,"Рыбинский муниципальный район","Новосолянское","04647434","ООО ЖКК Солянский","2448005206","244801001","производство (некомбинированная выработка)+передача+сбыт"]
[405,"Рыбинский муниципальный район","Поселок Саянский","04647160","КрД по тепловодоснабжению - СП ЦД по тепловодоснабжению -филиал ОАО \"РЖД\"","7708503727","246645014","производство (некомбинированная выработка)+передача+сбыт"]
[406,"Рыбинский муниципальный район","Поселок Саянский","04647160","ООО \"ЖКС\" п. Саянский","2448004273","244801001","производство (некомбинированная выработка)+передача+сбыт"]
[407,"Рыбинский муниципальный район","Поселок Урал","04647165","ООО \"Строительная компания\"","2452023938","245201001","производство (некомбинированная выработка)+передача+сбыт"]
[408,"Рыбинский муниципальный район","Поселок Урал","04647165","ООО \"Уральские тепловые сети\"","2448004562","244801001","производство (некомбинированная выработка)+передача+сбыт"]
[409,"Рыбинский муниципальный район","поселок Ирша","04647155","ООО \"Строительная компания\"","2452023938","245201001","производство (некомбинированная выработка)+передача+сбыт"]
[410,"Саянский муниципальный район","Агинское","04648402","МУП УК ЖКХ \"Агинское\"","2433004168","243301001","производство (некомбинированная выработка)+сбыт"]
[411,"Саянский муниципальный район","Агинское","04648402","ООО \"Фиштраст\"","2433003862","243301001","производство (некомбинированная выработка)+передача+сбыт"]
[412,"Саянский муниципальный район","Агинское","04648402","ООО Агрокомплект","2465273090","246501001","производство (некомбинированная выработка)+передача+сбыт"]
[413,"Саянский муниципальный район","Агинское","04648402","ООО Коммунальщик Саянский район","2433003848","243301001","производство (некомбинированная выработка)+передача+сбыт"]
[414,"Саянский муниципальный район","Кулижниковское","04648419","ООО Агрокомплект","2465273090","246501001","производство (некомбинированная выработка)+передача+сбыт"]
[415,"Саянский муниципальный район","Саянский муниципальный район","04648000","ООО Агрокомплект","2465273090","246501001","производство (некомбинированная выработка)+передача+сбыт"]
[416,"Саянский муниципальный район","Тугачинское","04648437","ООО Агрокомплект","2465273090","246501001","производство (некомбинированная выработка)+передача+сбыт"]
[417,"Саянский муниципальный район","Унерское","04648440","ООО Агрокомплект","2465273090","246501001","производство (некомбинированная выработка)+передача+сбыт"]
[418,"Северо-Енисейский муниципальный район","Поселок Северо-Енисейский","04649151","МУП \"УКК\" Северо-Енисейского района\"","2434001177","243401001","производство (некомбинированная выработка)+передача+сбыт"]
[419,"Сухобузимский муниципальный район","Атамановское","04651402","ЗАО \"Племзавод \"Таежный\"","2435003949","243501001","производство (некомбинированная выработка)+передача+сбыт"]
[420,"Сухобузимский муниципальный район","Атамановское","04651402","ООО \"Красноярская региональная энергетическая компания\"","2466118202","246001001","производство (некомбинированная выработка)+передача+сбыт"]
[421,"Сухобузимский муниципальный район","Борское","04651425","ГСХУ УОХ \"Миндерлинское\"","2435004702","243501001","производство (некомбинированная выработка)+передача+сбыт"]
[422,"Сухобузимский муниципальный район","Борское","04651425","ООО \"Красноярская региональная энергетическая компания\"","2466118202","246001001","производство (некомбинированная выработка)+передача+сбыт"]
[423,"Сухобузимский муниципальный район","Высотинское","04651407","ООО \"Красноярская региональная энергетическая компания\"","2466118202","246001001","производство (некомбинированная выработка)+передача+сбыт"]
[424,"Сухобузимский муниципальный район","Высотинское","04651407","ООО Птицефабрика \"Индюшкино\"","2435005978","243501001","производство (некомбинированная выработка)+передача+сбыт"]
[425,"Сухобузимский муниципальный район","Кононовское","04651410","ООО \"Красноярская региональная энергетическая компания\"","2466118202","246001001","производство (некомбинированная выработка)+передача+сбыт"]
[426,"Сухобузимский муниципальный район","Миндерлинское","04651413","ООО \"Красноярская региональная энергетическая компания\"","2466118202","246001001","производство (некомбинированная выработка)+передача+сбыт"]
[427,"Сухобузимский муниципальный район","Миндерлинское","04651413","ООО Птицефабрика \"Индюшкино\"","2435005978","243501001","производство (некомбинированная выработка)+передача+сбыт"]
[428,"Сухобузимский муниципальный район","Нахвальское","04651416","ООО \"Красноярская региональная энергетическая компания\"","2466118202","246001001","производство (некомбинированная выработка)+передача+сбыт"]
[429,"Сухобузимский муниципальный район","Подсопочное","04651419","ООО \"Красноярская региональная энергетическая компания\"","2466118202","246001001","производство (некомбинированная выработка)+передача+сбыт"]
[430,"Сухобузимский муниципальный район","Сухобузимское","04651422","ООО \"Красноярская региональная энергетическая компания\"","2466118202","246001001","производство (некомбинированная выработка)+передача+сбыт"]
[431,"Сухобузимский муниципальный район","Сухобузимское","04651422","ООО Птицефабрика \"Индюшкино\"","2435005978","243501001","производство (некомбинированная выработка)+передача+сбыт"]
[432,"Сухобузимский муниципальный район","Шилинское","04651428","ООО Шилинское коммунальное хозяйство","2435005671","243501001","производство (некомбинированная выработка)+передача+сбыт"]
[433,"Таймырский (Долгано-Ненецкий) муниципальный район","Диксон","04811151","ООО \"Таймырская энергетическая компания\"","2469001523","246901001","производство (некомбинированная выработка)+передача+сбыт"]
[434,"Таймырский (Долгано-Ненецкий) муниципальный район","Дудинка","04811121","ОАО \"Таймырбыт\"","8401011170","840101001","Передача+Сбыт"]
[435,"Таймырский (Долгано-Ненецкий) муниципальный район","Дудинка","04811121","ОАО \"Таймыргеофизика\"","8400000578","840101001","производство (некомбинированная выработка)+передача+сбыт"]
[436,"Таймырский (Долгано-Ненецкий) муниципальный район","Дудинка","04811121","ОАО \"Хантайское\"","8401010956","840101001","производство (некомбинированная выработка)+передача+сбыт"]
[437,"Таймырский (Долгано-Ненецкий) муниципальный район","Дудинка","04811121","ООО \"Потапово\"","8401009157","840101001","производство (некомбинированная выработка)+передача+сбыт"]
[438,"Таймырский (Долгано-Ненецкий) муниципальный район","Караул","04811417","МУП сельского поселения Караул \"Коммунальщик\"","8404010136","840401001","производство (некомбинированная выработка)+передача+сбыт"]
[439,"Таймырский (Долгано-Ненецкий) муниципальный район","Караул","04811417","ОАО \"Норильскгазпром\"","2457002628","245701001","производство (некомбинированная выработка)+передача+сбыт"]
[440,"Таймырский (Долгано-Ненецкий) муниципальный район","Носок","04811400","МУП сельского поселения Караул \"Коммунальщик\"","8404010136","840401001","производство (некомбинированная выработка)+передача+сбыт"]
[441,"Таймырский (Долгано-Ненецкий) муниципальный район","Хатанга","04811419","МУП \"ЖКХ\" сельского поселения Хатанга","2469012194","246901001","производство (некомбинированная выработка)+передача+сбыт"]
[442,"Таймырский (Долгано-Ненецкий) муниципальный район","Хатанга","04811419","ОАО \"Полярная геологоразведочная экспедиция\"","2469001756","246901001","производство (некомбинированная выработка)+передача+сбыт"]
[443,"Таймырский (Долгано-Ненецкий) муниципальный район","Хатанга","04811419","ООО \"Таймырская энергетическая компания\"","2469001523","246901001","производство (некомбинированная выработка)+передача+сбыт"]
[444,"Тасеевский муниципальный район","Тасеевское","04652416","ООО \"Коммунальщик\"","2436004254","243601001","производство (некомбинированная выработка)+передача+сбыт"]
[445,"Туруханский муниципальный район","Борское","04654404","ОАО \"Туруханскэнерго\"","2437004384","243701001","производство (некомбинированная выработка)+передача+сбыт"]
[446,"Туруханский муниципальный район","Верхнеимбатское","04654410","ОАО \"Туруханскэнерго\"","2437004384","243701001","производство (некомбинированная выработка)+передача+сбыт"]
[447,"Туруханский муниципальный район","Вороговское","04654413","ОАО \"Туруханскэнерго\"","2437004384","243701001","производство (некомбинированная выработка)+передача+сбыт"]
[448,"Туруханский муниципальный район","Город Игарка","04654117","ОАО \"Энергопром\"","2466212734","243701001","производство (некомбинированная выработка)+передача+сбыт"]
[449,"Туруханский муниципальный район","Зотинское","04654417","ОАО \"Туруханскэнерго\"","2437004384","243701001","производство (некомбинированная выработка)+передача+сбыт"]
[450,"Туруханский муниципальный район","Туруханское","04654434","ОАО \"Туруханскэнерго\"","2437004384","243701001","производство (некомбинированная выработка)+передача+сбыт"]
[451,"Туруханский муниципальный район","поселок Светлогорск","04654156","ОАО \"Норильско-Таймырская энергетическая компания\"","2457058356","245701001","производство комбинированная выработка"]
[452,"Туруханский муниципальный район","поселок Светлогорск","04654156","ОАО \"Норильско-Таймырская энергетическая компания\"","2457058356","245701001","Передача+Сбыт"]
[453,"Тюхтетский муниципальный район","Тюхтетское","04655425","ООО \"Коммунальщик\" Тюхтетский район","2438301020","243801001","производство (некомбинированная выработка)+передача+сбыт"]
[454,"Ужурский муниципальный район","Город Ужур","04656101","ЗАО \"Искра\"","2439001597","243901001","производство (некомбинированная выработка)+передача+сбыт"]
[455,"Ужурский муниципальный район","Город Ужур","04656101","КрД по тепловодоснабжению - СП ЦД по тепловодоснабжению -филиал ОАО \"РЖД\"","7708503727","246645014","производство (некомбинированная выработка)+передача+сбыт"]
[456,"Ужурский муниципальный район","Город Ужур","04656101","ООО \"Ужурское ЖКХ\"","2439006394","243901001","производство (некомбинированная выработка)+передача+сбыт"]
[457,"Ужурский муниципальный район","Златоруновское","04656431","ООО \"Исток\"","2439007743","243901001","производство (некомбинированная выработка)+передача+сбыт"]
[458,"Ужурский муниципальный район","Крутоярское","04656410","ООО\"Крутояртеплосервис\"","2439007817","243901001","производство (некомбинированная выработка)+передача+сбыт"]
[459,"Ужурский муниципальный район","Озероучумское","04656423","ООО \"ТСК \"Озеро Учум\"","2463076628","243901001","производство (некомбинированная выработка)+передача+сбыт"]
[460,"Ужурский муниципальный район","Приреченское","04656429","ООО\"Крутояртеплосервис\"","2439007817","243901001","производство (некомбинированная выработка)+передача+сбыт"]
[461,"Ужурский муниципальный район","Солгонское","04656425","ООО \"Ужурское ЖКХ\"","2439006394","243901001","производство (некомбинированная выработка)+передача+сбыт"]
[462,"Уярский муниципальный район","Авдинское","04657402","ООО \"СЖКХ\"","2440006423","244001001","производство (некомбинированная выработка)+передача+сбыт"]
[463,"Уярский муниципальный район","Город Уяр","04657101","КрД по тепловодоснабжению - СП ЦД по тепловодоснабжению -филиал ОАО \"РЖД\"","7708503727","246645014","производство (некомбинированная выработка)+передача+сбыт"]
[464,"Уярский муниципальный район","Город Уяр","04657101","МУП \"Городское коммунальное хозяйство\"","2440006462","244001001","производство (некомбинированная выработка)+передача+сбыт"]
[465,"Уярский муниципальный район","Город Уяр","04657101","ОАО \"Транссибнефть\" филиал Красноярское РНУ","5502020634","246603001","производство (некомбинированная выработка)+передача+сбыт"]
[466,"Уярский муниципальный район","Город Уяр","04657101","ООО \"Кедр\"","2440006712","244001001","производство (некомбинированная выработка)+передача+сбыт"]
[467,"Уярский муниципальный район","Громадское","04657408","ФБУ «ИК-16 ГУФСИН России по Красноярскому краю»","2440004602","244001001","производство (некомбинированная выработка)+передача+сбыт"]
[468,"Уярский муниципальный район","Сушиновское","04657417","ООО \"СЖКО Феникс\"","2440003849","244001001","производство (некомбинированная выработка)+передача+сбыт"]
[469,"Шарыпово","Шарыпово","04740000","Закрытое акционерное общество «Разрез Березовский»","2459018895","245901001","производство (некомбинированная выработка)+передача+сбыт"]
[470,"Шарыпово","Шарыпово","04740000","Филиал ОАО «Э.ОН Россия» «Тепловые сети Березовской ГРЭС»","8602067092","245902001","Передача+Сбыт"]
[471,"Шарыповский муниципальный район","Березовское","04658403","ООО \"РемСтройСервис\"","2459013270","245901001","производство (некомбинированная выработка)+передача+сбыт"]
[472,"Шарыповский муниципальный район","Ивановское","04658408","ООО \"Золотой век\"","2459010960","245901001","производство (некомбинированная выработка)+передача+сбыт"]
[473,"Шарыповский муниципальный район","Новоалтатское","04658411","ООО \"РемСтройСервис\"","2459013270","245901001","производство (некомбинированная выработка)+передача+сбыт"]
[474,"Шарыповский муниципальный район","Родниковское","04658415","ООО \"РемСтройСервис\"","2459013270","245901001","производство (некомбинированная выработка)+передача+сбыт"]
[475,"Шарыповский муниципальный район","Холмогорское","04658420","ОАО \"Э.ОН Россия\"","8602067092","245902002","производство комбинированная выработка"]
[476,"Шарыповский муниципальный район","Холмогорское","04658420","ОАО \"Э.ОН Россия\"","8602067092","245902002","Передача+Сбыт"]
[477,"Шушенский муниципальный район","Иджинское","04659403","МУП \"Шушенские ТЭС\"","2442000890","244201001","производство (некомбинированная выработка)+передача+сбыт"]
[478,"Шушенский муниципальный район","Ильичевское","04659405","МУП \"Водоканал\" Ильичевского  сельсовета","2442011436","244201001",""]
[479,"Шушенский муниципальный район","Ильичевское","04659405","МУП \"Шушенские ТЭС\"","2442000890","244201001","производство (некомбинированная выработка)+передача+сбыт"]
[480,"Шушенский муниципальный район","Ильичевское","04659405","ОАО \"Енисейская ТГК (ТГК-13)\"","1901067718","997450001","производство комбинированная выработка"]
[481,"Шушенский муниципальный район","Ильичевское","04659405","ОАО \"Енисейская ТГК (ТГК-13)\"","1901067718","997450001","Передача+Сбыт"]
[482,"Шушенский муниципальный район","Ильичевское","04659405","ОАО \"Южно-Енисейские тепловые сети\"","2460237860","246001001","производство (некомбинированная выработка)+передача+сбыт"]
[483,"Шушенский муниципальный район","Казанцевское","04659407","МУП \"Казанцевский водоканал\"","2442010714","244201001","производство (некомбинированная выработка)+передача+сбыт"]
[484,"Шушенский муниципальный район","Казанцевское","04659407","МУП \"Шушенские ТЭС\"","2442000890","244201001","производство (некомбинированная выработка)+передача+сбыт"]
[485,"Шушенский муниципальный район","Каптыревское","04659410","МУП \"Шушенские ТЭС\"","2442000890","244201001","производство (некомбинированная выработка)+передача+сбыт"]
[486,"Шушенский муниципальный район","Сизинское","04659414","МУП \"Шушенские ТЭС\"","2442000890","244201001","производство (некомбинированная выработка)+передача+сбыт"]
[487,"Шушенский муниципальный район","Синеборское","04659415","МУП \"Шушенские ТЭС\"","2442000890","244201001","производство (некомбинированная выработка)+передача+сбыт"]
[488,"Шушенский муниципальный район","Субботинское","04659416","МУП \"Шушенские ТЭС\"","2442000890","244201001","производство (некомбинированная выработка)+передача+сбыт"]
[489,"Шушенский муниципальный район","Шушенский муниципальный район","04659000","МУП \"Шушенские ТЭС\"","2442000890","244201001","производство (некомбинированная выработка)+передача+сбыт"]
[490,"Шушенский муниципальный район","поселок Шушенское","04659151","МУП \"Шушенские ТЭС\"","2442000890","244201001","производство (некомбинированная выработка)+передача+сбыт"]
[491,"Шушенский муниципальный район","поселок Шушенское","04659151","ОАО \"Енисейская ТГК (ТГК-13)\"","1901067718","997450001","Передача+Сбыт"]
[492,"Шушенский муниципальный район","поселок Шушенское","04659151","ОАО \"Енисейская ТГК (ТГК-13)\"","1901067718","997450001","производство комбинированная выработка"]
[493,"Шушенский муниципальный район","поселок Шушенское","04659151","ОАО \"Южно-Енисейские тепловые сети\"","2460237860","246001001","производство (некомбинированная выработка)+передача+сбыт"]
[494,"Шушенский муниципальный район","поселок Шушенское","04659151","ООО \"Красноярская региональная энергетическая компания\"","2466118202","246001001","производство (некомбинированная выработка)+передача+сбыт"]
[495,"Эвенкийский муниципальный район","поселок Нидым","04911438","МП ЭМР \"Илимпийские теплосети\"","8801011048","880101001","производство (некомбинированная выработка)+передача+сбыт"]
[496,"Эвенкийский муниципальный район","поселок Тура","04911402","МП ЭМР \"Илимпийские теплосети\"","8801011048","880101001","производство (некомбинированная выработка)+передача+сбыт"]
[497,"Эвенкийский муниципальный район","поселок Тутончаны","04911444","МП ЭМР \"Илимпийские теплосети\"","8801011048","880101001","производство (некомбинированная выработка)+передача+сбыт"]
[498,"Эвенкийский муниципальный район","поселок Эконда","04911453","МП ЭМР \"Илимпийские теплосети\"","8801011048","880101001","производство (некомбинированная выработка)+передача+сбыт"]
[499,"Эвенкийский муниципальный район","село Байкит","04911405","МП ЭМР \"Байкитэнерго\"","8802000955","880201001","производство (некомбинированная выработка)+передача+сбыт"]
[500,"Эвенкийский муниципальный район","село Ванавара","04911459","МП ЭМР \"Ванавараэнерго\"","8803001655","880301001","производство (некомбинированная выработка)+передача+сбыт"]
[501,"город Сосновоборск","город Сосновоборск","04733000","МУП \"Жилкомсервис\" г. Сосновоборск","2458008862","245801001","Передача+Сбыт"]
[502,"город Сосновоборск","город Сосновоборск","04733000","ОАО \"Енисейская ТГК (ТГК-13)\"","1901067718","997450001","Передача+Сбыт"]
[503,"город Сосновоборск","город Сосновоборск","04733000","ОАО \"Енисейская ТГК (ТГК-13)\"","1901067718","997450001","производство комбинированная выработка"]
[504,"город Сосновоборск","город Сосновоборск","04733000","ОАО \"Красноярская ТЭЦ-4\"","2460237877","246001001","производство (некомбинированная выработка)"]

{"sheet":"modHyperlink","index":18,"n_rows":0,"n_cols":0,"rows_kept":0,"cut":false,"hidden":true,"merged":[]}

{"sheet":"modChange","index":19,"n_rows":0,"n_cols":0,"rows_kept":0,"cut":false,"hidden":true,"merged":[]}

{"sheet":"modTitleSheetHeaders","index":20,"n_rows":0,"n_cols":0,"rows_kept":0,"cut":false,"hidden":true,"merged":[]}

{"sheet":"modServiceModule","index":21,"n_rows":0,"n_cols":0,"rows_kept":0,"cut":false,"hidden":true,"merged":[]}

{"sheet":"modClassifierValidate","index":22,"n_rows":0,"n_cols":0,"rows_kept":0,"cut":false,"hidden":true,"merged":[]}

{"sheet":"Паспорт","index":23,"n_rows":71,"n_cols":57,"rows_kept":71,"cut":false,"hidden":true,"merged":[[64,3,64,10],[61,3,61,10],[63,5,63,10],[70,5,70,10],[69,5,69,10],[68,5,68,10],[67,5,67,10],[66,3,66,10],[33,3,33,10],[54,3,54,10],[62,5,62,10],[57,5,57,10],[58,5,58,10],[56,3,56,10],[36,8,36,10],[37,8,37,10],[59,5,59,10],[35,3,35,10],[46,8,46,10],[47,8,47,10],[41,8,41,10],[38,8,38,10],[39,8,39,10],[40,8,40,10],[30,5,30,10],[31,7,31,10],[32,7,32,10],[22,5,22,10],[23,5,23,10],[29,3,29,10],[25,3,25,10],[26,5,26,10],[27,3,27,10],[14,6,14,9],[21,5,21,10],[17,3,17,10],[15,5,15,10],[18,5,18,10],[19,5,19,10],[20,5,20,10],[3,3,3,10],[12,5,12,10],[13,5,13,10],[6,5,6,10],[7,5,7,10],[5,3,5,10],[8,5,8,10],[9,5,9,10],[10,5,10,10],[11,5,11,10],[44,8,44,10],[45,8,45,10],[42,8,42,10],[43,8,43,10],[48,8,48,10],[49,8,49,10],[52,8,52,10],[53,8,53,10],[50,8,50,10],[51,8,51,10]]}
[null,null,null,null,null,null,null,null,null,null,null,null,null,null,null,null,null,null,null,null,null,null,null,null,null,null,null,null,null,null,null,null,null,null,null,null,null,null,null,null,null,null,null,null,null,null,null,"Код диапазона:","Название диапазона:","Сфера регулирования:","Подсфера:","Тип информации в шаблоне:","Состояние шаблона:","Периодичность:","\"Геотип\" шаблона:","Тип шаблона:","Заказчик:"]
[null,null,null,null,null,null,null,null,null,null,null,null,null,null,null,null,null,null,null,null,null,null,null,null,null,null,null,null,null,null,null,null,null,null,null,null,null,null,null,null,null,null,null,null,null,null,null,"ps_sr","Сфера регулирования:","Не определено","Не определено","Не определено","Не определено","Не определено","Не определено","Не определено","Не определено"]
[null,null,null,null,null,null,null,null,null,null,null,null,null,null,null,null,null,null,null,null,null,null,null,null,null,null,null,null,null,null,null,null,null,null,null,null,null,null,null,null,null,null,null,null,null,null,null,"ps_ti","Тип информации в шаблоне:","NETS","водоотведение - очистка","Статистический","Проект","Единовременный","Региональный шаблон","Атомарный","РЭК"]
[null,null,null,"Паспорт к шаблону",null,null,null,null,null,null,null,null,null,null,null,null,null,null,null,null,null,null,null,null,null,null,null,null,null,null,null,null,null,null,null,null,null,null,null,null,null,null,null,null,null,null,null,"ps_ssh","Состояние шаблона:","Аэропорты","водоотведение - передача","Расчетный","Утвержден","Ежемесячный","Муниципальный шаблон","Сводный","ФСТ"]
[null,null,null,null,null,null,null,null,null,null,null,null,null,null,null,null,null,null,null,null,null,null,null,null,null,null,null,null,null,null,null,null,null,null,null,null,null,null,null,null,null,null,null,null,null,null,null,"ps_p","Периодичность:","Газ","водоотведение - прием","Обосновывающие материалы",null,"Ежеквартальный","Шаблон от организации",null,"Экспертная организация"]
[null,null,null,"1. Общие сведения",null,null,null,null,null,null,null,null,null,null,null,null,null,null,null,null,null,null,null,null,null,null,null,null,null,null,null,null,null,null,null,null,null,null,null,null,null,null,null,null,null,null,null,"ps_geo","\"Геотип\" шаблона:","Железные дороги","водоснабжение - очистка",null,null,"Ежегодный"]
[null,null,null,"1.1","Код",null,null,null,null,null,null,null,null,null,null,null,null,null,null,null,null,null,null,null,null,null,null,null,null,null,null,null,null,null,null,null,null,null,null,null,null,null,null,null,null,null,null,"ps_tsh","Тип шаблона:","ЖКХ","водоснабжение - передача"]
[null,null,null,"1.2","Краткое наименование",null,null,null,null,null,null,null,null,null,null,null,null,null,null,null,null,null,null,null,null,null,null,null,null,null,null,null,null,null,null,null,null,null,null,null,null,null,null,null,null,null,null,"ps_psr","Подсфера:","Медицина","водоснабжение - подъем"]
[null,null,null,"1.3","Полное наименование",null,null,null,null,null,null,null,null,null,null,null,null,null,null,null,null,null,null,null,null,null,null,null,null,null,null,null,null,null,null,null,null,null,null,null,null,null,null,null,null,null,null,"ps_z","Заказчик:","Порты","выработка ТС  "]
[null,null,null,"1.4","Сфера регулирования ",null,null,null,null,null,null,null,null,null,null,null,null,null,null,null,null,null,null,null,null,null,null,null,null,null,null,null,null,null,null,null,null,null,null,null,null,null,null,null,null,null,null,null,null,"Связь","выработка ТС в режиме комбинированной выработки"]
[null,null,null,"1.5","Подсфера",null,null,null,null,null,null,null,null,null,null,null,null,null,null,null,null,null,null,null,null,null,null,null,null,null,null,null,null,null,null,null,null,null,null,null,null,null,null,null,null,null,null,null,null,"Транспорт","выработка электрической энергии"]
[null,null,null,"1.6","Состояние шаблона (Утвержден/Проект)",null,null,null,null,null,null,null,null,null,null,null,null,null,null,null,null,null,null,null,null,null,null,null,null,null,null,null,null,null,null,null,null,null,null,null,null,null,null,null,null,null,null,null,null,"Электроэнергетика","выработка+передача+сбыт ТС"]
[null,null,null,"1.7","Заказчик",null,null,null,null,null,null,null,null,null,null,null,null,null,null,null,null,null,null,null,null,null,null,null,null,null,null,null,null,null,null,null,null,null,null,null,null,null,null,null,null,null,null,null,null,null,"передача ТС"]
[null,null,null,"1.8","Отчитывается",null,null,null,null,null,null,null,null,null,null,null,null,null,null,null,null,null,null,null,null,null,null,null,null,null,null,null,null,null,null,null,null,null,null,null,null,null,null,null,null,null,null,null,null,null,"передача ЭЭ"]
[null,null,null,"1.9","Тип шаблона",null,"Если шаблон сводный, необходимо указать код атомарного шаблона для него:",null,null,null,null,null,null,null,null,null,null,null,null,null,null,null,null,null,null,null,null,null,null,null,null,null,null,null,null,null,null,null,null,null,null,null,null,null,null,null,null,null,null,null,"сбыт ТС"]
[null,null,null,"1.10","Текущая версия",null,null,null,null,null,null,null,null,null,null,null,null,null,null,null,null,null,null,null,null,null,null,null,null,null,null,null,null,null,null,null,null,null,null,null,null,null,null,null,null,null,null,null,null,null,"сбыт ЭЭ"]
[null,null,null,null,null,null,null,null,null,null,null,null,null,null,null,null,null,null,null,null,null,null,null,null,null,null,null,null,null,null,null,null,null,null,null,null,null,null,null,null,null,null,null,null,null,null,null,null,null,null,"ТБО"]
[null,null,null,"2. Организационные"]
[null,null,null,"2.1","Тип информации в шаблоне "]
[null,null,null,"2.2","Ответственный регулятор (от заказчика)"]
[null,null,null,"2.3","Ответственный специалист (от СМА)"]
[null,null,null,"2.4","Ответственный программист (от СМА)"]
[null,null,null,"2.5","Ответственные за сбор данных (от СМА)"]
[null,null,null,"2.6","Ответственные за сбор данных (от заказчика)"]
[]
[null,null,null,"3. Законодательство (методики, приказы, постановления ...)"]
[null,null,"first","3.1","Документ1"]
[null,null,"end","Добавить документ"]
[]
[null,null,null,"4. Периодичность"]
[null,null,null,"4.1","Периодичность"]
[null,null,null,null,"Мониторинги(прошедшие и плановые)","Дата начала","Дата окончания","Согласно (приказ, постановление, письмо)"]
[null,null,"first","4.2.1","Мониторинг1"]
[null,null,"end","Добавить мониторинг"]
[]
[null,null,null,"5. Состав шаблона"]
[null,null,null,null,"Лист","Последняя дата изменений эскиза","Состояние листа","Наименование витрины для листа","Комментарии"]
[null,null,"first","5.1.1"]
[null,null,"Удалить","5.1.2"]
[null,null,"Удалить","5.1.3"]
[null,null,"Удалить","5.1.4"]
[null,null,"Удалить","5.1.5"]
[null,null,"Удалить","5.1.6"]
[null,null,"Удалить","5.1.7"]
[null,null,"Удалить","5.1.8"]
[null,null,"Удалить","5.1.9"]
[null,null,"Удалить","5.1.10"]
[null,null,"Удалить","5.1.11"]
[null,null,"Удалить","5.1.12"]
[null,null,"Удалить","5.1.13"]
[null,null,"Удалить","5.1.14"]
[null,null,"Удалить","5.1.15"]
[null,null,"Удалить","5.1.16"]
[null,null,"Удалить","5.1.17"]
[null,null,"end","Добавить лист"]
[]
[null,null,null,"6. Сроки и даты"]
[null,null,null,"6.1.1","Даты получения последних эскизов, от экспертов"]
[null,null,null,"6.1.2","Даты отправки шаблона на проверку"]
[null,null,null,"6.1.3","Предполагаемый срок сдачи шаблона в эксплуатацию"]
[]
[null,null,null,"7. Версии"]
[null,null,null,null,"Версия","Отличия от предыдущей"]
[null,null,"first","7.1"]
[null,null,"end","Добавить версию"]
[]
[null,null,null,"8. Дополнительно"]
[null,null,null,"8.1","Аналогичные(\"похожие\") шаблоны"]
[null,null,null,"8.2","Особенности шаблона"]
[null,null,null,"8.3","Модуль на основе данного шаблона"]
[null,null,null,"8.4","Процедуры загрузки данных в витрины"]

{"sheet":"REESTR_FILTERED","index":24,"n_rows":1,"n_cols":8,"rows_kept":1,"cut":false,"hidden":true,"merged":[]}
["№","МР","МО","МО ОКТМО","ОРГАНИЗАЦИЯ","ИНН","КПП","ВИД ДЕЯТЕЛЬНОСТИ"]

{"sheet":"REESTR_MO","index":25,"n_rows":418,"n_cols":5,"rows_kept":418,"cut":false,"hidden":true,"merged":[]}
["МР","МО","МО_ОКТМО","МР","ИМЯ ДИАПАЗОНА"]
["Абанский муниципальный район","Абанский муниципальный район","04601000","Абанский муниципальный район","MO_LIST_2"]
["Абанский муниципальный район","Абанское","04601151","Ачинский муниципальный район","MO_LIST_3"]
["Ачинский муниципальный район","Ачинский муниципальный район","04603000","Балахтинский муниципальный район","MO_LIST_4"]
["Ачинский муниципальный район","Белоярское","04603402","Березовский муниципальный район","MO_LIST_5"]
["Ачинский муниципальный район","Горное","04603407","Бирилюсский муниципальный район","MO_LIST_6"]
["Ачинский муниципальный район","Ключинское","04603410","Боготольский муниципальный район","MO_LIST_7"]
["Ачинский муниципальный район","Лапшихинское","04603413","Богучанский муниципальный район","MO_LIST_8"]
["Ачинский муниципальный район","Малиновское","04603414","Большемуртинский муниципальный район","MO_LIST_9"]
["Ачинский муниципальный район","Преображенское","04603404","Большеулуйский муниципальный район","MO_LIST_10"]
["Ачинский муниципальный район","Причулымское","04603419","Город Ачинск","MO_LIST_11"]
["Ачинский муниципальный район","Тарутинское","04603422","Город Боготол","MO_LIST_12"]
["Ачинский муниципальный район","Ястребовское","04603428","Город Бородино","MO_LIST_13"]
["Балахтинский муниципальный район","Балахтинский муниципальный район","04604000","Город Дивногорск","MO_LIST_14"]
["Балахтинский муниципальный район","Еловское","04604404","Город Енисейск","MO_LIST_15"]
["Балахтинский муниципальный район","Кожановское","04604405","Город Канск","MO_LIST_16"]
["Балахтинский муниципальный район","Огурское","04604407","Город Красноярск","MO_LIST_17"]
["Балахтинский муниципальный район","Приморское","04604413","Город Лесосибирск","MO_LIST_18"]
["Балахтинский муниципальный район","Тюльковское","04604419","Город Минусинск","MO_LIST_19"]
["Балахтинский муниципальный район","поселок Балахта","04604151","Город Назарово","MO_LIST_20"]
["Березовский муниципальный район","Бархатовское","04605402","Город Норильск","MO_LIST_21"]
["Березовский муниципальный район","Березовский муниципальный район","04605000","Город Шарыпово","MO_LIST_22"]
["Березовский муниципальный район","Вознесенское","04605405","Дзержинский район","MO_LIST_23"]
["Березовский муниципальный район","Есаульское","04605416","Емельяновский муниципальный район","MO_LIST_24"]
["Березовский муниципальный район","Зыковское","04605420","Енисейский муниципальный район","MO_LIST_25"]
["Березовский муниципальный район","Маганское","04605425","Ермаковский муниципальный район","MO_LIST_26"]
["Березовский муниципальный район","поселок Березовка","04605151","ЗАТО г. Зеленогорск","MO_LIST_27"]
["Бирилюсский муниципальный район","Бирилюсский муниципальный район","04606000","ЗАТО г.Железногорск","MO_LIST_28"]
["Бирилюсский муниципальный район","Малокетское","04606408","ЗАТО п.Солнечный","MO_LIST_29"]
["Бирилюсский муниципальный район","Новобирилюсское","04606416","Идринский муниципальный раойон","MO_LIST_30"]
["Бирилюсский муниципальный район","Поселок Рассвет","04606154","Иланский муниципальный район","MO_LIST_31"]
["Бирилюсский муниципальный район","Суриковское","04606426","Ирбейский муниципальный район","MO_LIST_32"]
["Боготольский муниципальный район","Александровское","04608402","Казачинский муниципальный район","MO_LIST_33"]
["Боготольский муниципальный район","Боготольский муниципальный район","04608000","Канский муниципальный район","MO_LIST_34"]
["Боготольский муниципальный район","Боготольское","04608404","Каратузский муниципальный район","MO_LIST_35"]
["Боготольский муниципальный район","Большекосульское","04608407","Кежемский муниципальный район","MO_LIST_36"]
["Боготольский муниципальный район","Вагинское","04608410","Козульский муниципальный район","MO_LIST_37"]
["Боготольский муниципальный район","Краснозаводское","04608413","Краснотуранский муниципальный район","MO_LIST_38"]
["Боготольский муниципальный район","Критовское","04608416","Курагинский муниципальный район","MO_LIST_39"]
["Боготольский муниципальный район","Чайковское","04608419","Манский муниципальный район","MO_LIST_40"]
["Боготольский муниципальный район","Юрьевское","04608422","Минусинский муниципальный район","MO_LIST_41"]
["Богучанский муниципальный район","Ангарское","04609402","Мотыгинский муниципальный район","MO_LIST_42"]
["Богучанский муниципальный район","Артюгинское","04609404","Назаровский муниципальный район","MO_LIST_43"]
["Богучанский муниципальный район","Белякинское","04609407","Нижнеингашский муниципальный район","MO_LIST_44"]
["Богучанский муниципальный район","Богучанский муниципальный район","04609000","Новоселовский муниципальный район","MO_LIST_45"]
["Богучанский муниципальный район","Богучанское","04609410","Партизанский муниципальный район","MO_LIST_46"]
["Богучанский муниципальный район","Говорковское","04609413","Пировский муниципальный район","MO_LIST_47"]
["Богучанский муниципальный район","Красногорьевское","04609418","Поселок Кедровый","MO_LIST_48"]
["Богучанский муниципальный район","Манзенское","04609419","Рыбинский муниципальный район","MO_LIST_49"]
["Богучанский муниципальный район","Невонское","04609422","Саянский муниципальный район","MO_LIST_50"]
["Богучанский муниципальный район","Нижнетерянское","04609424","Северо-Енисейский муниципальный район","MO_LIST_51"]
["Богучанский муниципальный район","Новохайское","04609423","Сухобузимский муниципальный район","MO_LIST_52"]
["Богучанский муниципальный район","Октябрьское","04609445","Таймырский (Долгано-Ненецкий) муниципальный район","MO_LIST_53"]
["Богучанский муниципальный район","Осиновомысское","04609425","Тасеевский муниципальный район","MO_LIST_54"]
["Богучанский муниципальный район","Пинчугское","04609428","Туруханский муниципальный район","MO_LIST_55"]
["Богучанский муниципальный район","Таежнинское","04609430","Тюхтетский муниципальный район","MO_LIST_56"]
["Богучанский муниципальный район","Такучетское","04609431","Ужурский муниципальный район","MO_LIST_57"]
["Богучанский муниципальный район","Хребтовское","04609433","Уярский муниципальный район","MO_LIST_58"]
["Богучанский муниципальный район","Чуноярское","04609434","Шарыпово","MO_LIST_59"]
["Богучанский муниципальный район","Шиверское","04609440","Шарыповский муниципальный район","MO_LIST_60"]
["Большемуртинский муниципальный район","Айтатское","04610402","Шушенский муниципальный район","MO_LIST_61"]
["Большемуртинский муниципальный район","Бартатское","04610404","Эвенкийский муниципальный район","MO_LIST_62"]
["Большемуртинский муниципальный район","Большемуртинский муниципальный район","04610000","г. Абакан","MO_LIST_63"]
["Большемуртинский муниципальный район","Большемуртинское","04610000","город Сосновоборск","MO_LIST_64"]
["Большемуртинский муниципальный район","Верх-Казанское","04610407"]
["Большемуртинский муниципальный район","Еловское","04610410"]
["Большемуртинский муниципальный район","Ентаульское","04610413"]
["Большемуртинский муниципальный район","Межовское","04610416"]
["Большемуртинский муниципальный район","Поселок Большая Мурта","04610151"]
["Большемуртинский муниципальный район","Раздольненское","04610428"]
["Большемуртинский муниципальный район","Российское","04610419"]
["Большемуртинский муниципальный район","Таловское","04610422"]
["Большемуртинский муниципальный район","Юксеевское","04610425"]
["Большемуртинский муниципальный район","п Предивинск","04610155"]
["Большеулуйский муниципальный район","Большеулуйский муниципальный район","04611000"]
["Большеулуйский муниципальный район","Большеулуйское","04611407"]
["Большеулуйский муниципальный район","Кытатское","04611419"]
["Город Ачинск","Город Ачинск","04703000"]
["Город Боготол","Город Боготол","04706000"]
["Город Бородино","Город Бородино","04707000"]
["Город Дивногорск","Город Дивногорск","04709000"]
["Город Енисейск","Город Енисейск","04712000"]
["Город Канск","Город Канск","04720000"]
["Город Красноярск","Город Красноярск","04701000"]
["Город Лесосибирск","Город Лесосибирск","04722000"]
["Город Минусинск","Город Минусинск","04723000"]
["Город Назарово","Город Назарово","04726000"]
["Город Норильск","Город Норильск","04729000"]
["Город Шарыпово","Город Шарыпово","04740 000"]
["Дзержинский район","Дзержинский район","04613000"]
["Дзержинский район","Дзержинское","04613410"]
["Дзержинский район","Михайловское","04613419"]
["Емельяновский муниципальный район","Еловское","04614413"]
["Емельяновский муниципальный район","Емельяновский муниципальный район","04614000"]
["Емельяновский муниципальный район","Зеледеевское","04614418"]
["Емельяновский муниципальный район","Мининское","04614428"]
["Емельяновский муниципальный район","Поселок Емельяново","04614151"]
["Емельяновский муниципальный район","Солонцовское","04614437"]
["Емельяновский муниципальный район","Тальское","04614440"]
["Емельяновский муниципальный район","Устюгское","04614443"]
["Емельяновский муниципальный район","Частоостровское","04614446"]
["Емельяновский муниципальный район","Шуваевское","04614449"]
["Емельяновский муниципальный район","Элитовское","04614404"]
["Енисейский муниципальный район","Абалаковское","04615402"]
["Енисейский муниципальный район","Верхнепашинское","04615407"]
["Енисейский муниципальный район","Высокогорское","04615408"]
["Енисейский муниципальный район","Городищенское","04615410"]
["Енисейский муниципальный район","Енисейский муниципальный район","04615000"]
["Енисейский муниципальный район","Епишинское","04615409"]
["Енисейский муниципальный район","Железнодорожное","04615411"]
["Енисейский муниципальный район","Кривлякское","04615412"]
["Енисейский муниципальный район","Луговатское","04615416"]
["Енисейский муниципальный район","Майское","04615418"]
["Енисейский муниципальный район","Малобельское","04615421"]
["Енисейский муниципальный район","Новогородокское","04615434"]
["Енисейский муниципальный район","Новокаргинское","04615437"]
["Енисейский муниципальный район","Новоназимовское","04615425"]
["Енисейский муниципальный район","Озерновское","04615439"]
["Енисейский муниципальный район","Плотбищенское","04615440"]
["Енисейский муниципальный район","Погодаевское","04615441"]
["Енисейский муниципальный район","Подгорновское","04615443"]
["Енисейский муниципальный район","Поселок Подтесово","04615155"]
["Енисейский муниципальный район","Потаповское","04615446"]
["Енисейский муниципальный район","Усть-Кемское","04615452"]
["Енисейский муниципальный район","Усть-Питское","04615455"]
["Енисейский муниципальный район","Чалбышевское","04615456"]
["Енисейский муниципальный район","Шапкинское","04615457"]
["Енисейский муниципальный район","Ярцевское","04615458"]
["Ермаковский муниципальный район","Верхнеусинское","04616404"]
["Ермаковский муниципальный район","Григорьевское","04616407"]
["Ермаковский муниципальный район","Ермаковский муниципальный район","04616000"]
["Ермаковский муниципальный район","Ермаковское","04616410"]
["Ермаковский муниципальный район","Ивановское","04616414"]
["Ермаковский муниципальный район","Мигнинское","04616416"]
["Ермаковский муниципальный район","Нижнесуэтукское","04616419"]
["Ермаковский муниципальный район","Новополтавское","04616422"]
["Ермаковский муниципальный район","Ойское","04616428"]
["Ермаковский муниципальный район","Разъезженское","04616425"]
["Ермаковский муниципальный район","Салбинское","04616429"]
["Ермаковский муниципальный район","Семенниковское","04616431"]
["Ермаковский муниципальный район","Танзыбейское","04616434"]
["ЗАТО г. Зеленогорск","ЗАТО г. Зеленогорск","04737000"]
["ЗАТО г.Железногорск","ЗАТО г.Железногорск","04735000"]
["ЗАТО п.Солнечный","ЗАТО п.Солнечный","04780000"]
["Идринский муниципальный раойон","Идринский муниципальный раойон","04617000"]
["Идринский муниципальный раойон","Идринское","04617422"]
["Иланский муниципальный район","Ельниковское","04618404"]
["Иланский муниципальный район","Иланский муниципальный район","04618000"]
["Иланский муниципальный район","Карапсельское","04618407"]
["Иланский муниципальный район","Новониколаевское","04618416"]
["Иланский муниципальный район","Южно-Александровское","04618425"]
["Иланский муниципальный район","г. Иланский","04618101"]
["Ирбейский муниципальный район","Благовещенское","04619404"]
["Ирбейский муниципальный район","Верхнеуринское","04619407"]
["Ирбейский муниципальный район","Ивановское","04619410"]
["Ирбейский муниципальный район","Изумрудновское","04619411"]
["Ирбейский муниципальный район","Ирбейский муниципальный район","04619000"]
["Ирбейский муниципальный район","Ирбейское","04619413"]
["Ирбейский муниципальный район","Мельничное","04619419"]
["Ирбейский муниципальный район","Сергеевское","04619425"]
["Ирбейский муниципальный район","Степановское","04619429"]
["Ирбейский муниципальный район","Тальское","04619431"]
["Ирбейский муниципальный район","Тумаковское","04619443"]
["Ирбейский муниципальный район","Успенское","04619434"]
["Ирбейский муниципальный район","Усть-Каначульское","04619437"]
["Ирбейский муниципальный район","Усть-Ярульское","04619440"]
["Ирбейский муниципальный район","Чухломинское","04619450"]
["Ирбейский муниципальный район","Юдинское","04619416"]
["Казачинский муниципальный район","Казачинский муниципальный район","04620000"]
["Казачинский муниципальный район","Казачинское","04620413"]
["Канский муниципальный район","Анцирское","04621404"]
["Канский муниципальный район","Астафьевское","04621407"]
["Канский муниципальный район","Большеуринское","04621410"]
["Канский муниципальный район","Браженское","04621413"]
["Канский муниципальный район","Верх-Амонашенское","04621416"]
["Канский муниципальный район","Георгиевское","04621419"]
["Канский муниципальный район","Канский муниципальный район","04621000"]
["Канский муниципальный район","Мокрушинское","04621425"]
["Канский муниципальный район","Рудянское","04621431"]
["Канский муниципальный район","Сотниковское","04621434"]
["Канский муниципальный район","Таеженское","04621436"]
["Канский муниципальный район","Терское","04621437"]
["Канский муниципальный район","Филимоновское","04621438"]
["Канский муниципальный район","Чечеульское","04621440"]
["Каратузский муниципальный район","Верхнекужебарское","04622404"]
["Каратузский муниципальный район","Каратузский муниципальный район","04622000"]
["Каратузский муниципальный район","Каратузское","04622407"]
["Каратузский муниципальный район","Моторское","04622413"]
["Каратузский муниципальный район","Нижнекужебарское","04622416"]
["Каратузский муниципальный район","Таскинское","04622428"]
["Каратузский муниципальный район","Уджейское","04622432"]
["Каратузский муниципальный район","Черемушинское","04622434"]
["Кежемский муниципальный район","Город Кодинск","04624101"]
["Кежемский муниципальный район","Заледеевское","04624403"]
["Кежемский муниципальный район","Имбинское","04624406"]
["Кежемский муниципальный район","Кежемский муниципальный район","04624000"]
["Кежемский муниципальный район","Кежемское","04624404"]
["Кежемский муниципальный район","Недокурское","04624407"]
["Кежемский муниципальный район","Пановское","04624410"]
["Кежемский муниципальный район","Тагарское","04624412"]
["Кежемский муниципальный район","Таежинское","04624416"]
["Козульский муниципальный район","Жуковское","04626404"]
["Козульский муниципальный район","Козульский муниципальный район","04626000"]
["Козульский муниципальный район","Лазурненское","04626409"]
["Козульский муниципальный район","Поселок Козулька","04626151"]
["Козульский муниципальный район","поселок Новочернореченский","04626154"]
["Краснотуранский муниципальный район","Беллыкское","04628404"]
["Краснотуранский муниципальный район","Восточное","04628407"]
["Краснотуранский муниципальный район","Кортузское","04628411"]
["Краснотуранский муниципальный район","Краснотуранский муниципальный район","04628000"]
["Краснотуранский муниципальный район","Краснотуранское","04628413"]
["Краснотуранский муниципальный район","Лебяженское","04628416"]
["Краснотуранский муниципальный район","Николаевка","04628400"]
["Краснотуранский муниципальный район","Новосыдинское","04628419"]
["Краснотуранский муниципальный район","Салбинское","04628421"]
["Краснотуранский муниципальный район","Саянское","04628425"]
["Краснотуранский муниципальный район","Тубинское","04628428"]
["Курагинский муниципальный район","Березовское","04630404"]
["Курагинский муниципальный район","Брагинское","04630407"]
["Курагинский муниципальный район","Детловское","04630410"]
["Курагинский муниципальный район","Кордовское","04630419"]
["Курагинский муниципальный район","Кочергинское","04630420"]
["Курагинский муниципальный район","Курагинский муниципальный район","04630000"]
["Курагинский муниципальный район","Курское","04630422"]
["Курагинский муниципальный район","Марининское","04630413"]
["Курагинский муниципальный район","Можарское","04630425"]
["Курагинский муниципальный район","Поселок Кошурниково","04630153"]
["Курагинский муниципальный район","Поселок Курагино","04630151"]
["Курагинский муниципальный район","Рощинское","04630442"]
["Курагинский муниципальный район","Черемшанкское","04630446"]
["Курагинский муниципальный район","Шалоболинское","04630449"]
["Курагинский муниципальный район","Щетинкинское","04630452"]
["Курагинский муниципальный район","город Артемовск","04630102"]
["Курагинский муниципальный район","поселок Большая Ирба","04630152"]
["Курагинский муниципальный район","поселок Краснокаменск","04630154"]
["Курагинский муниципальный район","поселок Чибижек","04630156"]
["Манский муниципальный район","Выезжелогское","04631404"]
["Манский муниципальный район","Камарчагское","04631407"]
["Манский муниципальный район","Каменское","04631408"]
["Манский муниципальный район","Кияйское","04631410"]
["Манский муниципальный район","Колбинское","04631413"]
["Манский муниципальный район","Манский муниципальный район","04631000"]
["Манский муниципальный район","Нарвинское","04631416"]
["Манский муниципальный район","Первоманское","04631421"]
["Манский муниципальный район","Унгутское","04631434"]
["Манский муниципальный район","Шалинское","04631437"]
["Минусинский муниципальный район","Большеничкинское","04633404"]
["Минусинский муниципальный район","Городокское","04633410"]
["Минусинский муниципальный район","Жерлыкское","04633412"]
["Минусинский муниципальный район","Знаменское","04633413"]
["Минусинский муниципальный район","Кавказское","04633416"]
["Минусинский муниципальный район","Лугавское","04633420"]
["Минусинский муниципальный район","Маломинусинское","04633422"]
["Минусинский муниципальный район","Минусинский муниципальный район","04633000"]
["Минусинский муниципальный район","Новотроицкое","04633426"]
["Минусинский муниципальный район","Прихолмское","04633423"]
["Минусинский муниципальный район","Селиванихинское","04633424"]
["Минусинский муниципальный район","Тесинское","04633402"]
["Минусинский муниципальный район","Тигрицкое","04633425"]
["Минусинский муниципальный район","Шошинское","04633432"]
["Мотыгинский муниципальный район","Машуковское","04635410"]
["Мотыгинский муниципальный район","Мотыгинский муниципальный район","04635000"]
["Мотыгинский муниципальный район","Новоангарское","04635412"]
["Мотыгинский муниципальный район","Орджоникидзевское","04635413"]
["Мотыгинский муниципальный район","Партизанское","04635416"]
["Мотыгинский муниципальный район","поселок Мотыгино","04635151"]
["Мотыгинский муниципальный район","поселок Раздолинск","04635154"]
["Мотыгинский муниципальный район","поселок Южно-Енисейск","04635157"]
["Назаровский муниципальный район","Гляденское","04637407"]
["Назаровский муниципальный район","Дороховское","04637410"]
["Назаровский муниципальный район","Краснополянское","04637431"]
["Назаровский муниципальный район","Красносопкинское","04637413"]
["Назаровский муниципальный район","Назаровский муниципальный район","04637000"]
["Назаровский муниципальный район","Павловское","04637419"]
["Назаровский муниципальный район","Подсосенское","04637422"]
["Назаровский муниципальный район","Преображенское","04637425"]
["Назаровский муниципальный район","Сахаптинское","04637428"]
["Назаровский муниципальный район","Степное","04637437"]
["Нижнеингашский муниципальный район","Канифольнинское","04639410"]
["Нижнеингашский муниципальный район","Нижнеингашский муниципальный район","04639000"]
["Нижнеингашский муниципальный район","Поселок Нижняя Пойма","04639154"]
["Нижнеингашский муниципальный район","Поселок Поканаевка","04639157"]
["Нижнеингашский муниципальный район","Поселок Тинской","04639160"]
["Нижнеингашский муниципальный район","Стретенское","04639434"]
["Нижнеингашский муниципальный район","Тиличетское","04639437"]
["Нижнеингашский муниципальный район","Тинское","04639440"]
["Нижнеингашский муниципальный район","поселок Нижний Ингаш","04639151"]
["Новоселовский муниципальный район","Анашенское","04641402"]
["Новоселовский муниципальный район","Бараитское","04641403"]
["Новоселовский муниципальный район","Комское","04641407"]
["Новоселовский муниципальный район","Легостаевское","04641408"]
["Новоселовский муниципальный район","Новоселовский муниципальный район","04641000"]
["Новоселовский муниципальный район","Новоселовское","04641409"]
["Новоселовский муниципальный район","Светлолобовское","04641410"]
["Новоселовский муниципальный район","Толстомысинское","04641413"]
["Новоселовский муниципальный район","Чулымское","04641417"]
["Партизанский муниципальный район","Богуславское","04643402"]
["Партизанский муниципальный район","Вершино-Рыбинское","04643404"]
["Партизанский муниципальный район","Имбежское","04643410"]
["Партизанский муниципальный район","Иннокентьевское","04643413"]
["Партизанский муниципальный район","Минское","04643419"]
["Партизанский муниципальный район","Партизанский муниципальный район","04643000"]
["Партизанский муниципальный район","Партизанское","04643422"]
["Партизанский муниципальный район","Стойбинское","04643425"]
["Пировский муниципальный район","Кетское","04645417"]
["Пировский муниципальный район","Пировский муниципальный район","04645000"]
["Пировский муниципальный район","Пировское","04645425"]
["Пировский муниципальный район","Троицкое","04645402"]
["Пировский муниципальный район","Чайдинское","04645442"]
["Поселок Кедровый","Поселок Кедровый","04775000"]
["Рыбинский муниципальный район","Александровское","04647402"]
["Рыбинский муниципальный район","Большеключинское","04647404"]
["Рыбинский муниципальный район","Бородинское","04647406"]
["Рыбинский муниципальный район","Город Заозерный","04647101"]
["Рыбинский муниципальный район","Двуреченское","04647414"]
["Рыбинский муниципальный район","Красногорьевское","04647419"]
["Рыбинский муниципальный район","Малокамалинское","04647422"]
["Рыбинский муниципальный район","Налобинское","04647424"]
["Рыбинский муниципальный район","Новинское","04647425"]
["Рыбинский муниципальный район","Новокамалинское","04647430"]
["Рыбинский муниципальный район","Новосолянское","04647434"]
["Рыбинский муниципальный район","Переясловское","04647437"]
["Рыбинский муниципальный район","Поселок Саянский","04647160"]
["Рыбинский муниципальный район","Поселок Урал","04647165"]
["Рыбинский муниципальный район","Рыбинский муниципальный район","04647000"]
["Рыбинский муниципальный район","Рыбинское","04647440"]
["Рыбинский муниципальный район","Успенское","04647449"]
["Рыбинский муниципальный район","поселок Ирша","04647155"]
["Саянский муниципальный район","Агинское","04648402"]
["Саянский муниципальный район","Кулижниковское","04648419"]
["Саянский муниципальный район","Саянский муниципальный район","04648000"]
["Саянский муниципальный район","Тугачинское","04648437"]
["Саянский муниципальный район","Унерское","04648440"]
["Северо-Енисейский муниципальный район","Поселок Северо-Енисейский","04649151"]
["Северо-Енисейский муниципальный район","Северо-Енисейский муниципальный район","04649000"]
["Сухобузимский муниципальный район","Атамановское","04651402"]
["Сухобузимский муниципальный район","Борское","04651425"]
["Сухобузимский муниципальный район","Высотинское","04651407"]
["Сухобузимский муниципальный район","Кононовское","04651410"]
["Сухобузимский муниципальный район","Миндерлинское","04651413"]
["Сухобузимский муниципальный район","Нахвальское","04651416"]
["Сухобузимский муниципальный район","Подсопочное","04651419"]
["Сухобузимский муниципальный район","Сухобузимский муниципальный район","04651000"]
["Сухобузимский муниципальный район","Сухобузимское","04651422"]
["Сухобузимский муниципальный район","Шилинское","04651428"]
["Таймырский (Долгано-Ненецкий) муниципальный район","Диксон","04811151"]
["Таймырский (Долгано-Ненецкий) муниципальный район","Дудинка","04811121"]
["Таймырский (Долгано-Ненецкий) муниципальный район","Караул","04811417"]
["Таймырский (Долгано-Ненецкий) муниципальный район","Носок","04811400"]
["Таймырский (Долгано-Ненецкий) муниципальный район","Таймырский (Долгано-Ненецкий) муниципальный район","04811000"]
["Таймырский (Долгано-Ненецкий) муниципальный район","Хатанга","04811419"]
["Тасеевский муниципальный район","Тасеевский муниципальный район","04652000"]
["Тасеевский муниципальный район","Тасеевское","04652416"]
["Тасеевский муниципальный район","Фаначетское","04652422"]
["Туруханский муниципальный район","Борское","04654404"]
["Туруханский муниципальный район","Верхнеимбатское","04654410"]
["Туруханский муниципальный район","Вороговское","04654413"]
["Туруханский муниципальный район","Город Игарка","04654117"]
["Туруханский муниципальный район","Зотинское","04654417"]
["Туруханский муниципальный район","Туруханский муниципальный район","04654000"]
["Туруханский муниципальный район","Туруханское","04654434"]
["Туруханский муниципальный район","поселок Светлогорск","04654156"]
["Тюхтетский муниципальный район","Тюхтетский муниципальный район","04655000"]
["Тюхтетский муниципальный район","Тюхтетское","04655425"]
["Ужурский муниципальный район","Город Ужур","04656101"]
["Ужурский муниципальный район","Златоруновское","04656431"]
["Ужурский муниципальный район","Крутоярское","04656410"]
["Ужурский муниципальный район","Озероучумское","04656423"]
["Ужурский муниципальный район","Прилужское","04656424"]
["Ужурский муниципальный район","Приреченское","04656429"]
["Ужурский муниципальный район","Солгонское","04656425"]
["Ужурский муниципальный район","Ужурский муниципальный район","04656000"]
["Уярский муниципальный район","Авдинское","04657402"]
["Уярский муниципальный район","Балайское","04657404"]
["Уярский муниципальный район","Город Уяр","04657101"]
["Уярский муниципальный район","Громадское","04657408"]
["Уярский муниципальный район","Новопятницкое","04657414"]
["Уярский муниципальный район","Сухонойское","04657418"]
["Уярский муниципальный район","Сушиновское","04657417"]
["Уярский муниципальный район","Толстихинское","04657420"]
["Уярский муниципальный район","Уярский муниципальный район","04657000"]
["Шарыпово","Шарыпово","04740000"]
["Шарыповский муниципальный район","Березовское","04658403"]
["Шарыповский муниципальный район","Ивановское","04658408"]
["Шарыповский муниципальный район","Новоалтатское","04658411"]
["Шарыповский муниципальный район","Парнинское","04658413"]
["Шарыповский муниципальный район","Родниковское","04658415"]
["Шарыповский муниципальный район","Холмогорское","04658420"]
["Шарыповский муниципальный район","Шарыповский муниципальный район","04658000"]
["Шарыповский муниципальный район","Шушенское","04658422"]
["Шушенский муниципальный район","Иджинское","04659403"]
["Шушенский муниципальный район","Ильичевское","04659405"]
["Шушенский муниципальный район","Казанцевское","04659407"]
["Шушенский муниципальный район","Каптыревское","04659410"]
["Шушенский муниципальный район","Сизинское","04659414"]
["Шушенский муниципальный район","Синеборское","04659415"]
["Шушенский муниципальный район","Субботинское","04659416"]
["Шушенский муниципальный район","Шушенский муниципальный район","04659000"]
["Шушенский муниципальный район","поселок Шушенское","04659151"]
["Эвенкийский муниципальный район","Эвенкийский муниципальный район","04911000"]
["Эвенкийский муниципальный район","поселок Ессей","04911432"]
["Эвенкийский муниципальный район","поселок Кислокан","04911435"]
["Эвенкийский муниципальный район","поселок Куюмба","04911411"]
["Эвенкийский муниципальный район","поселок Нидым","04911438"]
["Эвенкийский муниципальный район","поселок Ошарово","04911417"]
["Эвенкийский муниципальный район","поселок Полигус","04911420"]
["Эвенкийский муниципальный район","поселок Суломай","04911423"]
["Эвенкийский муниципальный район","поселок Суринда","04911429"]
["Эвенкийский муниципальный район","поселок Тура","04911402"]
["Эвенкийский муниципальный район","поселок Тутончаны","04911444"]
["Эвенкийский муниципальный район","поселок Чиринда","04911450"]
["Эвенкийский муниципальный район","поселок Эконда","04911453"]
["Эвенкийский муниципальный район","поселок Юкта","04911456"]
["Эвенкийский муниципальный район","село Байкит","04911405"]
["Эвенкийский муниципальный район","село Ванавара","04911459"]
["г. Абакан","г. Абакан","04700000"]
["г. Абакан","город  Абакан","04700000"]
["город Сосновоборск","город Сосновоборск","04733000"]

{"sheet":"modfrmReestr","index":26,"n_rows":0,"n_cols":0,"rows_kept":0,"cut":false,"hidden":true,"merged":[]}

{"sheet":"modDblClick","index":27,"n_rows":0,"n_cols":0,"rows_kept":0,"cut":false,"hidden":true,"merged":[]}

{"sheet":"modfrmDateChoose","index":28,"n_rows":0,"n_cols":0,"rows_kept":0,"cut":false,"hidden":true,"merged":[]}

{"sheet":"modfrmSphereChoose","index":29,"n_rows":0,"n_cols":0,"rows_kept":0,"cut":false,"hidden":true,"merged":[]}

{"sheet":"modSheetMain01","index":30,"n_rows":0,"n_cols":0,"rows_kept":0,"cut":false,"hidden":true,"merged":[]}

{"sheet":"modSheetMain03","index":31,"n_rows":0,"n_cols":0,"rows_kept":0,"cut":false,"hidden":true,"merged":[]}

{"sheet":"modSheetMain04","index":32,"n_rows":0,"n_cols":0,"rows_kept":0,"cut":false,"hidden":true,"merged":[]}

{"sheet":"modSheetMain06","index":33,"n_rows":0,"n_cols":0,"rows_kept":0,"cut":false,"hidden":true,"merged":[]}

{"sheet":"modSheetMain07","index":34,"n_rows":0,"n_cols":0,"rows_kept":0,"cut":false,"hidden":true,"merged":[]}

{"sheet":"modSheetMain08","index":35,"n_rows":0,"n_cols":0,"rows_kept":0,"cut":false,"hidden":true,"merged":[]}

{"sheet":"modUpdTemplMain","index":36,"n_rows":0,"n_cols":0,"rows_kept":0,"cut":false,"hidden":true,"merged":[]}

{"sheet":"modRegionSelectSub","index":37,"n_rows":0,"n_cols":0,"rows_kept":0,"cut":false,"hidden":true,"merged":[]}

{"sheet":"modfrmCheckUpdates","index":38,"n_rows":0,"n_cols":0,"rows_kept":0,"cut":false,"hidden":true,"merged":[]}

{"sheet":"modCommonProv","index":39,"n_rows":0,"n_cols":0,"rows_kept":0,"cut":false,"hidden":true,"merged":[]}

{"sheet":"modProvGeneralProc","index":40,"n_rows":0,"n_cols":0,"rows_kept":0,"cut":false,"hidden":true,"merged":[]}

{"sheet":"modThisWorkbook","index":41,"n_rows":1,"n_cols":3,"rows_kept":1,"cut":false,"hidden":true,"merged":[]}
[null,null,{"$f":"\"modServiceModule.IsNameExists(wbBook, \"\"\"&A1&\"\"\") = False Or \" &  \"modServiceModule.IsNameExists(wbBook, \"\"\"&A2&\"\"\") = False or _\"","v":"modServiceModule.IsNameExists(wbBook, \"\") = False Or modServiceModule.IsNameExists(wbBook, \"\") = False or _"}]